Workbook

Sheet INGRESO DE DATOS
O2: 24 years | P2: FALSE
O3: Coaseguro (Panamá) | P3: FALSE
O11: Descuento 24 años (por edad) | S11: Type | T11: Nuevo Negocio
O12: age | P12: Discount (%) | Q12: Parameter | T12: Renovación
O13: 24 | P13: 35 | Q13: =1-P13/100 -> 0.65 | T13: Renovación: 2020
O14: 25 | P14: 30 | Q14: =1-P14/100 -> 0.7 | T14: Renovación: Pólizas mayo - diciembre de 2024
O15: 26 | P15: 25 | Q15: 0.75 | T15: Renovación: Pólizas 2025
O16: 27 | P16: 20 | Q16: 0.8
O17: 28 | P17: 15 | Q17: 0.85
O18: 29 | P18: 6 | Q18: 0.94
O19: All ages | P19: 0 | Q19: 1 | S19: Type selected | T19: 1
H21: FALSE | Q21: Renovaciòn: promoción enero - diciembre 2025
O22: NEW BUSINESS DISCOUNT (ENTRADA MANUAL) | U22: POLIZAS 2020 (ENTRADA MANUAL)
O23: Ultimate | P23: Elite | Q23: Premier | R23: Select | S23: Major Medical | U23: Ultimate | V23: Elite | W23: Premier | X23: Select | Y23: Major Medical
O24: 0 | P24: 15 | Q24: 25 | R24: 15 | S24: 15 | U24: 0 | V24: 15 | W24: 15 | X24: 15 | Y24: 15
O26: Renovación: Pólizas mayo - diciembre de 2024
O27: Ultimate | P27: Elite | Q27: Premier | R27: Select | S27: Major Medical
O28: 0 | P28: 0 | Q28: 15 | R28: 15 | S28: 0
O30: Descuento de 24 años: | P30: =IF(P2,_xlfn.SWITCH(C43,O13,Q13,O14,Q14,O15,Q15,O16,Q16,O17,Q17,O18,Q18,Q19),Q19) -> 1 | R30: IVA (12%) | S30: =12/100 -> 0.12 | T30: =S30+1 -> 1.12
O32: Descuento por variante de coaseguro | P32: =IF(P3=TRUE,0.25,1) -> 1 | U32: POLIZAS 2025 (ENTRADA MANUAL)
U33: Ultimate | V33: Elite | W33: Premier | X33: Select | Y33: Major Medical
U34: 0 | V34: 0 | W34: 15 | X34: 0 | Y34: 0
O35: Descuento si es nuevo negocio:
A37: Nombre del Asegurado Titular: | C37: John Doe | O37: NEW BUSINESS DISCOUNT (MULTIPLICATION FACTOR)
O38: Ultimate | P38: Elite | Q38: Premier | R38: Select | S38: Major Medical
A39: Número de adultos en la póliza: | C39: 2 | E39: Número de dependientes menores de 16 años: | H39: Número de dependientes menores de 10 años: | O39: =IF($T$19=1,(O24/100),IF($T$19=3,(U24/100),IF($T$19=4,(O28/100),IF($T$19=5,(U34/100),0)))) -> 0 | P39: =IF($T$19=1,(P24/100),IF($T$19=3,(V24/100),IF($T$19=4,(P28/100),IF($T$19=5,(V34/100),0)))) -> 0.15 | Q39: 0.25 | R39: 0.15 | S39: 0.15
A41: Número total de dependientes en la póliza: | C41: 2
E42: 1 | H42: 1 | O42: Descuento combinado 24 años y Nuevo Negocio
A43: Edad del Asegurado Titular: | C43: 32
L44: =IF($T$19=1,"Para nuevos negocios emitidos a partir del 1 de enero de 2025 y renovaciones de pólizas emitidas a partir del 1 de abril de 2018",IF($T$19=2,"Para renovaciones de pólizas emitidas antes del 1 de abril de 2018","Para renovaciones de pólizas emitidas en el 2020 - Solo Global PREMIER Health Plan")) -> Para nuevos negocios emitidos a partir del 1 de enero de 2025 y renovaciones de pólizas emitidas a partir del 1 de abril de 2018
A45: Edad del/la cónyuge: | C45: 46 | O45: NEW BUSINESS DISCOUNT
O46: Ultimate | P46: Elite | Q46: Premier | R46: Select | S46: Major Medical
O47: =(1-O39)*$P$30 -> 1 | P47: =(1-P39)*$P$30 -> 0.85 | Q47: =(1-Q39)*$P$30 -> 0.75 | R47: 0.85 | S47: 0.85

Sheet Global Ultimate
C1: FALSE | H1: RESUMEN DE BENEFICIOS | O1: RESUMEN DE BENEFICIOS | V1: RESUMEN DE BENEFICIOS
A5: Cotización de Seguro Médico Internacional Global Ultimate Health Plan Tarifas en US$ | Validas: 1 de enero de 2026
A13: Nombre del Asegurado Titular | B13: =+'INGRESO DE DATOS'!$C$37 -> John Doe
A15: Número de adultos en la póliza | B15: =+'INGRESO DE DATOS'!$C$41 -> 2
A17: Número de Dependientes en la póliza | B17: =+'INGRESO DE DATOS'!$C$39 -> 2 | C17: =IF('INGRESO DE DATOS'!$P$2=TRUE, "Cotización para dependiente de 24 años","") -> 
A19: Número de Dependientes menores de 16 años | B19: =+'INGRESO DE DATOS'!$E$42 -> 1
A21: Edad del Asegurado Titular | B21: =+'INGRESO DE DATOS'!$C$43 -> 32 | C21: Edad del/la conyuge | D21: =+'INGRESO DE DATOS'!$C$45 -> 46
A23: Fecha de la cotización | B23: =NOW() -> 2026-01-12T09:32:49.510
A26: DEDUCIBLES | C26: PLAN 1 | D26: PLAN 2 | E26: PLAN 3
A27: En el país de residencia | C27: $0 | D27: 1000 | E27: 2000
A28: Fuera del país de residencia | C28: $0 | D28: 1000 | E28: 2000
A30: TARIFAS ANUALES
A31: Prima para Asegurado Titular | C31: =VLOOKUP($B$21,Tablas!$A$912:$G$978,3,TRUE) -> 47596 | D31: =VLOOKUP($B$21,Tablas!$A$912:$G$978,4,TRUE) -> 30708 | E31: =VLOOKUP($B$21,Tablas!$A$912:$G$978,5,TRUE) -> 0
A32: Prima para conyuge | C32: =IF($B$17=1,0,(VLOOKUP($D$21,Tablas!$A$912:$G$978,3,TRUE))) -> 65446 | D32: =IF($B$17=1,0,(VLOOKUP($D$21,Tablas!$A$912:$G$978,4,TRUE))) -> 42225 | E32: =IF($B$17=1,0,(VLOOKUP($D$21,Tablas!$A$912:$G$978,5,TRUE))) -> 0
A33: Prima para hijo (s) | C33: =IF($B$17=1, (IF($B$15=0, 0, (IF($B$19>$B$15, (VLOOKUP($B$15,Tablas!$A$979:$G$981,3,TRUE)), (IF($B$15>4,(IF($B$19=0, (VLOOKUP(3,Tablas!$A$979:$G$981,3,TRUE)), (IF($B$19=1, (VLOOKUP(3,Tablas!$A$979:$G$981,3,TRUE)), (IF($B$19=2, (VLOOKUP(3,Tablas!$A$979:$G$981,3,TRUE)), (VLOOKUP(3,Tablas!$A$979:$G$981,3,TRUE)))))))), (IF($B$15=4,(IF(4-$B$19=0,(VLOOKUP(2,Tablas!$A$979:$G$981,3,TRUE)), (IF(4-$B$19=1,(VLOOKUP(2,Tablas!$A$979:$G$981,3,TRUE)), (IF(4-$B$19=2, (VLOOKUP(2,Tablas!$A$979:$G$981,3,TRUE)), (VLOOKUP(3,Tablas!$A$979:$G$981,3,TRUE)))))))), (IF($B$15=3,(IF(3-$B$19=0,(VLOOKUP(1,Tablas!$A$979:$G$981,3,TRUE)), (IF(3-$B$19=1,(VLOOKUP(1,Tablas!$A$979:$G$981,3,TRUE)), (IF(3-$B$19=2, (VLOOKUP(2,Tablas!$A$979:$G$981,3,TRUE)), (VLOOKUP(3,Tablas!$A$979:$G$981,3,TRUE)))))))), (IF($B$15=2,(IF(2-$B$19=0, 0, (IF(2-$B$19=1,(VLOOKUP(1,Tablas!$A$979:$G$981,3,TRUE)), (IF(2-$B$19=2, (VLOOKUP(2,Tablas!$A$979:$G$981,3,TRUE)), 0)))))), (IF($B$15=1,(IF(1-$B$19=0, 0, (IF(1-$B$19=1,(VLOOKUP(1,Tablas!$A$979:$G$981,3,TRUE)),0)))),0)))))))))))))), (IF($B$15=0, 0, (IF($B$19>$B$15, (VLOOKUP($B$15,Tablas!$A$979:$G$981,3,TRUE)), (IF($B$15=4,(IF(4-$B$19=0, 0, (IF(4-$B$19=1, (VLOOKUP(1,Tablas!$A$979:$G$981,3,TRUE)), (IF(4-$B$19=2, (VLOOKUP(2,Tablas!$A$979:$G$981,3,TRUE)), (IF(4-$B$19=3, (VLOOKUP(3,Tablas!$A$979:$G$981,3,TRUE)), (IF(4-$B$19=4, (VLOOKUP(3,Tablas!$A$979:$G$981,3,TRUE)), 0)))))))))), (IF($B$15=5,(IF(5-$B$19=0, (VLOOKUP(1,Tablas!$A$979:$G$981,3,TRUE)), (IF(5-$B$19=1, (VLOOKUP(1,Tablas!$A$979:$G$981,3,TRUE)), (IF(5-$B$19=2, (VLOOKUP(2,Tablas!$A$979:$G$981,3,TRUE)), (IF(5-$B$19=3, (VLOOKUP(3,Tablas!$A$979:$G$981,3,TRUE)), (IF(5-$B$19=4, (VLOOKUP(3,Tablas!$A$979:$G$981,3,TRUE)), (VLOOKUP(3,Tablas!$A$979:$G$981,3,TRUE)))))))))))), (IF($B$15=6,(IF(6-$B$19=0, (VLOOKUP(2,Tablas!$A$979:$G$981,3,TRUE)), (IF(6-$B$19=1, (VLOOKUP(2,Tablas!$A$979:$G$981,3,TRUE)), (IF(6-$B$19=2, (VLOOKUP(2,Tablas!$A$979:$G$981,3,TRUE)), (IF(6-$B$19=3, (VLOOKUP(3,Tablas!$A$979:$G$981,3,TRUE)), (IF(6-$B$19=4, (VLOOKUP(3,Tablas!$A$979:$G$981,3,TRUE)), (VLOOKUP(3,Tablas!$A$979:$G$981,3,TRUE)))))))))))), (IF($B$15>6,(IF(7-$B$19=0, (VLOOKUP(3,Tablas!$A$979:$G$981,3,TRUE)), (IF(7-$B$19=1, (VLOOKUP(3,Tablas!$A$979:$G$981,3,TRUE)), (IF(7-$B$19=2, (VLOOKUP(3,Tablas!$A$979:$G$981,3,TRUE)), (IF(7-$B$19=3, (VLOOKUP(3,Tablas!$A$979:$G$981,3,TRUE)), (IF(7-$B$19=4, (VLOOKUP(3,Tablas!$A$979:$G$981,3,TRUE)), (VLOOKUP(3,Tablas!$A$979:$G$981,3,TRUE)))))))))))), (IF($B$15=3,(IF(3-$B$19=0,0, (IF(3-$B$19=1,(VLOOKUP(1,Tablas!$A$979:$G$981,3,TRUE)), (IF(3-$B$19=2, (VLOOKUP(2,Tablas!$A$979:$G$981,3,TRUE)), (VLOOKUP(3,Tablas!$A$979:$G$981,3,TRUE)))))))), (IF($B$15=2,(IF(2-$B$19=0, 0, (IF(2-$B$19=1,(VLOOKUP(1,Tablas!$A$979:$G$981,3,TRUE)), (IF(2-$B$19=2, (VLOOKUP(2,Tablas!$A$979:$G$981,3,TRUE)), 0)))))), (IF($B$15=1,(IF(1-$B$19=0, 0, (IF(1-$B$19=1,(VLOOKUP(1,Tablas!$A$979:$G$981,3,TRUE)),0)))),0))))))))))))))))))) -> 16764 | D33: =IF($B$17=1, (IF($B$15=0, 0, (IF($B$19>$B$15, (VLOOKUP($B$15,Tablas!$A$979:$G$981,4,TRUE)), (IF($B$15>4,(IF($B$19=0, (VLOOKUP(3,Tablas!$A$979:$G$981,4,TRUE)), (IF($B$19=1, (VLOOKUP(3,Tablas!$A$979:$G$981,4,TRUE)), (IF($B$19=2, (VLOOKUP(3,Tablas!$A$979:$G$981,4,TRUE)), (VLOOKUP(3,Tablas!$A$979:$G$981,4,TRUE)))))))), (IF($B$15=4,(IF(4-$B$19=0,(VLOOKUP(2,Tablas!$A$979:$G$981,4,TRUE)), (IF(4-$B$19=1,(VLOOKUP(2,Tablas!$A$979:$G$981,4,TRUE)), (IF(4-$B$19=2, (VLOOKUP(2,Tablas!$A$979:$G$981,4,TRUE)), (VLOOKUP(3,Tablas!$A$979:$G$981,4,TRUE)))))))), (IF($B$15=3,(IF(3-$B$19=0,(VLOOKUP(1,Tablas!$A$979:$G$981,4,TRUE)), (IF(3-$B$19=1,(VLOOKUP(1,Tablas!$A$979:$G$981,4,TRUE)), (IF(3-$B$19=2, (VLOOKUP(2,Tablas!$A$979:$G$981,4,TRUE)), (VLOOKUP(3,Tablas!$A$979:$G$981,4,TRUE)))))))), (IF($B$15=2,(IF(2-$B$19=0, 0, (IF(2-$B$19=1,(VLOOKUP(1,Tablas!$A$979:$G$981,4,TRUE)), (IF(2-$B$19=2, (VLOOKUP(2,Tablas!$A$979:$G$981,4,TRUE)), 0)))))), (IF($B$15=1,(IF(1-$B$19=0, 0, (IF(1-$B$19=1,(VLOOKUP(1,Tablas!$A$979:$G$981,4,TRUE)),0)))),0)))))))))))))), (IF($B$15=0, 0, (IF($B$19>$B$15, (VLOOKUP($B$15,Tablas!$A$979:$G$981,4,TRUE)), (IF($B$15=4,(IF(4-$B$19=0, 0, (IF(4-$B$19=1, (VLOOKUP(1,Tablas!$A$979:$G$981,4,TRUE)), (IF(4-$B$19=2, (VLOOKUP(2,Tablas!$A$979:$G$981,4,TRUE)), (IF(4-$B$19=3, (VLOOKUP(3,Tablas!$A$979:$G$981,4,TRUE)), (IF(4-$B$19=4, (VLOOKUP(3,Tablas!$A$979:$G$981,4,TRUE)), 0)))))))))), (IF($B$15=5,(IF(5-$B$19=0, (VLOOKUP(1,Tablas!$A$979:$G$981,4,TRUE)), (IF(5-$B$19=1, (VLOOKUP(1,Tablas!$A$979:$G$981,4,TRUE)), (IF(5-$B$19=2, (VLOOKUP(2,Tablas!$A$979:$G$981,4,TRUE)), (IF(5-$B$19=3, (VLOOKUP(3,Tablas!$A$979:$G$981,4,TRUE)), (IF(5-$B$19=4, (VLOOKUP(3,Tablas!$A$979:$G$981,4,TRUE)), (VLOOKUP(3,Tablas!$A$979:$G$981,4,TRUE)))))))))))), (IF($B$15=6,(IF(6-$B$19=0, (VLOOKUP(2,Tablas!$A$979:$G$981,4,TRUE)), (IF(6-$B$19=1, (VLOOKUP(2,Tablas!$A$979:$G$981,4,TRUE)), (IF(6-$B$19=2, (VLOOKUP(2,Tablas!$A$979:$G$981,4,TRUE)), (IF(6-$B$19=3, (VLOOKUP(3,Tablas!$A$979:$G$981,4,TRUE)), (IF(6-$B$19=4, (VLOOKUP(3,Tablas!$A$979:$G$981,4,TRUE)), (VLOOKUP(3,Tablas!$A$979:$G$981,4,TRUE)))))))))))), (IF($B$15>6,(IF(7-$B$19=0, (VLOOKUP(3,Tablas!$A$979:$G$981,4,TRUE)), (IF(7-$B$19=1, (VLOOKUP(3,Tablas!$A$979:$G$981,4,TRUE)), (IF(7-$B$19=2, (VLOOKUP(3,Tablas!$A$979:$G$981,4,TRUE)), (IF(7-$B$19=3, (VLOOKUP(3,Tablas!$A$979:$G$981,4,TRUE)), (IF(7-$B$19=4, (VLOOKUP(3,Tablas!$A$979:$G$981,4,TRUE)), (VLOOKUP(3,Tablas!$A$979:$G$981,4,TRUE)))))))))))), (IF($B$15=3,(IF(3-$B$19=0,0, (IF(3-$B$19=1,(VLOOKUP(1,Tablas!$A$979:$G$981,4,TRUE)), (IF(3-$B$19=2, (VLOOKUP(2,Tablas!$A$979:$G$981,4,TRUE)), (VLOOKUP(3,Tablas!$A$979:$G$981,4,TRUE)))))))), (IF($B$15=2,(IF(2-$B$19=0, 0, (IF(2-$B$19=1,(VLOOKUP(1,Tablas!$A$979:$G$981,4,TRUE)), (IF(2-$B$19=2, (VLOOKUP(2,Tablas!$A$979:$G$981,4,TRUE)), 0)))))), (IF($B$15=1,(IF(1-$B$19=0, 0, (IF(1-$B$19=1,(VLOOKUP(1,Tablas!$A$979:$G$981,4,TRUE)),0)))),0))))))))))))))))))) -> 10817 | E33: =IF($B$17=1, (IF($B$15=0, 0, (IF($B$19>$B$15, (VLOOKUP($B$15,Tablas!$A$979:$G$981,5,TRUE)), (IF($B$15>4,(IF($B$19=0, (VLOOKUP(3,Tablas!$A$979:$G$981,5,TRUE)), (IF($B$19=1, (VLOOKUP(3,Tablas!$A$979:$G$981,5,TRUE)), (IF($B$19=2, (VLOOKUP(3,Tablas!$A$979:$G$981,5,TRUE)), (VLOOKUP(3,Tablas!$A$979:$G$981,5,TRUE)))))))), (IF($B$15=4,(IF(4-$B$19=0,(VLOOKUP(2,Tablas!$A$979:$G$981,5,TRUE)), (IF(4-$B$19=1,(VLOOKUP(2,Tablas!$A$979:$G$981,5,TRUE)), (IF(4-$B$19=2, (VLOOKUP(2,Tablas!$A$979:$G$981,5,TRUE)), (VLOOKUP(3,Tablas!$A$979:$G$981,5,TRUE)))))))), (IF($B$15=3,(IF(3-$B$19=0,(VLOOKUP(1,Tablas!$A$979:$G$981,5,TRUE)), (IF(3-$B$19=1,(VLOOKUP(1,Tablas!$A$979:$G$981,5,TRUE)), (IF(3-$B$19=2, (VLOOKUP(2,Tablas!$A$979:$G$981,5,TRUE)), (VLOOKUP(3,Tablas!$A$979:$G$981,5,TRUE)))))))), (IF($B$15=2,(IF(2-$B$19=0, 0, (IF(2-$B$19=1,(VLOOKUP(1,Tablas!$A$979:$G$981,5,TRUE)), (IF(2-$B$19=2, (VLOOKUP(2,Tablas!$A$979:$G$981,5,TRUE)), 0)))))), (IF($B$15=1,(IF(1-$B$19=0, 0, (IF(1-$B$19=1,(VLOOKUP(1,Tablas!$A$979:$G$981,5,TRUE)),0)))),0)))))))))))))), (IF($B$15=0, 0, (IF($B$19>$B$15, (VLOOKUP($B$15,Tablas!$A$979:$G$981,5,TRUE)), (IF($B$15=4,(IF(4-$B$19=0, 0, (IF(4-$B$19=1, (VLOOKUP(1,Tablas!$A$979:$G$981,5,TRUE)), (IF(4-$B$19=2, (VLOOKUP(2,Tablas!$A$979:$G$981,5,TRUE)), (IF(4-$B$19=3, (VLOOKUP(3,Tablas!$A$979:$G$981,5,TRUE)), (IF(4-$B$19=4, (VLOOKUP(3,Tablas!$A$979:$G$981,5,TRUE)), 0)))))))))), (IF($B$15=5,(IF(5-$B$19=0, (VLOOKUP(1,Tablas!$A$979:$G$981,5,TRUE)), (IF(5-$B$19=1, (VLOOKUP(1,Tablas!$A$979:$G$981,5,TRUE)), (IF(5-$B$19=2, (VLOOKUP(2,Tablas!$A$979:$G$981,5,TRUE)), (IF(5-$B$19=3, (VLOOKUP(3,Tablas!$A$979:$G$981,5,TRUE)), (IF(5-$B$19=4, (VLOOKUP(3,Tablas!$A$979:$G$981,5,TRUE)), (VLOOKUP(3,Tablas!$A$979:$G$981,5,TRUE)))))))))))), (IF($B$15=6,(IF(6-$B$19=0, (VLOOKUP(2,Tablas!$A$979:$G$981,5,TRUE)), (IF(6-$B$19=1, (VLOOKUP(2,Tablas!$A$979:$G$981,5,TRUE)), (IF(6-$B$19=2, (VLOOKUP(2,Tablas!$A$979:$G$981,5,TRUE)), (IF(6-$B$19=3, (VLOOKUP(3,Tablas!$A$979:$G$981,5,TRUE)), (IF(6-$B$19=4, (VLOOKUP(3,Tablas!$A$979:$G$981,5,TRUE)), (VLOOKUP(3,Tablas!$A$979:$G$981,5,TRUE)))))))))))), (IF($B$15>6,(IF(7-$B$19=0, (VLOOKUP(3,Tablas!$A$979:$G$981,5,TRUE)), (IF(7-$B$19=1, (VLOOKUP(3,Tablas!$A$979:$G$981,5,TRUE)), (IF(7-$B$19=2, (VLOOKUP(3,Tablas!$A$979:$G$981,5,TRUE)), (IF(7-$B$19=3, (VLOOKUP(3,Tablas!$A$979:$G$981,5,TRUE)), (IF(7-$B$19=4, (VLOOKUP(3,Tablas!$A$979:$G$981,5,TRUE)), (VLOOKUP(3,Tablas!$A$979:$G$981,5,TRUE)))))))))))), (IF($B$15=3,(IF(3-$B$19=0,0, (IF(3-$B$19=1,(VLOOKUP(1,Tablas!$A$979:$G$981,5,TRUE)), (IF(3-$B$19=2, (VLOOKUP(2,Tablas!$A$979:$G$981,5,TRUE)), (VLOOKUP(3,Tablas!$A$979:$G$981,5,TRUE)))))))), (IF($B$15=2,(IF(2-$B$19=0, 0, (IF(2-$B$19=1,(VLOOKUP(1,Tablas!$A$979:$G$981,5,TRUE)), (IF(2-$B$19=2, (VLOOKUP(2,Tablas!$A$979:$G$981,5,TRUE)), 0)))))), (IF($B$15=1,(IF(1-$B$19=0, 0, (IF(1-$B$19=1,(VLOOKUP(1,Tablas!$A$979:$G$981,5,TRUE)),0)))),0))))))))))))))))))) -> 0
A34: Total de Prima neta | C34: =SUM(C31:C33) -> 129806 | D34: =SUM(D31:D33) -> 83750 | E34: 0
A35: Tarifa administrativa anual | C35: 75 | D35: 75 | E35: 75
A36: IVA (12%) | C36: =(C34+C35)*'INGRESO DE DATOS'!$S$30 -> 15585.72 | D36: =(D34+D35)*'INGRESO DE DATOS'!$S$30 -> 10059
A37: ITBMS (7%)
A38: TOTAL ANUAL | C38: =SUM(C34:C37) -> 145466.72 | D38: =SUM(D34:D37) -> 93884 | E38: 75
A39: Ahorros en tarifas de prima para Dependientes | C39: =IF($B$17=1,IF($B$15=0,0,IF($B$19=0,0,IF($B$19=1,(VLOOKUP(1,Tablas!$A$979:$G$981,3,TRUE)),(VLOOKUP(2,Tablas!$A$979:$G$981,3,TRUE))))), IF($B$15=0,0,IF($B$19=0,0,IF($B$19=1,(VLOOKUP(1,Tablas!$A$979:$G$981,3,TRUE)),IF($B$19=2,(VLOOKUP(2,Tablas!$A$979:$G$981,3,TRUE)), (VLOOKUP(3,Tablas!$A$979:$G$981,3,TRUE))))))) -> 16764 | D39: =IF($B$17=1,IF($B$15=0,0,IF($B$19=0,0,IF($B$19=1,(VLOOKUP(1,Tablas!$A$979:$G$981,4,TRUE)),(VLOOKUP(2,Tablas!$A$979:$G$981,4,TRUE))))), IF($B$15=0,0,IF($B$19=0,0,IF($B$19=1,(VLOOKUP(1,Tablas!$A$979:$G$981,4,TRUE)),IF($B$19=2,(VLOOKUP(2,Tablas!$A$979:$G$981,4,TRUE)), (VLOOKUP(3,Tablas!$A$979:$G$981,4,TRUE))))))) -> 10817 | E39: =IF($B$17=1,IF($B$15=0,0,IF($B$19=0,0,IF($B$19=1,(VLOOKUP(1,Tablas!$A$979:$G$981,5,TRUE)),(VLOOKUP(2,Tablas!$A$979:$G$981,5,TRUE))))), IF($B$15=0,0,IF($B$19=0,0,IF($B$19=1,(VLOOKUP(1,Tablas!$A$979:$G$981,5,TRUE)),IF($B$19=2,(VLOOKUP(2,Tablas!$A$979:$G$981,5,TRUE)), (VLOOKUP(3,Tablas!$A$979:$G$981,5,TRUE))))))) -> 0
A41: TARIFAS SEMIANUALES
A42: Prima para Asegurado Titular | C42: =VLOOKUP($B$21,Tablas!$A$1439:$G$1505,3,TRUE) -> 25225.88 | D42: =VLOOKUP($B$21,Tablas!$A$1439:$G$1505,4,TRUE) -> 16275.24 | E42: =VLOOKUP($B$21,Tablas!$A$1439:$G$1505,5,TRUE) -> 0
A43: Prima para conyuge | C43: =IF($B$17=1,0,(VLOOKUP($D$21,Tablas!$A$1439:$G$1505,3,TRUE))) -> 34686.38 | D43: =IF($B$17=1,0,(VLOOKUP($D$21,Tablas!$A$1439:$G$1505,4,TRUE))) -> 22379.25 | E43: =IF($B$17=1,0,(VLOOKUP($D$21,Tablas!$A$1439:$G$1505,5,TRUE))) -> 0
A44: Prima para hijo (s) | C44: =IF($B$17=1, (IF($B$15=0, 0, (IF($B$19>$B$15, (VLOOKUP($B$15,Tablas!$A$1506:$G$1508,3,TRUE)), (IF($B$15>4,(IF($B$19=0, (VLOOKUP(3,Tablas!$A$1506:$G$1508,3,TRUE)), (IF($B$19=1, (VLOOKUP(3,Tablas!$A$1506:$G$1508,3,TRUE)), (IF($B$19=2, (VLOOKUP(3,Tablas!$A$1506:$G$1508,3,TRUE)), (VLOOKUP(3,Tablas!$A$1506:$G$1508,3,TRUE)))))))), (IF($B$15=4,(IF(4-$B$19=0,(VLOOKUP(2,Tablas!$A$1506:$G$1508,3,TRUE)), (IF(4-$B$19=1,(VLOOKUP(2,Tablas!$A$1506:$G$1508,3,TRUE)), (IF(4-$B$19=2, (VLOOKUP(2,Tablas!$A$1506:$G$1508,3,TRUE)), (VLOOKUP(3,Tablas!$A$1506:$G$1508,3,TRUE)))))))), (IF($B$15=3,(IF(3-$B$19=0,(VLOOKUP(1,Tablas!$A$1506:$G$1508,3,TRUE)), (IF(3-$B$19=1,(VLOOKUP(1,Tablas!$A$1506:$G$1508,3,TRUE)), (IF(3-$B$19=2, (VLOOKUP(2,Tablas!$A$1506:$G$1508,3,TRUE)), (VLOOKUP(3,Tablas!$A$1506:$G$1508,3,TRUE)))))))), (IF($B$15=2,(IF(2-$B$19=0, 0, (IF(2-$B$19=1,(VLOOKUP(1,Tablas!$A$1506:$G$1508,3,TRUE)), (IF(2-$B$19=2, (VLOOKUP(2,Tablas!$A$1506:$G$1508,3,TRUE)), 0)))))), (IF($B$15=1,(IF(1-$B$19=0, 0, (IF(1-$B$19=1,(VLOOKUP(1,Tablas!$A$1506:$G$1508,3,TRUE)),0)))),0)))))))))))))), (IF($B$15=0, 0, (IF($B$19>$B$15, (VLOOKUP($B$15,Tablas!$A$1506:$G$1508,3,TRUE)), (IF($B$15=4,(IF(4-$B$19=0, 0, (IF(4-$B$19=1, (VLOOKUP(1,Tablas!$A$1506:$G$1508,3,TRUE)), (IF(4-$B$19=2, (VLOOKUP(2,Tablas!$A$1506:$G$1508,3,TRUE)), (IF(4-$B$19=3, (VLOOKUP(3,Tablas!$A$1506:$G$1508,3,TRUE)), (IF(4-$B$19=4, (VLOOKUP(3,Tablas!$A$1506:$G$1508,3,TRUE)), 0)))))))))), (IF($B$15=5,(IF(5-$B$19=0, (VLOOKUP(1,Tablas!$A$1506:$G$1508,3,TRUE)), (IF(5-$B$19=1, (VLOOKUP(1,Tablas!$A$1506:$G$1508,3,TRUE)), (IF(5-$B$19=2, (VLOOKUP(2,Tablas!$A$1506:$G$1508,3,TRUE)), (IF(5-$B$19=3, (VLOOKUP(3,Tablas!$A$1506:$G$1508,3,TRUE)), (IF(5-$B$19=4, (VLOOKUP(3,Tablas!$A$1506:$G$1508,3,TRUE)), (VLOOKUP(3,Tablas!$A$1506:$G$1508,3,TRUE)))))))))))), (IF($B$15=6,(IF(6-$B$19=0, (VLOOKUP(2,Tablas!$A$1506:$G$1508,3,TRUE)), (IF(6-$B$19=1, (VLOOKUP(2,Tablas!$A$1506:$G$1508,3,TRUE)), (IF(6-$B$19=2, (VLOOKUP(2,Tablas!$A$1506:$G$1508,3,TRUE)), (IF(6-$B$19=3, (VLOOKUP(3,Tablas!$A$1506:$G$1508,3,TRUE)), (IF(6-$B$19=4, (VLOOKUP(3,Tablas!$A$1506:$G$1508,3,TRUE)), (VLOOKUP(3,Tablas!$A$1506:$G$1508,3,TRUE)))))))))))), (IF($B$15>6,(IF(7-$B$19=0, (VLOOKUP(3,Tablas!$A$1506:$G$1508,3,TRUE)), (IF(7-$B$19=1, (VLOOKUP(3,Tablas!$A$1506:$G$1508,3,TRUE)), (IF(7-$B$19=2, (VLOOKUP(3,Tablas!$A$1506:$G$1508,3,TRUE)), (IF(7-$B$19=3, (VLOOKUP(3,Tablas!$A$1506:$G$1508,3,TRUE)), (IF(7-$B$19=4, (VLOOKUP(3,Tablas!$A$1506:$G$1508,3,TRUE)), (VLOOKUP(3,Tablas!$A$1506:$G$1508,3,TRUE)))))))))))), (IF($B$15=3,(IF(3-$B$19=0,0, (IF(3-$B$19=1,(VLOOKUP(1,Tablas!$A$1506:$G$1508,3,TRUE)), (IF(3-$B$19=2, (VLOOKUP(2,Tablas!$A$1506:$G$1508,3,TRUE)), (VLOOKUP(3,Tablas!$A$1506:$G$1508,3,TRUE)))))))), (IF($B$15=2,(IF(2-$B$19=0, 0, (IF(2-$B$19=1,(VLOOKUP(1,Tablas!$A$1506:$G$1508,3,TRUE)), (IF(2-$B$19=2, (VLOOKUP(2,Tablas!$A$1506:$G$1508,3,TRUE)), 0)))))), (IF($B$15=1,(IF(1-$B$19=0, 0, (IF(1-$B$19=1,(VLOOKUP(1,Tablas!$A$1506:$G$1508,3,TRUE)),0)))),0))))))))))))))))))) -> 8884.92 | D44: =IF($B$17=1, (IF($B$15=0, 0, (IF($B$19>$B$15, (VLOOKUP($B$15,Tablas!$A$1506:$G$1508,4,TRUE)), (IF($B$15>4,(IF($B$19=0, (VLOOKUP(3,Tablas!$A$1506:$G$1508,4,TRUE)), (IF($B$19=1, (VLOOKUP(3,Tablas!$A$1506:$G$1508,4,TRUE)), (IF($B$19=2, (VLOOKUP(3,Tablas!$A$1506:$G$1508,4,TRUE)), (VLOOKUP(3,Tablas!$A$1506:$G$1508,4,TRUE)))))))), (IF($B$15=4,(IF(4-$B$19=0,(VLOOKUP(2,Tablas!$A$1506:$G$1508,4,TRUE)), (IF(4-$B$19=1,(VLOOKUP(2,Tablas!$A$1506:$G$1508,4,TRUE)), (IF(4-$B$19=2, (VLOOKUP(2,Tablas!$A$1506:$G$1508,4,TRUE)), (VLOOKUP(3,Tablas!$A$1506:$G$1508,4,TRUE)))))))), (IF($B$15=3,(IF(3-$B$19=0,(VLOOKUP(1,Tablas!$A$1506:$G$1508,4,TRUE)), (IF(3-$B$19=1,(VLOOKUP(1,Tablas!$A$1506:$G$1508,4,TRUE)), (IF(3-$B$19=2, (VLOOKUP(2,Tablas!$A$1506:$G$1508,4,TRUE)), (VLOOKUP(3,Tablas!$A$1506:$G$1508,4,TRUE)))))))), (IF($B$15=2,(IF(2-$B$19=0, 0, (IF(2-$B$19=1,(VLOOKUP(1,Tablas!$A$1506:$G$1508,4,TRUE)), (IF(2-$B$19=2, (VLOOKUP(2,Tablas!$A$1506:$G$1508,4,TRUE)), 0)))))), (IF($B$15=1,(IF(1-$B$19=0, 0, (IF(1-$B$19=1,(VLOOKUP(1,Tablas!$A$1506:$G$1508,4,TRUE)),0)))),0)))))))))))))), (IF($B$15=0, 0, (IF($B$19>$B$15, (VLOOKUP($B$15,Tablas!$A$1506:$G$1508,4,TRUE)), (IF($B$15=4,(IF(4-$B$19=0, 0, (IF(4-$B$19=1, (VLOOKUP(1,Tablas!$A$1506:$G$1508,4,TRUE)), (IF(4-$B$19=2, (VLOOKUP(2,Tablas!$A$1506:$G$1508,4,TRUE)), (IF(4-$B$19=3, (VLOOKUP(3,Tablas!$A$1506:$G$1508,4,TRUE)), (IF(4-$B$19=4, (VLOOKUP(3,Tablas!$A$1506:$G$1508,4,TRUE)), 0)))))))))), (IF($B$15=5,(IF(5-$B$19=0, (VLOOKUP(1,Tablas!$A$1506:$G$1508,4,TRUE)), (IF(5-$B$19=1, (VLOOKUP(1,Tablas!$A$1506:$G$1508,4,TRUE)), (IF(5-$B$19=2, (VLOOKUP(2,Tablas!$A$1506:$G$1508,4,TRUE)), (IF(5-$B$19=3, (VLOOKUP(3,Tablas!$A$1506:$G$1508,4,TRUE)), (IF(5-$B$19=4, (VLOOKUP(3,Tablas!$A$1506:$G$1508,4,TRUE)), (VLOOKUP(3,Tablas!$A$1506:$G$1508,4,TRUE)))))))))))), (IF($B$15=6,(IF(6-$B$19=0, (VLOOKUP(2,Tablas!$A$1506:$G$1508,4,TRUE)), (IF(6-$B$19=1, (VLOOKUP(2,Tablas!$A$1506:$G$1508,4,TRUE)), (IF(6-$B$19=2, (VLOOKUP(2,Tablas!$A$1506:$G$1508,4,TRUE)), (IF(6-$B$19=3, (VLOOKUP(3,Tablas!$A$1506:$G$1508,4,TRUE)), (IF(6-$B$19=4, (VLOOKUP(3,Tablas!$A$1506:$G$1508,4,TRUE)), (VLOOKUP(3,Tablas!$A$1506:$G$1508,4,TRUE)))))))))))), (IF($B$15>6,(IF(7-$B$19=0, (VLOOKUP(3,Tablas!$A$1506:$G$1508,4,TRUE)), (IF(7-$B$19=1, (VLOOKUP(3,Tablas!$A$1506:$G$1508,4,TRUE)), (IF(7-$B$19=2, (VLOOKUP(3,Tablas!$A$1506:$G$1508,4,TRUE)), (IF(7-$B$19=3, (VLOOKUP(3,Tablas!$A$1506:$G$1508,4,TRUE)), (IF(7-$B$19=4, (VLOOKUP(3,Tablas!$A$1506:$G$1508,4,TRUE)), (VLOOKUP(3,Tablas!$A$1506:$G$1508,4,TRUE)))))))))))), (IF($B$15=3,(IF(3-$B$19=0,0, (IF(3-$B$19=1,(VLOOKUP(1,Tablas!$A$1506:$G$1508,4,TRUE)), (IF(3-$B$19=2, (VLOOKUP(2,Tablas!$A$1506:$G$1508,4,TRUE)), (VLOOKUP(3,Tablas!$A$1506:$G$1508,4,TRUE)))))))), (IF($B$15=2,(IF(2-$B$19=0, 0, (IF(2-$B$19=1,(VLOOKUP(1,Tablas!$A$1506:$G$1508,4,TRUE)), (IF(2-$B$19=2, (VLOOKUP(2,Tablas!$A$1506:$G$1508,4,TRUE)), 0)))))), (IF($B$15=1,(IF(1-$B$19=0, 0, (IF(1-$B$19=1,(VLOOKUP(1,Tablas!$A$1506:$G$1508,4,TRUE)),0)))),0))))))))))))))))))) -> 5733.01 | E44: =IF($B$17=1, (IF($B$15=0, 0, (IF($B$19>$B$15, (VLOOKUP($B$15,Tablas!$A$1506:$G$1508,5,TRUE)), (IF($B$15>4,(IF($B$19=0, (VLOOKUP(3,Tablas!$A$1506:$G$1508,5,TRUE)), (IF($B$19=1, (VLOOKUP(3,Tablas!$A$1506:$G$1508,5,TRUE)), (IF($B$19=2, (VLOOKUP(3,Tablas!$A$1506:$G$1508,5,TRUE)), (VLOOKUP(3,Tablas!$A$1506:$G$1508,5,TRUE)))))))), (IF($B$15=4,(IF(4-$B$19=0,(VLOOKUP(2,Tablas!$A$1506:$G$1508,5,TRUE)), (IF(4-$B$19=1,(VLOOKUP(2,Tablas!$A$1506:$G$1508,5,TRUE)), (IF(4-$B$19=2, (VLOOKUP(2,Tablas!$A$1506:$G$1508,5,TRUE)), (VLOOKUP(3,Tablas!$A$1506:$G$1508,5,TRUE)))))))), (IF($B$15=3,(IF(3-$B$19=0,(VLOOKUP(1,Tablas!$A$1506:$G$1508,5,TRUE)), (IF(3-$B$19=1,(VLOOKUP(1,Tablas!$A$1506:$G$1508,5,TRUE)), (IF(3-$B$19=2, (VLOOKUP(2,Tablas!$A$1506:$G$1508,5,TRUE)), (VLOOKUP(3,Tablas!$A$1506:$G$1508,5,TRUE)))))))), (IF($B$15=2,(IF(2-$B$19=0, 0, (IF(2-$B$19=1,(VLOOKUP(1,Tablas!$A$1506:$G$1508,5,TRUE)), (IF(2-$B$19=2, (VLOOKUP(2,Tablas!$A$1506:$G$1508,5,TRUE)), 0)))))), (IF($B$15=1,(IF(1-$B$19=0, 0, (IF(1-$B$19=1,(VLOOKUP(1,Tablas!$A$1506:$G$1508,5,TRUE)),0)))),0)))))))))))))), (IF($B$15=0, 0, (IF($B$19>$B$15, (VLOOKUP($B$15,Tablas!$A$1506:$G$1508,5,TRUE)), (IF($B$15=4,(IF(4-$B$19=0, 0, (IF(4-$B$19=1, (VLOOKUP(1,Tablas!$A$1506:$G$1508,5,TRUE)), (IF(4-$B$19=2, (VLOOKUP(2,Tablas!$A$1506:$G$1508,5,TRUE)), (IF(4-$B$19=3, (VLOOKUP(3,Tablas!$A$1506:$G$1508,5,TRUE)), (IF(4-$B$19=4, (VLOOKUP(3,Tablas!$A$1506:$G$1508,5,TRUE)), 0)))))))))), (IF($B$15=5,(IF(5-$B$19=0, (VLOOKUP(1,Tablas!$A$1506:$G$1508,5,TRUE)), (IF(5-$B$19=1, (VLOOKUP(1,Tablas!$A$1506:$G$1508,5,TRUE)), (IF(5-$B$19=2, (VLOOKUP(2,Tablas!$A$1506:$G$1508,5,TRUE)), (IF(5-$B$19=3, (VLOOKUP(3,Tablas!$A$1506:$G$1508,5,TRUE)), (IF(5-$B$19=4, (VLOOKUP(3,Tablas!$A$1506:$G$1508,5,TRUE)), (VLOOKUP(3,Tablas!$A$1506:$G$1508,5,TRUE)))))))))))), (IF($B$15=6,(IF(6-$B$19=0, (VLOOKUP(2,Tablas!$A$1506:$G$1508,5,TRUE)), (IF(6-$B$19=1, (VLOOKUP(2,Tablas!$A$1506:$G$1508,5,TRUE)), (IF(6-$B$19=2, (VLOOKUP(2,Tablas!$A$1506:$G$1508,5,TRUE)), (IF(6-$B$19=3, (VLOOKUP(3,Tablas!$A$1506:$G$1508,5,TRUE)), (IF(6-$B$19=4, (VLOOKUP(3,Tablas!$A$1506:$G$1508,5,TRUE)), (VLOOKUP(3,Tablas!$A$1506:$G$1508,5,TRUE)))))))))))), (IF($B$15>6,(IF(7-$B$19=0, (VLOOKUP(3,Tablas!$A$1506:$G$1508,5,TRUE)), (IF(7-$B$19=1, (VLOOKUP(3,Tablas!$A$1506:$G$1508,5,TRUE)), (IF(7-$B$19=2, (VLOOKUP(3,Tablas!$A$1506:$G$1508,5,TRUE)), (IF(7-$B$19=3, (VLOOKUP(3,Tablas!$A$1506:$G$1508,5,TRUE)), (IF(7-$B$19=4, (VLOOKUP(3,Tablas!$A$1506:$G$1508,5,TRUE)), (VLOOKUP(3,Tablas!$A$1506:$G$1508,5,TRUE)))))))))))), (IF($B$15=3,(IF(3-$B$19=0,0, (IF(3-$B$19=1,(VLOOKUP(1,Tablas!$A$1506:$G$1508,5,TRUE)), (IF(3-$B$19=2, (VLOOKUP(2,Tablas!$A$1506:$G$1508,5,TRUE)), (VLOOKUP(3,Tablas!$A$1506:$G$1508,5,TRUE)))))))), (IF($B$15=2,(IF(2-$B$19=0, 0, (IF(2-$B$19=1,(VLOOKUP(1,Tablas!$A$1506:$G$1508,5,TRUE)), (IF(2-$B$19=2, (VLOOKUP(2,Tablas!$A$1506:$G$1508,5,TRUE)), 0)))))), (IF($B$15=1,(IF(1-$B$19=0, 0, (IF(1-$B$19=1,(VLOOKUP(1,Tablas!$A$1506:$G$1508,5,TRUE)),0)))),0))))))))))))))))))) -> 0
A45: Total de Prima neta | C45: =SUM(C42:C44) -> 68797.18 | D45: =SUM(D42:D44) -> 44387.5 | E45: 0
A46: Tarifa administrativa anual | C46: 75 | D46: 75 | E46: 75
A47: IVA (12%) | C47: =(C45+C46)*'INGRESO DE DATOS'!$S$30 -> 8264.6616 | D47: =(D45+D46)*'INGRESO DE DATOS'!$S$30 -> 5335.5 | E47: =(E31+E32+E33)*5%/2 -> 0
A48: ITBMS (7%) | E48: =+E46*7%+ ((E31+E32+E33)*0.06*0.07)/2 -> 5.25
A49: TOTAL de primera cuota | C49: =SUM(C45:C48) -> 77136.8416 | D49: =SUM(D45:D48) -> 49798 | E49: 80.25
A50: Costo de segunda cuota | C50: =C49-C46*'INGRESO DE DATOS'!$T$30 -> 77052.8416 | D50: =D49-D46*'INGRESO DE DATOS'!$T$30 -> 49714 | E50: =(E45 + E47)+((E31+E32+E33)*0.06*0.07)/2 -> 0
A51: TOTAL ANUAL | C51: =C49+C50 -> 154189.6832 | D51: =D49+D50 -> 99512 | E51: 80.25
A52: Ahorros en tarifas de prima para Dependientes | C52: =IF($B$17=1,IF($B$15=0,0,IF($B$19=0,0,IF($B$19=1,(VLOOKUP(1,Tablas!$A$1506:$G$1508,3,TRUE)),(VLOOKUP(2,Tablas!$A$1506:$G$1508,3,TRUE))))), IF($B$15=0,0,IF($B$19=0,0,IF($B$19=1,(VLOOKUP(1,Tablas!$A$1506:$G$1508,3,TRUE)),IF($B$19=2,(VLOOKUP(2,Tablas!$A$1506:$G$1508,3,TRUE)), (VLOOKUP(3,Tablas!$A$1506:$G$1508,3,TRUE))))))) -> 8884.92 | D52: =IF($B$17=1,IF($B$15=0,0,IF($B$19=0,0,IF($B$19=1,(VLOOKUP(1,Tablas!$A$1506:$G$1508,4,TRUE)),(VLOOKUP(2,Tablas!$A$1506:$G$1508,4,TRUE))))), IF($B$15=0,0,IF($B$19=0,0,IF($B$19=1,(VLOOKUP(1,Tablas!$A$1506:$G$1508,4,TRUE)),IF($B$19=2,(VLOOKUP(2,Tablas!$A$1506:$G$1508,4,TRUE)), (VLOOKUP(3,Tablas!$A$1506:$G$1508,4,TRUE))))))) -> 5733.01 | E52: =IF($B$17=1,IF($B$15=0,0,IF($B$19=0,0,IF($B$19=1,(VLOOKUP(1,Tablas!$A$1506:$G$1508,5,TRUE)),(VLOOKUP(2,Tablas!$A$1506:$G$1508,5,TRUE))))), IF($B$15=0,0,IF($B$19=0,0,IF($B$19=1,(VLOOKUP(1,Tablas!$A$1506:$G$1508,5,TRUE)),IF($B$19=2,(VLOOKUP(2,Tablas!$A$1506:$G$1508,5,TRUE)), (VLOOKUP(3,Tablas!$A$1506:$G$1508,5,TRUE))))))) -> 0
A54: TARIFAS TRIMESTRALES
A55: Prima para Asegurado Titular | C55: =VLOOKUP($B$21,Tablas!$A$1061:$G$1127,3,TRUE) -> 13088.9 | D55: =VLOOKUP($B$21,Tablas!$A$1061:$G$1127,4,TRUE) -> 8444.7 | E55: =VLOOKUP($B$21,Tablas!$A$1061:$G$1127,5,TRUE) -> 0
A56: Prima para conyuge | C56: =IF($B$17=1,0,(VLOOKUP($D$21,Tablas!$A$1061:$G$1127,3,TRUE))) -> 17997.65 | D56: =IF($B$17=1,0,(VLOOKUP($D$21,Tablas!$A$1061:$G$1127,4,TRUE))) -> 11611.875 | E56: =IF($B$17=1,0,(VLOOKUP($D$21,Tablas!$A$1061:$G$1127,5,TRUE))) -> 0
A57: Prima para hijo (s) | C57: =IF($B$17=1, (IF($B$15=0, 0, (IF($B$19>$B$15, (VLOOKUP($B$15,Tablas!$A$1128:$G$1130,3,TRUE)), (IF($B$15>4,(IF($B$19=0, (VLOOKUP(3,Tablas!$A$1128:$G$1130,3,TRUE)), (IF($B$19=1, (VLOOKUP(3,Tablas!$A$1128:$G$1130,3,TRUE)), (IF($B$19=2, (VLOOKUP(3,Tablas!$A$1128:$G$1130,3,TRUE)), (VLOOKUP(3,Tablas!$A$1128:$G$1130,3,TRUE)))))))), (IF($B$15=4,(IF(4-$B$19=0,(VLOOKUP(2,Tablas!$A$1128:$G$1130,3,TRUE)), (IF(4-$B$19=1,(VLOOKUP(2,Tablas!$A$1128:$G$1130,3,TRUE)), (IF(4-$B$19=2, (VLOOKUP(2,Tablas!$A$1128:$G$1130,3,TRUE)), (VLOOKUP(3,Tablas!$A$1128:$G$1130,3,TRUE)))))))), (IF($B$15=3,(IF(3-$B$19=0,(VLOOKUP(1,Tablas!$A$1128:$G$1130,3,TRUE)), (IF(3-$B$19=1,(VLOOKUP(1,Tablas!$A$1128:$G$1130,3,TRUE)), (IF(3-$B$19=2, (VLOOKUP(2,Tablas!$A$1128:$G$1130,3,TRUE)), (VLOOKUP(3,Tablas!$A$1128:$G$1130,3,TRUE)))))))), (IF($B$15=2,(IF(2-$B$19=0, 0, (IF(2-$B$19=1,(VLOOKUP(1,Tablas!$A$1128:$G$1130,3,TRUE)), (IF(2-$B$19=2, (VLOOKUP(2,Tablas!$A$1128:$G$1130,3,TRUE)), 0)))))), (IF($B$15=1,(IF(1-$B$19=0, 0, (IF(1-$B$19=1,(VLOOKUP(1,Tablas!$A$1128:$G$1130,3,TRUE)),0)))),0)))))))))))))), (IF($B$15=0, 0, (IF($B$19>$B$15, (VLOOKUP($B$15,Tablas!$A$1128:$G$1130,3,TRUE)), (IF($B$15=4,(IF(4-$B$19=0, 0, (IF(4-$B$19=1, (VLOOKUP(1,Tablas!$A$1128:$G$1130,3,TRUE)), (IF(4-$B$19=2, (VLOOKUP(2,Tablas!$A$1128:$G$1130,3,TRUE)), (IF(4-$B$19=3, (VLOOKUP(3,Tablas!$A$1128:$G$1130,3,TRUE)), (IF(4-$B$19=4, (VLOOKUP(3,Tablas!$A$1128:$G$1130,3,TRUE)), 0)))))))))), (IF($B$15=5,(IF(5-$B$19=0, (VLOOKUP(1,Tablas!$A$1128:$G$1130,3,TRUE)), (IF(5-$B$19=1, (VLOOKUP(1,Tablas!$A$1128:$G$1130,3,TRUE)), (IF(5-$B$19=2, (VLOOKUP(2,Tablas!$A$1128:$G$1130,3,TRUE)), (IF(5-$B$19=3, (VLOOKUP(3,Tablas!$A$1128:$G$1130,3,TRUE)), (IF(5-$B$19=4, (VLOOKUP(3,Tablas!$A$1128:$G$1130,3,TRUE)), (VLOOKUP(3,Tablas!$A$1128:$G$1130,3,TRUE)))))))))))), (IF($B$15=6,(IF(6-$B$19=0, (VLOOKUP(2,Tablas!$A$1128:$G$1130,3,TRUE)), (IF(6-$B$19=1, (VLOOKUP(2,Tablas!$A$1128:$G$1130,3,TRUE)), (IF(6-$B$19=2, (VLOOKUP(2,Tablas!$A$1128:$G$1130,3,TRUE)), (IF(6-$B$19=3, (VLOOKUP(3,Tablas!$A$1128:$G$1130,3,TRUE)), (IF(6-$B$19=4, (VLOOKUP(3,Tablas!$A$1128:$G$1130,3,TRUE)), (VLOOKUP(3,Tablas!$A$1128:$G$1130,3,TRUE)))))))))))), (IF($B$15>6,(IF(7-$B$19=0, (VLOOKUP(3,Tablas!$A$1128:$G$1130,3,TRUE)), (IF(7-$B$19=1, (VLOOKUP(3,Tablas!$A$1128:$G$1130,3,TRUE)), (IF(7-$B$19=2, (VLOOKUP(3,Tablas!$A$1128:$G$1130,3,TRUE)), (IF(7-$B$19=3, (VLOOKUP(3,Tablas!$A$1128:$G$1130,3,TRUE)), (IF(7-$B$19=4, (VLOOKUP(3,Tablas!$A$1128:$G$1130,3,TRUE)), (VLOOKUP(3,Tablas!$A$1128:$G$1130,3,TRUE)))))))))))), (IF($B$15=3,(IF(3-$B$19=0,0, (IF(3-$B$19=1,(VLOOKUP(1,Tablas!$A$1128:$G$1130,3,TRUE)), (IF(3-$B$19=2, (VLOOKUP(2,Tablas!$A$1128:$G$1130,3,TRUE)), (VLOOKUP(3,Tablas!$A$1128:$G$1130,3,TRUE)))))))), (IF($B$15=2,(IF(2-$B$19=0, 0, (IF(2-$B$19=1,(VLOOKUP(1,Tablas!$A$1128:$G$1130,3,TRUE)), (IF(2-$B$19=2, (VLOOKUP(2,Tablas!$A$1128:$G$1130,3,TRUE)), 0)))))), (IF($B$15=1,(IF(1-$B$19=0, 0, (IF(1-$B$19=1,(VLOOKUP(1,Tablas!$A$1128:$G$1130,3,TRUE)),0)))),0))))))))))))))))))) -> 4610.1 | D57: =IF($B$17=1, (IF($B$15=0, 0, (IF($B$19>$B$15, (VLOOKUP($B$15,Tablas!$A$1128:$G$1130,4,TRUE)), (IF($B$15>4,(IF($B$19=0, (VLOOKUP(3,Tablas!$A$1128:$G$1130,4,TRUE)), (IF($B$19=1, (VLOOKUP(3,Tablas!$A$1128:$G$1130,4,TRUE)), (IF($B$19=2, (VLOOKUP(3,Tablas!$A$1128:$G$1130,4,TRUE)), (VLOOKUP(3,Tablas!$A$1128:$G$1130,4,TRUE)))))))), (IF($B$15=4,(IF(4-$B$19=0,(VLOOKUP(2,Tablas!$A$1128:$G$1130,4,TRUE)), (IF(4-$B$19=1,(VLOOKUP(2,Tablas!$A$1128:$G$1130,4,TRUE)), (IF(4-$B$19=2, (VLOOKUP(2,Tablas!$A$1128:$G$1130,4,TRUE)), (VLOOKUP(3,Tablas!$A$1128:$G$1130,4,TRUE)))))))), (IF($B$15=3,(IF(3-$B$19=0,(VLOOKUP(1,Tablas!$A$1128:$G$1130,4,TRUE)), (IF(3-$B$19=1,(VLOOKUP(1,Tablas!$A$1128:$G$1130,4,TRUE)), (IF(3-$B$19=2, (VLOOKUP(2,Tablas!$A$1128:$G$1130,4,TRUE)), (VLOOKUP(3,Tablas!$A$1128:$G$1130,4,TRUE)))))))), (IF($B$15=2,(IF(2-$B$19=0, 0, (IF(2-$B$19=1,(VLOOKUP(1,Tablas!$A$1128:$G$1130,4,TRUE)), (IF(2-$B$19=2, (VLOOKUP(2,Tablas!$A$1128:$G$1130,4,TRUE)), 0)))))), (IF($B$15=1,(IF(1-$B$19=0, 0, (IF(1-$B$19=1,(VLOOKUP(1,Tablas!$A$1128:$G$1130,4,TRUE)),0)))),0)))))))))))))), (IF($B$15=0, 0, (IF($B$19>$B$15, (VLOOKUP($B$15,Tablas!$A$1128:$G$1130,4,TRUE)), (IF($B$15=4,(IF(4-$B$19=0, 0, (IF(4-$B$19=1, (VLOOKUP(1,Tablas!$A$1128:$G$1130,4,TRUE)), (IF(4-$B$19=2, (VLOOKUP(2,Tablas!$A$1128:$G$1130,4,TRUE)), (IF(4-$B$19=3, (VLOOKUP(3,Tablas!$A$1128:$G$1130,4,TRUE)), (IF(4-$B$19=4, (VLOOKUP(3,Tablas!$A$1128:$G$1130,4,TRUE)), 0)))))))))), (IF($B$15=5,(IF(5-$B$19=0, (VLOOKUP(1,Tablas!$A$1128:$G$1130,4,TRUE)), (IF(5-$B$19=1, (VLOOKUP(1,Tablas!$A$1128:$G$1130,4,TRUE)), (IF(5-$B$19=2, (VLOOKUP(2,Tablas!$A$1128:$G$1130,4,TRUE)), (IF(5-$B$19=3, (VLOOKUP(3,Tablas!$A$1128:$G$1130,4,TRUE)), (IF(5-$B$19=4, (VLOOKUP(3,Tablas!$A$1128:$G$1130,4,TRUE)), (VLOOKUP(3,Tablas!$A$1128:$G$1130,4,TRUE)))))))))))), (IF($B$15=6,(IF(6-$B$19=0, (VLOOKUP(2,Tablas!$A$1128:$G$1130,4,TRUE)), (IF(6-$B$19=1, (VLOOKUP(2,Tablas!$A$1128:$G$1130,4,TRUE)), (IF(6-$B$19=2, (VLOOKUP(2,Tablas!$A$1128:$G$1130,4,TRUE)), (IF(6-$B$19=3, (VLOOKUP(3,Tablas!$A$1128:$G$1130,4,TRUE)), (IF(6-$B$19=4, (VLOOKUP(3,Tablas!$A$1128:$G$1130,4,TRUE)), (VLOOKUP(3,Tablas!$A$1128:$G$1130,4,TRUE)))))))))))), (IF($B$15>6,(IF(7-$B$19=0, (VLOOKUP(3,Tablas!$A$1128:$G$1130,4,TRUE)), (IF(7-$B$19=1, (VLOOKUP(3,Tablas!$A$1128:$G$1130,4,TRUE)), (IF(7-$B$19=2, (VLOOKUP(3,Tablas!$A$1128:$G$1130,4,TRUE)), (IF(7-$B$19=3, (VLOOKUP(3,Tablas!$A$1128:$G$1130,4,TRUE)), (IF(7-$B$19=4, (VLOOKUP(3,Tablas!$A$1128:$G$1130,4,TRUE)), (VLOOKUP(3,Tablas!$A$1128:$G$1130,4,TRUE)))))))))))), (IF($B$15=3,(IF(3-$B$19=0,0, (IF(3-$B$19=1,(VLOOKUP(1,Tablas!$A$1128:$G$1130,4,TRUE)), (IF(3-$B$19=2, (VLOOKUP(2,Tablas!$A$1128:$G$1130,4,TRUE)), (VLOOKUP(3,Tablas!$A$1128:$G$1130,4,TRUE)))))))), (IF($B$15=2,(IF(2-$B$19=0, 0, (IF(2-$B$19=1,(VLOOKUP(1,Tablas!$A$1128:$G$1130,4,TRUE)), (IF(2-$B$19=2, (VLOOKUP(2,Tablas!$A$1128:$G$1130,4,TRUE)), 0)))))), (IF($B$15=1,(IF(1-$B$19=0, 0, (IF(1-$B$19=1,(VLOOKUP(1,Tablas!$A$1128:$G$1130,4,TRUE)),0)))),0))))))))))))))))))) -> 2974.675 | E57: =IF($B$17=1, (IF($B$15=0, 0, (IF($B$19>$B$15, (VLOOKUP($B$15,Tablas!$A$1128:$G$1130,5,TRUE)), (IF($B$15>4,(IF($B$19=0, (VLOOKUP(3,Tablas!$A$1128:$G$1130,5,TRUE)), (IF($B$19=1, (VLOOKUP(3,Tablas!$A$1128:$G$1130,5,TRUE)), (IF($B$19=2, (VLOOKUP(3,Tablas!$A$1128:$G$1130,5,TRUE)), (VLOOKUP(3,Tablas!$A$1128:$G$1130,5,TRUE)))))))), (IF($B$15=4,(IF(4-$B$19=0,(VLOOKUP(2,Tablas!$A$1128:$G$1130,5,TRUE)), (IF(4-$B$19=1,(VLOOKUP(2,Tablas!$A$1128:$G$1130,5,TRUE)), (IF(4-$B$19=2, (VLOOKUP(2,Tablas!$A$1128:$G$1130,5,TRUE)), (VLOOKUP(3,Tablas!$A$1128:$G$1130,5,TRUE)))))))), (IF($B$15=3,(IF(3-$B$19=0,(VLOOKUP(1,Tablas!$A$1128:$G$1130,5,TRUE)), (IF(3-$B$19=1,(VLOOKUP(1,Tablas!$A$1128:$G$1130,5,TRUE)), (IF(3-$B$19=2, (VLOOKUP(2,Tablas!$A$1128:$G$1130,5,TRUE)), (VLOOKUP(3,Tablas!$A$1128:$G$1130,5,TRUE)))))))), (IF($B$15=2,(IF(2-$B$19=0, 0, (IF(2-$B$19=1,(VLOOKUP(1,Tablas!$A$1128:$G$1130,5,TRUE)), (IF(2-$B$19=2, (VLOOKUP(2,Tablas!$A$1128:$G$1130,5,TRUE)), 0)))))), (IF($B$15=1,(IF(1-$B$19=0, 0, (IF(1-$B$19=1,(VLOOKUP(1,Tablas!$A$1128:$G$1130,5,TRUE)),0)))),0)))))))))))))), (IF($B$15=0, 0, (IF($B$19>$B$15, (VLOOKUP($B$15,Tablas!$A$1128:$G$1130,5,TRUE)), (IF($B$15=4,(IF(4-$B$19=0, 0, (IF(4-$B$19=1, (VLOOKUP(1,Tablas!$A$1128:$G$1130,5,TRUE)), (IF(4-$B$19=2, (VLOOKUP(2,Tablas!$A$1128:$G$1130,5,TRUE)), (IF(4-$B$19=3, (VLOOKUP(3,Tablas!$A$1128:$G$1130,5,TRUE)), (IF(4-$B$19=4, (VLOOKUP(3,Tablas!$A$1128:$G$1130,5,TRUE)), 0)))))))))), (IF($B$15=5,(IF(5-$B$19=0, (VLOOKUP(1,Tablas!$A$1128:$G$1130,5,TRUE)), (IF(5-$B$19=1, (VLOOKUP(1,Tablas!$A$1128:$G$1130,5,TRUE)), (IF(5-$B$19=2, (VLOOKUP(2,Tablas!$A$1128:$G$1130,5,TRUE)), (IF(5-$B$19=3, (VLOOKUP(3,Tablas!$A$1128:$G$1130,5,TRUE)), (IF(5-$B$19=4, (VLOOKUP(3,Tablas!$A$1128:$G$1130,5,TRUE)), (VLOOKUP(3,Tablas!$A$1128:$G$1130,5,TRUE)))))))))))), (IF($B$15=6,(IF(6-$B$19=0, (VLOOKUP(2,Tablas!$A$1128:$G$1130,5,TRUE)), (IF(6-$B$19=1, (VLOOKUP(2,Tablas!$A$1128:$G$1130,5,TRUE)), (IF(6-$B$19=2, (VLOOKUP(2,Tablas!$A$1128:$G$1130,5,TRUE)), (IF(6-$B$19=3, (VLOOKUP(3,Tablas!$A$1128:$G$1130,5,TRUE)), (IF(6-$B$19=4, (VLOOKUP(3,Tablas!$A$1128:$G$1130,5,TRUE)), (VLOOKUP(3,Tablas!$A$1128:$G$1130,5,TRUE)))))))))))), (IF($B$15>6,(IF(7-$B$19=0, (VLOOKUP(3,Tablas!$A$1128:$G$1130,5,TRUE)), (IF(7-$B$19=1, (VLOOKUP(3,Tablas!$A$1128:$G$1130,5,TRUE)), (IF(7-$B$19=2, (VLOOKUP(3,Tablas!$A$1128:$G$1130,5,TRUE)), (IF(7-$B$19=3, (VLOOKUP(3,Tablas!$A$1128:$G$1130,5,TRUE)), (IF(7-$B$19=4, (VLOOKUP(3,Tablas!$A$1128:$G$1130,5,TRUE)), (VLOOKUP(3,Tablas!$A$1128:$G$1130,5,TRUE)))))))))))), (IF($B$15=3,(IF(3-$B$19=0,0, (IF(3-$B$19=1,(VLOOKUP(1,Tablas!$A$1128:$G$1130,5,TRUE)), (IF(3-$B$19=2, (VLOOKUP(2,Tablas!$A$1128:$G$1130,5,TRUE)), (VLOOKUP(3,Tablas!$A$1128:$G$1130,5,TRUE)))))))), (IF($B$15=2,(IF(2-$B$19=0, 0, (IF(2-$B$19=1,(VLOOKUP(1,Tablas!$A$1128:$G$1130,5,TRUE)), (IF(2-$B$19=2, (VLOOKUP(2,Tablas!$A$1128:$G$1130,5,TRUE)), 0)))))), (IF($B$15=1,(IF(1-$B$19=0, 0, (IF(1-$B$19=1,(VLOOKUP(1,Tablas!$A$1128:$G$1130,5,TRUE)),0)))),0))))))))))))))))))) -> 0
A58: Total de Prima neta | C58: =SUM(C55:C57) -> 35696.65 | D58: =SUM(D55:D57) -> 23031.25 | E58: 0
A59: Tarifa administrativa anual | C59: 75 | D59: 75 | E59: 75
A60: IVA (12%) | C60: =(C58+C59)*'INGRESO DE DATOS'!$S$30 -> 4292.598 | D60: =(D58+D59)*'INGRESO DE DATOS'!$S$30 -> 2772.75 | E60: =(E31+E32+E33)*5%/4 -> 0
A61: ITBMS (7%) | C61: ='Global Major Medical'!C44 -> 0 | D61: =+D59*7% + ((D31+D32+D33)*0.1*0.07)/4 -> 151.8125 | E61: 5.25
A62: TOTAL de primera cuota | C62: =SUM(C58:C61) -> 40064.248 | D62: =SUM(D58:D61) -> 26030.8125 | E62: 80.25
A63: Costo de tarifa trimestral 2 a 4 | C63: =C62-C59*'INGRESO DE DATOS'!$T$30 -> 39980.248 | D63: =D62-D59*'INGRESO DE DATOS'!$T$30 -> 25946.8125 | E63: =(E58 + E60)+((E31+E32+E33)*0.1*0.07)/4 -> 0
A64: TOTAL ANUAL | C64: =C62+(C63*3) -> 160004.992 | D64: =D62+(D63*3) -> 103871.25 | E64: 80.25
A65: Ahorros en tarifas de prima para Dependientes | C65: =IF($B$17=1,IF($B$15=0,0,IF($B$19=0,0,IF($B$19=1,(VLOOKUP(1,Tablas!$A$1128:$G$1130,3,TRUE)),(VLOOKUP(2,Tablas!$A$1128:$G$1130,3,TRUE))))), IF($B$15=0,0,IF($B$19=0,0,IF($B$19=1,(VLOOKUP(1,Tablas!$A$1128:$G$1130,3,TRUE)),IF($B$19=2,(VLOOKUP(2,Tablas!$A$1128:$G$1130,3,TRUE)), (VLOOKUP(3,Tablas!$A$1128:$G$1130,3,TRUE))))))) -> 4610.1 | D65: =IF($B$17=1,IF($B$15=0,0,IF($B$19=0,0,IF($B$19=1,(VLOOKUP(1,Tablas!$A$1128:$G$1130,4,TRUE)),(VLOOKUP(2,Tablas!$A$1128:$G$1130,4,TRUE))))), IF($B$15=0,0,IF($B$19=0,0,IF($B$19=1,(VLOOKUP(1,Tablas!$A$1128:$G$1130,4,TRUE)),IF($B$19=2,(VLOOKUP(2,Tablas!$A$1128:$G$1130,4,TRUE)), (VLOOKUP(3,Tablas!$A$1128:$G$1130,4,TRUE))))))) -> 2974.675 | E65: =IF($B$17=1,IF($B$15=0,0,IF($B$19=0,0,IF($B$19=1,(VLOOKUP(1,Tablas!$A$1128:$G$1130,5,TRUE)),(VLOOKUP(2,Tablas!$A$1128:$G$1130,5,TRUE))))), IF($B$15=0,0,IF($B$19=0,0,IF($B$19=1,(VLOOKUP(1,Tablas!$A$1128:$G$1130,5,TRUE)),IF($B$19=2,(VLOOKUP(2,Tablas!$A$1128:$G$1130,5,TRUE)), (VLOOKUP(3,Tablas!$A$1128:$G$1130,5,TRUE))))))) -> 0
A67: TARIFAS MENSUALES
A68: Prima para Asegurado Titular | C68: =VLOOKUP($B$21,Tablas!$A$986:$G$1052,3,TRUE) -> 4442.293333 | D68: =VLOOKUP($B$21,Tablas!$A$986:$G$1052,4,TRUE) -> 2866.08 | E68: =VLOOKUP($B$21,Tablas!$A$986:$G$1052,5,TRUE) -> 0
A69: Prima para conyuge | C69: =IF($B$17=1,0,(VLOOKUP($D$21,Tablas!$A$986:$G$1052,3,TRUE))) -> 6108.293333 | D69: =IF($B$17=1,0,(VLOOKUP($D$21,Tablas!$A$986:$G$1052,4,TRUE))) -> 3941 | E69: =IF($B$17=1,0,(VLOOKUP($D$21,Tablas!$A$986:$G$1052,5,TRUE))) -> 0
A70: Prima para hijo (s) | C70: =IF($B$17=1, (IF($B$15=0, 0, (IF($B$19>$B$15, (VLOOKUP($B$15,Tablas!$A$1053:$G$1055,3,TRUE)), (IF($B$15>4,(IF($B$19=0, (VLOOKUP(3,Tablas!$A$1053:$G$1055,3,TRUE)), (IF($B$19=1, (VLOOKUP(3,Tablas!$A$1053:$G$1055,3,TRUE)), (IF($B$19=2, (VLOOKUP(3,Tablas!$A$1053:$G$1055,3,TRUE)), (VLOOKUP(3,Tablas!$A$1053:$G$1055,3,TRUE)))))))), (IF($B$15=4,(IF(4-$B$19=0,(VLOOKUP(2,Tablas!$A$1053:$G$1055,3,TRUE)), (IF(4-$B$19=1,(VLOOKUP(2,Tablas!$A$1053:$G$1055,3,TRUE)), (IF(4-$B$19=2, (VLOOKUP(2,Tablas!$A$1053:$G$1055,3,TRUE)), (VLOOKUP(3,Tablas!$A$1053:$G$1055,3,TRUE)))))))), (IF($B$15=3,(IF(3-$B$19=0,(VLOOKUP(1,Tablas!$A$1053:$G$1055,3,TRUE)), (IF(3-$B$19=1,(VLOOKUP(1,Tablas!$A$1053:$G$1055,3,TRUE)), (IF(3-$B$19=2, (VLOOKUP(2,Tablas!$A$1053:$G$1055,3,TRUE)), (VLOOKUP(3,Tablas!$A$1053:$G$1055,3,TRUE)))))))), (IF($B$15=2,(IF(2-$B$19=0, 0, (IF(2-$B$19=1,(VLOOKUP(1,Tablas!$A$1053:$G$1055,3,TRUE)), (IF(2-$B$19=2, (VLOOKUP(2,Tablas!$A$1053:$G$1055,3,TRUE)), 0)))))), (IF($B$15=1,(IF(1-$B$19=0, 0, (IF(1-$B$19=1,(VLOOKUP(1,Tablas!$A$1053:$G$1055,3,TRUE)),0)))),0)))))))))))))), (IF($B$15=0, 0, (IF($B$19>$B$15, (VLOOKUP($B$15,Tablas!$A$1053:$G$1055,3,TRUE)), (IF($B$15=4,(IF(4-$B$19=0, 0, (IF(4-$B$19=1, (VLOOKUP(1,Tablas!$A$1053:$G$1055,3,TRUE)), (IF(4-$B$19=2, (VLOOKUP(2,Tablas!$A$1053:$G$1055,3,TRUE)), (IF(4-$B$19=3, (VLOOKUP(3,Tablas!$A$1053:$G$1055,3,TRUE)), (IF(4-$B$19=4, (VLOOKUP(3,Tablas!$A$1053:$G$1055,3,TRUE)), 0)))))))))), (IF($B$15=5,(IF(5-$B$19=0, (VLOOKUP(1,Tablas!$A$1053:$G$1055,3,TRUE)), (IF(5-$B$19=1, (VLOOKUP(1,Tablas!$A$1053:$G$1055,3,TRUE)), (IF(5-$B$19=2, (VLOOKUP(2,Tablas!$A$1053:$G$1055,3,TRUE)), (IF(5-$B$19=3, (VLOOKUP(3,Tablas!$A$1053:$G$1055,3,TRUE)), (IF(5-$B$19=4, (VLOOKUP(3,Tablas!$A$1053:$G$1055,3,TRUE)), (VLOOKUP(3,Tablas!$A$1053:$G$1055,3,TRUE)))))))))))), (IF($B$15=6,(IF(6-$B$19=0, (VLOOKUP(2,Tablas!$A$1053:$G$1055,3,TRUE)), (IF(6-$B$19=1, (VLOOKUP(2,Tablas!$A$1053:$G$1055,3,TRUE)), (IF(6-$B$19=2, (VLOOKUP(2,Tablas!$A$1053:$G$1055,3,TRUE)), (IF(6-$B$19=3, (VLOOKUP(3,Tablas!$A$1053:$G$1055,3,TRUE)), (IF(6-$B$19=4, (VLOOKUP(3,Tablas!$A$1053:$G$1055,3,TRUE)), (VLOOKUP(3,Tablas!$A$1053:$G$1055,3,TRUE)))))))))))), (IF($B$15>6,(IF(7-$B$19=0, (VLOOKUP(3,Tablas!$A$1053:$G$1055,3,TRUE)), (IF(7-$B$19=1, (VLOOKUP(3,Tablas!$A$1053:$G$1055,3,TRUE)), (IF(7-$B$19=2, (VLOOKUP(3,Tablas!$A$1053:$G$1055,3,TRUE)), (IF(7-$B$19=3, (VLOOKUP(3,Tablas!$A$1053:$G$1055,3,TRUE)), (IF(7-$B$19=4, (VLOOKUP(3,Tablas!$A$1053:$G$1055,3,TRUE)), (VLOOKUP(3,Tablas!$A$1053:$G$1055,3,TRUE)))))))))))), (IF($B$15=3,(IF(3-$B$19=0,0, (IF(3-$B$19=1,(VLOOKUP(1,Tablas!$A$1053:$G$1055,3,TRUE)), (IF(3-$B$19=2, (VLOOKUP(2,Tablas!$A$1053:$G$1055,3,TRUE)), (VLOOKUP(3,Tablas!$A$1053:$G$1055,3,TRUE)))))))), (IF($B$15=2,(IF(2-$B$19=0, 0, (IF(2-$B$19=1,(VLOOKUP(1,Tablas!$A$1053:$G$1055,3,TRUE)), (IF(2-$B$19=2, (VLOOKUP(2,Tablas!$A$1053:$G$1055,3,TRUE)), 0)))))), (IF($B$15=1,(IF(1-$B$19=0, 0, (IF(1-$B$19=1,(VLOOKUP(1,Tablas!$A$1053:$G$1055,3,TRUE)),0)))),0))))))))))))))))))) -> 1564.64 | D70: =IF($B$17=1, (IF($B$15=0, 0, (IF($B$19>$B$15, (VLOOKUP($B$15,Tablas!$A$1053:$G$1055,4,TRUE)), (IF($B$15>4,(IF($B$19=0, (VLOOKUP(3,Tablas!$A$1053:$G$1055,4,TRUE)), (IF($B$19=1, (VLOOKUP(3,Tablas!$A$1053:$G$1055,4,TRUE)), (IF($B$19=2, (VLOOKUP(3,Tablas!$A$1053:$G$1055,4,TRUE)), (VLOOKUP(3,Tablas!$A$1053:$G$1055,4,TRUE)))))))), (IF($B$15=4,(IF(4-$B$19=0,(VLOOKUP(2,Tablas!$A$1053:$G$1055,4,TRUE)), (IF(4-$B$19=1,(VLOOKUP(2,Tablas!$A$1053:$G$1055,4,TRUE)), (IF(4-$B$19=2, (VLOOKUP(2,Tablas!$A$1053:$G$1055,4,TRUE)), (VLOOKUP(3,Tablas!$A$1053:$G$1055,4,TRUE)))))))), (IF($B$15=3,(IF(3-$B$19=0,(VLOOKUP(1,Tablas!$A$1053:$G$1055,4,TRUE)), (IF(3-$B$19=1,(VLOOKUP(1,Tablas!$A$1053:$G$1055,4,TRUE)), (IF(3-$B$19=2, (VLOOKUP(2,Tablas!$A$1053:$G$1055,4,TRUE)), (VLOOKUP(3,Tablas!$A$1053:$G$1055,4,TRUE)))))))), (IF($B$15=2,(IF(2-$B$19=0, 0, (IF(2-$B$19=1,(VLOOKUP(1,Tablas!$A$1053:$G$1055,4,TRUE)), (IF(2-$B$19=2, (VLOOKUP(2,Tablas!$A$1053:$G$1055,4,TRUE)), 0)))))), (IF($B$15=1,(IF(1-$B$19=0, 0, (IF(1-$B$19=1,(VLOOKUP(1,Tablas!$A$1053:$G$1055,4,TRUE)),0)))),0)))))))))))))), (IF($B$15=0, 0, (IF($B$19>$B$15, (VLOOKUP($B$15,Tablas!$A$1053:$G$1055,4,TRUE)), (IF($B$15=4,(IF(4-$B$19=0, 0, (IF(4-$B$19=1, (VLOOKUP(1,Tablas!$A$1053:$G$1055,4,TRUE)), (IF(4-$B$19=2, (VLOOKUP(2,Tablas!$A$1053:$G$1055,4,TRUE)), (IF(4-$B$19=3, (VLOOKUP(3,Tablas!$A$1053:$G$1055,4,TRUE)), (IF(4-$B$19=4, (VLOOKUP(3,Tablas!$A$1053:$G$1055,4,TRUE)), 0)))))))))), (IF($B$15=5,(IF(5-$B$19=0, (VLOOKUP(1,Tablas!$A$1053:$G$1055,4,TRUE)), (IF(5-$B$19=1, (VLOOKUP(1,Tablas!$A$1053:$G$1055,4,TRUE)), (IF(5-$B$19=2, (VLOOKUP(2,Tablas!$A$1053:$G$1055,4,TRUE)), (IF(5-$B$19=3, (VLOOKUP(3,Tablas!$A$1053:$G$1055,4,TRUE)), (IF(5-$B$19=4, (VLOOKUP(3,Tablas!$A$1053:$G$1055,4,TRUE)), (VLOOKUP(3,Tablas!$A$1053:$G$1055,4,TRUE)))))))))))), (IF($B$15=6,(IF(6-$B$19=0, (VLOOKUP(2,Tablas!$A$1053:$G$1055,4,TRUE)), (IF(6-$B$19=1, (VLOOKUP(2,Tablas!$A$1053:$G$1055,4,TRUE)), (IF(6-$B$19=2, (VLOOKUP(2,Tablas!$A$1053:$G$1055,4,TRUE)), (IF(6-$B$19=3, (VLOOKUP(3,Tablas!$A$1053:$G$1055,4,TRUE)), (IF(6-$B$19=4, (VLOOKUP(3,Tablas!$A$1053:$G$1055,4,TRUE)), (VLOOKUP(3,Tablas!$A$1053:$G$1055,4,TRUE)))))))))))), (IF($B$15>6,(IF(7-$B$19=0, (VLOOKUP(3,Tablas!$A$1053:$G$1055,4,TRUE)), (IF(7-$B$19=1, (VLOOKUP(3,Tablas!$A$1053:$G$1055,4,TRUE)), (IF(7-$B$19=2, (VLOOKUP(3,Tablas!$A$1053:$G$1055,4,TRUE)), (IF(7-$B$19=3, (VLOOKUP(3,Tablas!$A$1053:$G$1055,4,TRUE)), (IF(7-$B$19=4, (VLOOKUP(3,Tablas!$A$1053:$G$1055,4,TRUE)), (VLOOKUP(3,Tablas!$A$1053:$G$1055,4,TRUE)))))))))))), (IF($B$15=3,(IF(3-$B$19=0,0, (IF(3-$B$19=1,(VLOOKUP(1,Tablas!$A$1053:$G$1055,4,TRUE)), (IF(3-$B$19=2, (VLOOKUP(2,Tablas!$A$1053:$G$1055,4,TRUE)), (VLOOKUP(3,Tablas!$A$1053:$G$1055,4,TRUE)))))))), (IF($B$15=2,(IF(2-$B$19=0, 0, (IF(2-$B$19=1,(VLOOKUP(1,Tablas!$A$1053:$G$1055,4,TRUE)), (IF(2-$B$19=2, (VLOOKUP(2,Tablas!$A$1053:$G$1055,4,TRUE)), 0)))))), (IF($B$15=1,(IF(1-$B$19=0, 0, (IF(1-$B$19=1,(VLOOKUP(1,Tablas!$A$1053:$G$1055,4,TRUE)),0)))),0))))))))))))))))))) -> 1009.586667 | E70: =IF($B$17=1, (IF($B$15=0, 0, (IF($B$19>$B$15, (VLOOKUP($B$15,Tablas!$A$1053:$G$1055,5,TRUE)), (IF($B$15>4,(IF($B$19=0, (VLOOKUP(3,Tablas!$A$1053:$G$1055,5,TRUE)), (IF($B$19=1, (VLOOKUP(3,Tablas!$A$1053:$G$1055,5,TRUE)), (IF($B$19=2, (VLOOKUP(3,Tablas!$A$1053:$G$1055,5,TRUE)), (VLOOKUP(3,Tablas!$A$1053:$G$1055,5,TRUE)))))))), (IF($B$15=4,(IF(4-$B$19=0,(VLOOKUP(2,Tablas!$A$1053:$G$1055,5,TRUE)), (IF(4-$B$19=1,(VLOOKUP(2,Tablas!$A$1053:$G$1055,5,TRUE)), (IF(4-$B$19=2, (VLOOKUP(2,Tablas!$A$1053:$G$1055,5,TRUE)), (VLOOKUP(3,Tablas!$A$1053:$G$1055,5,TRUE)))))))), (IF($B$15=3,(IF(3-$B$19=0,(VLOOKUP(1,Tablas!$A$1053:$G$1055,5,TRUE)), (IF(3-$B$19=1,(VLOOKUP(1,Tablas!$A$1053:$G$1055,5,TRUE)), (IF(3-$B$19=2, (VLOOKUP(2,Tablas!$A$1053:$G$1055,5,TRUE)), (VLOOKUP(3,Tablas!$A$1053:$G$1055,5,TRUE)))))))), (IF($B$15=2,(IF(2-$B$19=0, 0, (IF(2-$B$19=1,(VLOOKUP(1,Tablas!$A$1053:$G$1055,5,TRUE)), (IF(2-$B$19=2, (VLOOKUP(2,Tablas!$A$1053:$G$1055,5,TRUE)), 0)))))), (IF($B$15=1,(IF(1-$B$19=0, 0, (IF(1-$B$19=1,(VLOOKUP(1,Tablas!$A$1053:$G$1055,5,TRUE)),0)))),0)))))))))))))), (IF($B$15=0, 0, (IF($B$19>$B$15, (VLOOKUP($B$15,Tablas!$A$1053:$G$1055,5,TRUE)), (IF($B$15=4,(IF(4-$B$19=0, 0, (IF(4-$B$19=1, (VLOOKUP(1,Tablas!$A$1053:$G$1055,5,TRUE)), (IF(4-$B$19=2, (VLOOKUP(2,Tablas!$A$1053:$G$1055,5,TRUE)), (IF(4-$B$19=3, (VLOOKUP(3,Tablas!$A$1053:$G$1055,5,TRUE)), (IF(4-$B$19=4, (VLOOKUP(3,Tablas!$A$1053:$G$1055,5,TRUE)), 0)))))))))), (IF($B$15=5,(IF(5-$B$19=0, (VLOOKUP(1,Tablas!$A$1053:$G$1055,5,TRUE)), (IF(5-$B$19=1, (VLOOKUP(1,Tablas!$A$1053:$G$1055,5,TRUE)), (IF(5-$B$19=2, (VLOOKUP(2,Tablas!$A$1053:$G$1055,5,TRUE)), (IF(5-$B$19=3, (VLOOKUP(3,Tablas!$A$1053:$G$1055,5,TRUE)), (IF(5-$B$19=4, (VLOOKUP(3,Tablas!$A$1053:$G$1055,5,TRUE)), (VLOOKUP(3,Tablas!$A$1053:$G$1055,5,TRUE)))))))))))), (IF($B$15=6,(IF(6-$B$19=0, (VLOOKUP(2,Tablas!$A$1053:$G$1055,5,TRUE)), (IF(6-$B$19=1, (VLOOKUP(2,Tablas!$A$1053:$G$1055,5,TRUE)), (IF(6-$B$19=2, (VLOOKUP(2,Tablas!$A$1053:$G$1055,5,TRUE)), (IF(6-$B$19=3, (VLOOKUP(3,Tablas!$A$1053:$G$1055,5,TRUE)), (IF(6-$B$19=4, (VLOOKUP(3,Tablas!$A$1053:$G$1055,5,TRUE)), (VLOOKUP(3,Tablas!$A$1053:$G$1055,5,TRUE)))))))))))), (IF($B$15>6,(IF(7-$B$19=0, (VLOOKUP(3,Tablas!$A$1053:$G$1055,5,TRUE)), (IF(7-$B$19=1, (VLOOKUP(3,Tablas!$A$1053:$G$1055,5,TRUE)), (IF(7-$B$19=2, (VLOOKUP(3,Tablas!$A$1053:$G$1055,5,TRUE)), (IF(7-$B$19=3, (VLOOKUP(3,Tablas!$A$1053:$G$1055,5,TRUE)), (IF(7-$B$19=4, (VLOOKUP(3,Tablas!$A$1053:$G$1055,5,TRUE)), (VLOOKUP(3,Tablas!$A$1053:$G$1055,5,TRUE)))))))))))), (IF($B$15=3,(IF(3-$B$19=0,0, (IF(3-$B$19=1,(VLOOKUP(1,Tablas!$A$1053:$G$1055,5,TRUE)), (IF(3-$B$19=2, (VLOOKUP(2,Tablas!$A$1053:$G$1055,5,TRUE)), (VLOOKUP(3,Tablas!$A$1053:$G$1055,5,TRUE)))))))), (IF($B$15=2,(IF(2-$B$19=0, 0, (IF(2-$B$19=1,(VLOOKUP(1,Tablas!$A$1053:$G$1055,5,TRUE)), (IF(2-$B$19=2, (VLOOKUP(2,Tablas!$A$1053:$G$1055,5,TRUE)), 0)))))), (IF($B$15=1,(IF(1-$B$19=0, 0, (IF(1-$B$19=1,(VLOOKUP(1,Tablas!$A$1053:$G$1055,5,TRUE)),0)))),0))))))))))))))))))) -> 0
A71: Total de Prima neta | C71: =SUM(C68:C70) -> 12115.22667 | D71: =SUM(D68:D70) -> 7816.666667 | E71: 0
A72: Tarifa administrativa anual | C72: 75 | D72: 75 | E72: 75
A73: IVA (12%) | C73: =(C71+C72)*'INGRESO DE DATOS'!$S$30 -> 1462.8272 | D73: =(D71+D72)*'INGRESO DE DATOS'!$S$30 -> 947 | E73: =(E31+E32+E33)*5%/12 -> 0
A74: ITBMS (7%) | E74: =+E72*7% + ((E31+E32+E33)*0.12*0.07)/12 -> 5.25
A75: TOTAL de primera cuota | C75: =SUM(C71:C74) -> 13653.05387 | D75: =SUM(D71:D74) -> 8838.666667 | E75: =SUM(E71:E74) -> 80.25
A76: Costo de Tarifa mensual de 2 a 12 | C76: =C75-C72*'INGRESO DE DATOS'!$T$30 -> 13569.05387 | D76: =D75-D72*'INGRESO DE DATOS'!$T$30 -> 8754.666667 | E76: =(E71 + E73)+((E31+E32+E33)*0.12*0.07)/12 -> 0
A77: TOTAL ANUAL | C77: =C75+(C76*11) -> 162912.6464 | D77: =D75+(D76*11) -> 105140 | E77: 80.25
A78: Ahorros en tarifas de prima para Dependientes | C78: =IF($B$17=1,IF($B$15=0,0,IF($B$19=0,0,IF($B$19=1,(VLOOKUP(1,Tablas!$A$1053:$G$1055,3,TRUE)),(VLOOKUP(2,Tablas!$A$1053:$G$1055,3,TRUE))))), IF($B$15=0,0,IF($B$19=0,0,IF($B$19=1,(VLOOKUP(1,Tablas!$A$1053:$G$1055,3,TRUE)),IF($B$19=2,(VLOOKUP(2,Tablas!$A$1053:$G$1055,3,TRUE)), (VLOOKUP(3,Tablas!$A$1053:$G$1055,3,TRUE))))))) -> 1564.64 | D78: =IF($B$17=1,IF($B$15=0,0,IF($B$19=0,0,IF($B$19=1,(VLOOKUP(1,Tablas!$A$1053:$G$1055,4,TRUE)),(VLOOKUP(2,Tablas!$A$1053:$G$1055,4,TRUE))))), IF($B$15=0,0,IF($B$19=0,0,IF($B$19=1,(VLOOKUP(1,Tablas!$A$1053:$G$1055,4,TRUE)),IF($B$19=2,(VLOOKUP(2,Tablas!$A$1053:$G$1055,4,TRUE)), (VLOOKUP(3,Tablas!$A$1053:$G$1055,4,TRUE))))))) -> 1009.586667 | E78: =IF($B$17=1,IF($B$15=0,0,IF($B$19=0,0,IF($B$19=1,(VLOOKUP(1,Tablas!$A$1053:$G$1055,5,TRUE)),(VLOOKUP(2,Tablas!$A$1053:$G$1055,5,TRUE))))), IF($B$15=0,0,IF($B$19=0,0,IF($B$19=1,(VLOOKUP(1,Tablas!$A$1053:$G$1055,5,TRUE)),IF($B$19=2,(VLOOKUP(2,Tablas!$A$1053:$G$1055,5,TRUE)), (VLOOKUP(3,Tablas!$A$1053:$G$1055,5,TRUE))))))) -> 0
A80: Este presupuesto solamente tiene carácter informativo y en ningún momento expresa compromiso legal para suministrarle cobertura de seguro. La emisión de una póliza de seguro Bupa está sujeta a todas las evaluaciones de riesgo por parte de Bupa y a la recepción de todos los pagos de prima requeridos.

Sheet Global Elite
K1: RESUMEN DE BENEFICIOS | R1: RESUMEN DE BENEFICIOS | Y1: RESUMEN DE BENEFICIOS
A5: Cotización de Seguro Médico Internacional Global Elite Health Plan Tarifas en US$ | Validas: 1 de enero de 2026
A13: Nombre del Asegurado Titular | B13: =+'INGRESO DE DATOS'!$C$37 -> John Doe
A15: Número de adultos en la póliza | B15: =+'INGRESO DE DATOS'!$C$39 -> 2
A17: Número de Dependientes en la póliza | B17: =+'INGRESO DE DATOS'!$C$41 -> 2 | C17: =IF('INGRESO DE DATOS'!$P$2=TRUE, "Cotización para dependiente de 24 años","") -> 
A19: Número de Dependientes menores de 10 años | B19: =+'INGRESO DE DATOS'!$H$42 -> 1
A21: Edad del Asegurado Titular | B21: =+'INGRESO DE DATOS'!$C$43 -> 32 | E21: Edad del/la conyuge | G21: =+'INGRESO DE DATOS'!$C$45 -> 46
A23: Fecha de la cotización | B23: =NOW() -> 2026-01-12T09:32:49.510
A25: =IF('INGRESO DE DATOS'!P3=TRUE,"Variante con coaseguro fuera del país de residencia: SI","Variante con coaseguro fuera del país de residencia: NO") -> Variante con coaseguro fuera del país de residencia: NO
A27: DEDUCIBlES | C27: PLAN 1 | D27: PLAN 2 | E27: PLAN 3 | F27: PLAN 4 | G27: PLAN 5 | H27: PLAN 6
A28: En el país de residencia | C28: 250 | D28: 2000 | E28: 3500 | F28: 5000 | G28: 10000 | H28: 20000
A29: Fuera del país de residencia | C29: 5000 | D29: 2000 | E29: 3500 | F29: 5000 | G29: 10000 | H29: 20000
A31: TARIFAS ANUALES
A32: Prima para Asegurado Titular | C32: =VLOOKUP($B$21,Tablas!$A$6:$G$72,3,TRUE) -> 15722.45 | D32: =VLOOKUP($B$21,Tablas!$A$6:$G$72,4,TRUE) -> 13780.2 | E32: =VLOOKUP($B$21,Tablas!$A$6:$G$72,5,TRUE) -> 11153.7 | F32: =VLOOKUP($B$21,Tablas!$A$6:$G$72,6,TRUE) -> 9673 | G32: =VLOOKUP($B$21,Tablas!$A$6:$G$72,7,TRUE) -> 7307.45 | H32: =VLOOKUP($B$21,Tablas!$A$6:$H$72,8,TRUE) -> 5773.2
A33: Prima para conyuge | C33: =IF($B$15=1,0,(VLOOKUP($G$21,Tablas!$A$6:$G$72,3,TRUE))) -> 21559.4 | D33: =IF($B$15=1,0,(VLOOKUP($G$21,Tablas!$A$6:$G$72,4,TRUE))) -> 18896.35 | E33: =IF($B$15=1,0,(VLOOKUP($G$21,Tablas!$A$6:$G$72,5,TRUE))) -> 15092.6 | F33: =IF($B$15=1,0,(VLOOKUP($G$21,Tablas!$A$6:$G$72,6,TRUE))) -> 13088.3 | G33: =IF($B$15=1,0,(VLOOKUP($G$21,Tablas!$A$6:$G$72,7,TRUE))) -> 9890.6 | H33: =IF($B$15=1,0,(VLOOKUP($G$21,Tablas!$A$6:$H$72,8,TRUE))) -> 7813.2
A34: Prima para hijo (s) | C34: =IF($B$15=1, (IF($B$17=0, 0, (IF($B$19>$B$17, (VLOOKUP($B$17,Tablas!$A$73:$G$75,3,TRUE)), (IF($B$17>4,(IF($B$19=0, (VLOOKUP(3,Tablas!$A$73:$G$75,3,TRUE)), (IF($B$19=1, (VLOOKUP(3,Tablas!$A$73:$G$75,3,TRUE)), (IF($B$19=2, (VLOOKUP(3,Tablas!$A$73:$G$75,3,TRUE)), (VLOOKUP(3,Tablas!$A$73:$G$75,3,TRUE)))))))), (IF($B$17=4,(IF(4-$B$19=0,(VLOOKUP(2,Tablas!$A$73:$G$75,3,TRUE)), (IF(4-$B$19=1,(VLOOKUP(2,Tablas!$A$73:$G$75,3,TRUE)), (IF(4-$B$19=2, (VLOOKUP(2,Tablas!$A$73:$G$75,3,TRUE)), (VLOOKUP(3,Tablas!$A$73:$G$75,3,TRUE)))))))), (IF($B$17=3,(IF(3-$B$19=0,(VLOOKUP(1,Tablas!$A$73:$G$75,3,TRUE)), (IF(3-$B$19=1,(VLOOKUP(1,Tablas!$A$73:$G$75,3,TRUE)), (IF(3-$B$19=2, (VLOOKUP(2,Tablas!$A$73:$G$75,3,TRUE)), (VLOOKUP(3,Tablas!$A$73:$G$75,3,TRUE)))))))), (IF($B$17=2,(IF(2-$B$19=0, 0, (IF(2-$B$19=1,(VLOOKUP(1,Tablas!$A$73:$G$75,3,TRUE)), (IF(2-$B$19=2, (VLOOKUP(2,Tablas!$A$73:$G$75,3,TRUE)), 0)))))), (IF($B$17=1,(IF(1-$B$19=0, 0, (IF(1-$B$19=1,(VLOOKUP(1,Tablas!$A$73:$G$75,3,TRUE)),0)))),0)))))))))))))), (IF($B$17=0, 0, (IF($B$19>$B$17, (VLOOKUP($B$17,Tablas!$A$73:$G$75,3,TRUE)), (IF($B$17=4,(IF(4-$B$19=0, 0, (IF(4-$B$19=1, (VLOOKUP(1,Tablas!$A$73:$G$75,3,TRUE)), (IF(4-$B$19=2, (VLOOKUP(2,Tablas!$A$73:$G$75,3,TRUE)), (IF(4-$B$19=3, (VLOOKUP(3,Tablas!$A$73:$G$75,3,TRUE)), (IF(4-$B$19=4, (VLOOKUP(3,Tablas!$A$73:$G$75,3,TRUE)), 0)))))))))), (IF($B$17=5,(IF(5-$B$19=0, (VLOOKUP(1,Tablas!$A$73:$G$75,3,TRUE)), (IF(5-$B$19=1, (VLOOKUP(1,Tablas!$A$73:$G$75,3,TRUE)), (IF(5-$B$19=2, (VLOOKUP(2,Tablas!$A$73:$G$75,3,TRUE)), (IF(5-$B$19=3, (VLOOKUP(3,Tablas!$A$73:$G$75,3,TRUE)), (IF(5-$B$19=4, (VLOOKUP(3,Tablas!$A$73:$G$75,3,TRUE)), (VLOOKUP(3,Tablas!$A$73:$G$75,3,TRUE)))))))))))), (IF($B$17=6,(IF(6-$B$19=0, (VLOOKUP(2,Tablas!$A$73:$G$75,3,TRUE)), (IF(6-$B$19=1, (VLOOKUP(2,Tablas!$A$73:$G$75,3,TRUE)), (IF(6-$B$19=2, (VLOOKUP(2,Tablas!$A$73:$G$75,3,TRUE)), (IF(6-$B$19=3, (VLOOKUP(3,Tablas!$A$73:$G$75,3,TRUE)), (IF(6-$B$19=4, (VLOOKUP(3,Tablas!$A$73:$G$75,3,TRUE)), (VLOOKUP(3,Tablas!$A$73:$G$75,3,TRUE)))))))))))), (IF($B$17>6,(IF(7-$B$19=0, (VLOOKUP(3,Tablas!$A$73:$G$75,3,TRUE)), (IF(7-$B$19=1, (VLOOKUP(3,Tablas!$A$73:$G$75,3,TRUE)), (IF(7-$B$19=2, (VLOOKUP(3,Tablas!$A$73:$G$75,3,TRUE)), (IF(7-$B$19=3, (VLOOKUP(3,Tablas!$A$73:$G$75,3,TRUE)), (IF(7-$B$19=4, (VLOOKUP(3,Tablas!$A$73:$G$75,3,TRUE)), (VLOOKUP(3,Tablas!$A$73:$G$75,3,TRUE)))))))))))), (IF($B$17=3,(IF(3-$B$19=0,0, (IF(3-$B$19=1,(VLOOKUP(1,Tablas!$A$73:$G$75,3,TRUE)), (IF(3-$B$19=2, (VLOOKUP(2,Tablas!$A$73:$G$75,3,TRUE)), (VLOOKUP(3,Tablas!$A$73:$G$75,3,TRUE)))))))), (IF($B$17=2,(IF(2-$B$19=0, 0, (IF(2-$B$19=1,(VLOOKUP(1,Tablas!$A$73:$G$75,3,TRUE)), (IF(2-$B$19=2, (VLOOKUP(2,Tablas!$A$73:$G$75,3,TRUE)), 0)))))), (IF($B$17=1,(IF(1-$B$19=0, 0, (IF(1-$B$19=1,(VLOOKUP(1,Tablas!$A$73:$G$75,3,TRUE)),0)))),0))))))))))))))))))) -> 5604.05 | D34: =IF($B$15=1, (IF($B$17=0, 0, (IF($B$19>$B$17, (VLOOKUP($B$17,Tablas!$A$73:$G$75,4,TRUE)), (IF($B$17>4,(IF($B$19=0, (VLOOKUP(3,Tablas!$A$73:$G$75,4,TRUE)), (IF($B$19=1, (VLOOKUP(3,Tablas!$A$73:$G$75,4,TRUE)), (IF($B$19=2, (VLOOKUP(3,Tablas!$A$73:$G$75,4,TRUE)), (VLOOKUP(3,Tablas!$A$73:$G$75,4,TRUE)))))))), (IF($B$17=4,(IF(4-$B$19=0,(VLOOKUP(2,Tablas!$A$73:$G$75,4,TRUE)), (IF(4-$B$19=1,(VLOOKUP(2,Tablas!$A$73:$G$75,4,TRUE)), (IF(4-$B$19=2, (VLOOKUP(2,Tablas!$A$73:$G$75,4,TRUE)), (VLOOKUP(3,Tablas!$A$73:$G$75,4,TRUE)))))))), (IF($B$17=3,(IF(3-$B$19=0,(VLOOKUP(1,Tablas!$A$73:$G$75,4,TRUE)), (IF(3-$B$19=1,(VLOOKUP(1,Tablas!$A$73:$G$75,4,TRUE)), (IF(3-$B$19=2, (VLOOKUP(2,Tablas!$A$73:$G$75,4,TRUE)), (VLOOKUP(3,Tablas!$A$73:$G$75,4,TRUE)))))))), (IF($B$17=2,(IF(2-$B$19=0, 0, (IF(2-$B$19=1,(VLOOKUP(1,Tablas!$A$73:$G$75,4,TRUE)), (IF(2-$B$19=2, (VLOOKUP(2,Tablas!$A$73:$G$75,4,TRUE)), 0)))))), (IF($B$17=1,(IF(1-$B$19=0, 0, (IF(1-$B$19=1,(VLOOKUP(1,Tablas!$A$73:$G$75,4,TRUE)),0)))),0)))))))))))))), (IF($B$17=0, 0, (IF($B$19>$B$17, (VLOOKUP($B$17,Tablas!$A$73:$G$75,4,TRUE)), (IF($B$17=4,(IF(4-$B$19=0, 0, (IF(4-$B$19=1, (VLOOKUP(1,Tablas!$A$73:$G$75,4,TRUE)), (IF(4-$B$19=2, (VLOOKUP(2,Tablas!$A$73:$G$75,4,TRUE)), (IF(4-$B$19=3, (VLOOKUP(3,Tablas!$A$73:$G$75,4,TRUE)), (IF(4-$B$19=4, (VLOOKUP(3,Tablas!$A$73:$G$75,4,TRUE)), 0)))))))))), (IF($B$17=5,(IF(5-$B$19=0, (VLOOKUP(1,Tablas!$A$73:$G$75,4,TRUE)), (IF(5-$B$19=1, (VLOOKUP(1,Tablas!$A$73:$G$75,4,TRUE)), (IF(5-$B$19=2, (VLOOKUP(2,Tablas!$A$73:$G$75,4,TRUE)), (IF(5-$B$19=3, (VLOOKUP(3,Tablas!$A$73:$G$75,4,TRUE)), (IF(5-$B$19=4, (VLOOKUP(3,Tablas!$A$73:$G$75,4,TRUE)), (VLOOKUP(3,Tablas!$A$73:$G$75,4,TRUE)))))))))))), (IF($B$17=6,(IF(6-$B$19=0, (VLOOKUP(2,Tablas!$A$73:$G$75,4,TRUE)), (IF(6-$B$19=1, (VLOOKUP(2,Tablas!$A$73:$G$75,4,TRUE)), (IF(6-$B$19=2, (VLOOKUP(2,Tablas!$A$73:$G$75,4,TRUE)), (IF(6-$B$19=3, (VLOOKUP(3,Tablas!$A$73:$G$75,4,TRUE)), (IF(6-$B$19=4, (VLOOKUP(3,Tablas!$A$73:$G$75,4,TRUE)), (VLOOKUP(3,Tablas!$A$73:$G$75,4,TRUE)))))))))))), (IF($B$17>6,(IF(7-$B$19=0, (VLOOKUP(3,Tablas!$A$73:$G$75,4,TRUE)), (IF(7-$B$19=1, (VLOOKUP(3,Tablas!$A$73:$G$75,4,TRUE)), (IF(7-$B$19=2, (VLOOKUP(3,Tablas!$A$73:$G$75,4,TRUE)), (IF(7-$B$19=3, (VLOOKUP(3,Tablas!$A$73:$G$75,4,TRUE)), (IF(7-$B$19=4, (VLOOKUP(3,Tablas!$A$73:$G$75,4,TRUE)), (VLOOKUP(3,Tablas!$A$73:$G$75,4,TRUE)))))))))))), (IF($B$17=3,(IF(3-$B$19=0,0, (IF(3-$B$19=1,(VLOOKUP(1,Tablas!$A$73:$G$75,4,TRUE)), (IF(3-$B$19=2, (VLOOKUP(2,Tablas!$A$73:$G$75,4,TRUE)), (VLOOKUP(3,Tablas!$A$73:$G$75,4,TRUE)))))))), (IF($B$17=2,(IF(2-$B$19=0, 0, (IF(2-$B$19=1,(VLOOKUP(1,Tablas!$A$73:$G$75,4,TRUE)), (IF(2-$B$19=2, (VLOOKUP(2,Tablas!$A$73:$G$75,4,TRUE)), 0)))))), (IF($B$17=1,(IF(1-$B$19=0, 0, (IF(1-$B$19=1,(VLOOKUP(1,Tablas!$A$73:$G$75,4,TRUE)),0)))),0))))))))))))))))))) -> 4908.75 | E34: =IF($B$15=1, (IF($B$17=0, 0, (IF($B$19>$B$17, (VLOOKUP($B$17,Tablas!$A$73:$G$75,5,TRUE)), (IF($B$17>4,(IF($B$19=0, (VLOOKUP(3,Tablas!$A$73:$G$75,5,TRUE)), (IF($B$19=1, (VLOOKUP(3,Tablas!$A$73:$G$75,5,TRUE)), (IF($B$19=2, (VLOOKUP(3,Tablas!$A$73:$G$75,5,TRUE)), (VLOOKUP(3,Tablas!$A$73:$G$75,5,TRUE)))))))), (IF($B$17=4,(IF(4-$B$19=0,(VLOOKUP(2,Tablas!$A$73:$G$75,5,TRUE)), (IF(4-$B$19=1,(VLOOKUP(2,Tablas!$A$73:$G$75,5,TRUE)), (IF(4-$B$19=2, (VLOOKUP(2,Tablas!$A$73:$G$75,5,TRUE)), (VLOOKUP(3,Tablas!$A$73:$G$75,5,TRUE)))))))), (IF($B$17=3,(IF(3-$B$19=0,(VLOOKUP(1,Tablas!$A$73:$G$75,5,TRUE)), (IF(3-$B$19=1,(VLOOKUP(1,Tablas!$A$73:$G$75,5,TRUE)), (IF(3-$B$19=2, (VLOOKUP(2,Tablas!$A$73:$G$75,5,TRUE)), (VLOOKUP(3,Tablas!$A$73:$G$75,5,TRUE)))))))), (IF($B$17=2,(IF(2-$B$19=0, 0, (IF(2-$B$19=1,(VLOOKUP(1,Tablas!$A$73:$G$75,5,TRUE)), (IF(2-$B$19=2, (VLOOKUP(2,Tablas!$A$73:$G$75,5,TRUE)), 0)))))), (IF($B$17=1,(IF(1-$B$19=0, 0, (IF(1-$B$19=1,(VLOOKUP(1,Tablas!$A$73:$G$75,5,TRUE)),0)))),0)))))))))))))), (IF($B$17=0, 0, (IF($B$19>$B$17, (VLOOKUP($B$17,Tablas!$A$73:$G$75,5,TRUE)), (IF($B$17=4,(IF(4-$B$19=0, 0, (IF(4-$B$19=1, (VLOOKUP(1,Tablas!$A$73:$G$75,5,TRUE)), (IF(4-$B$19=2, (VLOOKUP(2,Tablas!$A$73:$G$75,5,TRUE)), (IF(4-$B$19=3, (VLOOKUP(3,Tablas!$A$73:$G$75,5,TRUE)), (IF(4-$B$19=4, (VLOOKUP(3,Tablas!$A$73:$G$75,5,TRUE)), 0)))))))))), (IF($B$17=5,(IF(5-$B$19=0, (VLOOKUP(1,Tablas!$A$73:$G$75,5,TRUE)), (IF(5-$B$19=1, (VLOOKUP(1,Tablas!$A$73:$G$75,5,TRUE)), (IF(5-$B$19=2, (VLOOKUP(2,Tablas!$A$73:$G$75,5,TRUE)), (IF(5-$B$19=3, (VLOOKUP(3,Tablas!$A$73:$G$75,5,TRUE)), (IF(5-$B$19=4, (VLOOKUP(3,Tablas!$A$73:$G$75,5,TRUE)), (VLOOKUP(3,Tablas!$A$73:$G$75,5,TRUE)))))))))))), (IF($B$17=6,(IF(6-$B$19=0, (VLOOKUP(2,Tablas!$A$73:$G$75,5,TRUE)), (IF(6-$B$19=1, (VLOOKUP(2,Tablas!$A$73:$G$75,5,TRUE)), (IF(6-$B$19=2, (VLOOKUP(2,Tablas!$A$73:$G$75,5,TRUE)), (IF(6-$B$19=3, (VLOOKUP(3,Tablas!$A$73:$G$75,5,TRUE)), (IF(6-$B$19=4, (VLOOKUP(3,Tablas!$A$73:$G$75,5,TRUE)), (VLOOKUP(3,Tablas!$A$73:$G$75,5,TRUE)))))))))))), (IF($B$17>6,(IF(7-$B$19=0, (VLOOKUP(3,Tablas!$A$73:$G$75,5,TRUE)), (IF(7-$B$19=1, (VLOOKUP(3,Tablas!$A$73:$G$75,5,TRUE)), (IF(7-$B$19=2, (VLOOKUP(3,Tablas!$A$73:$G$75,5,TRUE)), (IF(7-$B$19=3, (VLOOKUP(3,Tablas!$A$73:$G$75,5,TRUE)), (IF(7-$B$19=4, (VLOOKUP(3,Tablas!$A$73:$G$75,5,TRUE)), (VLOOKUP(3,Tablas!$A$73:$G$75,5,TRUE)))))))))))), (IF($B$17=3,(IF(3-$B$19=0,0, (IF(3-$B$19=1,(VLOOKUP(1,Tablas!$A$73:$G$75,5,TRUE)), (IF(3-$B$19=2, (VLOOKUP(2,Tablas!$A$73:$G$75,5,TRUE)), (VLOOKUP(3,Tablas!$A$73:$G$75,5,TRUE)))))))), (IF($B$17=2,(IF(2-$B$19=0, 0, (IF(2-$B$19=1,(VLOOKUP(1,Tablas!$A$73:$G$75,5,TRUE)), (IF(2-$B$19=2, (VLOOKUP(2,Tablas!$A$73:$G$75,5,TRUE)), 0)))))), (IF($B$17=1,(IF(1-$B$19=0, 0, (IF(1-$B$19=1,(VLOOKUP(1,Tablas!$A$73:$G$75,5,TRUE)),0)))),0))))))))))))))))))) -> 4055.35 | F34: =IF($B$15=1, (IF($B$17=0, 0, (IF($B$19>$B$17, (VLOOKUP($B$17,Tablas!$A$73:$G$75,6,TRUE)), (IF($B$17>4,(IF($B$19=0, (VLOOKUP(3,Tablas!$A$73:$G$75,6,TRUE)), (IF($B$19=1, (VLOOKUP(3,Tablas!$A$73:$G$75,6,TRUE)), (IF($B$19=2, (VLOOKUP(3,Tablas!$A$73:$G$75,6,TRUE)), (VLOOKUP(3,Tablas!$A$73:$G$75,6,TRUE)))))))), (IF($B$17=4,(IF(4-$B$19=0,(VLOOKUP(2,Tablas!$A$73:$G$75,6,TRUE)), (IF(4-$B$19=1,(VLOOKUP(2,Tablas!$A$73:$G$75,6,TRUE)), (IF(4-$B$19=2, (VLOOKUP(2,Tablas!$A$73:$G$75,6,TRUE)), (VLOOKUP(3,Tablas!$A$73:$G$75,6,TRUE)))))))), (IF($B$17=3,(IF(3-$B$19=0,(VLOOKUP(1,Tablas!$A$73:$G$75,6,TRUE)), (IF(3-$B$19=1,(VLOOKUP(1,Tablas!$A$73:$G$75,6,TRUE)), (IF(3-$B$19=2, (VLOOKUP(2,Tablas!$A$73:$G$75,6,TRUE)), (VLOOKUP(3,Tablas!$A$73:$G$75,6,TRUE)))))))), (IF($B$17=2,(IF(2-$B$19=0, 0, (IF(2-$B$19=1,(VLOOKUP(1,Tablas!$A$73:$G$75,6,TRUE)), (IF(2-$B$19=2, (VLOOKUP(2,Tablas!$A$73:$G$75,6,TRUE)), 0)))))), (IF($B$17=1,(IF(1-$B$19=0, 0, (IF(1-$B$19=1,(VLOOKUP(1,Tablas!$A$73:$G$75,6,TRUE)),0)))),0)))))))))))))), (IF($B$17=0, 0, (IF($B$19>$B$17, (VLOOKUP($B$17,Tablas!$A$73:$G$75,6,TRUE)), (IF($B$17=4,(IF(4-$B$19=0, 0, (IF(4-$B$19=1, (VLOOKUP(1,Tablas!$A$73:$G$75,6,TRUE)), (IF(4-$B$19=2, (VLOOKUP(2,Tablas!$A$73:$G$75,6,TRUE)), (IF(4-$B$19=3, (VLOOKUP(3,Tablas!$A$73:$G$75,6,TRUE)), (IF(4-$B$19=4, (VLOOKUP(3,Tablas!$A$73:$G$75,6,TRUE)), 0)))))))))), (IF($B$17=5,(IF(5-$B$19=0, (VLOOKUP(1,Tablas!$A$73:$G$75,6,TRUE)), (IF(5-$B$19=1, (VLOOKUP(1,Tablas!$A$73:$G$75,6,TRUE)), (IF(5-$B$19=2, (VLOOKUP(2,Tablas!$A$73:$G$75,6,TRUE)), (IF(5-$B$19=3, (VLOOKUP(3,Tablas!$A$73:$G$75,6,TRUE)), (IF(5-$B$19=4, (VLOOKUP(3,Tablas!$A$73:$G$75,6,TRUE)), (VLOOKUP(3,Tablas!$A$73:$G$75,6,TRUE)))))))))))), (IF($B$17=6,(IF(6-$B$19=0, (VLOOKUP(2,Tablas!$A$73:$G$75,6,TRUE)), (IF(6-$B$19=1, (VLOOKUP(2,Tablas!$A$73:$G$75,6,TRUE)), (IF(6-$B$19=2, (VLOOKUP(2,Tablas!$A$73:$G$75,6,TRUE)), (IF(6-$B$19=3, (VLOOKUP(3,Tablas!$A$73:$G$75,6,TRUE)), (IF(6-$B$19=4, (VLOOKUP(3,Tablas!$A$73:$G$75,6,TRUE)), (VLOOKUP(3,Tablas!$A$73:$G$75,6,TRUE)))))))))))), (IF($B$17>6,(IF(7-$B$19=0, (VLOOKUP(3,Tablas!$A$73:$G$75,6,TRUE)), (IF(7-$B$19=1, (VLOOKUP(3,Tablas!$A$73:$G$75,6,TRUE)), (IF(7-$B$19=2, (VLOOKUP(3,Tablas!$A$73:$G$75,6,TRUE)), (IF(7-$B$19=3, (VLOOKUP(3,Tablas!$A$73:$G$75,6,TRUE)), (IF(7-$B$19=4, (VLOOKUP(3,Tablas!$A$73:$G$75,6,TRUE)), (VLOOKUP(3,Tablas!$A$73:$G$75,6,TRUE)))))))))))), (IF($B$17=3,(IF(3-$B$19=0,0, (IF(3-$B$19=1,(VLOOKUP(1,Tablas!$A$73:$G$75,6,TRUE)), (IF(3-$B$19=2, (VLOOKUP(2,Tablas!$A$73:$G$75,6,TRUE)), (VLOOKUP(3,Tablas!$A$73:$G$75,6,TRUE)))))))), (IF($B$17=2,(IF(2-$B$19=0, 0, (IF(2-$B$19=1,(VLOOKUP(1,Tablas!$A$73:$G$75,6,TRUE)), (IF(2-$B$19=2, (VLOOKUP(2,Tablas!$A$73:$G$75,6,TRUE)), 0)))))), (IF($B$17=1,(IF(1-$B$19=0, 0, (IF(1-$B$19=1,(VLOOKUP(1,Tablas!$A$73:$G$75,6,TRUE)),0)))),0))))))))))))))))))) -> 3519 | G34: =IF($B$15=1, (IF($B$17=0, 0, (IF($B$19>$B$17, (VLOOKUP($B$17,Tablas!$A$73:$G$75,7,TRUE)), (IF($B$17>4,(IF($B$19=0, (VLOOKUP(3,Tablas!$A$73:$G$75,7,TRUE)), (IF($B$19=1, (VLOOKUP(3,Tablas!$A$73:$G$75,7,TRUE)), (IF($B$19=2, (VLOOKUP(3,Tablas!$A$73:$G$75,7,TRUE)), (VLOOKUP(3,Tablas!$A$73:$G$75,7,TRUE)))))))), (IF($B$17=4,(IF(4-$B$19=0,(VLOOKUP(2,Tablas!$A$73:$G$75,7,TRUE)), (IF(4-$B$19=1,(VLOOKUP(2,Tablas!$A$73:$G$75,7,TRUE)), (IF(4-$B$19=2, (VLOOKUP(2,Tablas!$A$73:$G$75,7,TRUE)), (VLOOKUP(3,Tablas!$A$73:$G$75,7,TRUE)))))))), (IF($B$17=3,(IF(3-$B$19=0,(VLOOKUP(1,Tablas!$A$73:$G$75,7,TRUE)), (IF(3-$B$19=1,(VLOOKUP(1,Tablas!$A$73:$G$75,7,TRUE)), (IF(3-$B$19=2, (VLOOKUP(2,Tablas!$A$73:$G$75,7,TRUE)), (VLOOKUP(3,Tablas!$A$73:$G$75,7,TRUE)))))))), (IF($B$17=2,(IF(2-$B$19=0, 0, (IF(2-$B$19=1,(VLOOKUP(1,Tablas!$A$73:$G$75,7,TRUE)), (IF(2-$B$19=2, (VLOOKUP(2,Tablas!$A$73:$G$75,7,TRUE)), 0)))))), (IF($B$17=1,(IF(1-$B$19=0, 0, (IF(1-$B$19=1,(VLOOKUP(1,Tablas!$A$73:$G$75,7,TRUE)),0)))),0)))))))))))))), (IF($B$17=0, 0, (IF($B$19>$B$17, (VLOOKUP($B$17,Tablas!$A$73:$G$75,7,TRUE)), (IF($B$17=4,(IF(4-$B$19=0, 0, (IF(4-$B$19=1, (VLOOKUP(1,Tablas!$A$73:$G$75,7,TRUE)), (IF(4-$B$19=2, (VLOOKUP(2,Tablas!$A$73:$G$75,7,TRUE)), (IF(4-$B$19=3, (VLOOKUP(3,Tablas!$A$73:$G$75,7,TRUE)), (IF(4-$B$19=4, (VLOOKUP(3,Tablas!$A$73:$G$75,7,TRUE)), 0)))))))))), (IF($B$17=5,(IF(5-$B$19=0, (VLOOKUP(1,Tablas!$A$73:$G$75,7,TRUE)), (IF(5-$B$19=1, (VLOOKUP(1,Tablas!$A$73:$G$75,7,TRUE)), (IF(5-$B$19=2, (VLOOKUP(2,Tablas!$A$73:$G$75,7,TRUE)), (IF(5-$B$19=3, (VLOOKUP(3,Tablas!$A$73:$G$75,7,TRUE)), (IF(5-$B$19=4, (VLOOKUP(3,Tablas!$A$73:$G$75,7,TRUE)), (VLOOKUP(3,Tablas!$A$73:$G$75,7,TRUE)))))))))))), (IF($B$17=6,(IF(6-$B$19=0, (VLOOKUP(2,Tablas!$A$73:$G$75,7,TRUE)), (IF(6-$B$19=1, (VLOOKUP(2,Tablas!$A$73:$G$75,7,TRUE)), (IF(6-$B$19=2, (VLOOKUP(2,Tablas!$A$73:$G$75,7,TRUE)), (IF(6-$B$19=3, (VLOOKUP(3,Tablas!$A$73:$G$75,7,TRUE)), (IF(6-$B$19=4, (VLOOKUP(3,Tablas!$A$73:$G$75,7,TRUE)), (VLOOKUP(3,Tablas!$A$73:$G$75,7,TRUE)))))))))))), (IF($B$17>6,(IF(7-$B$19=0, (VLOOKUP(3,Tablas!$A$73:$G$75,7,TRUE)), (IF(7-$B$19=1, (VLOOKUP(3,Tablas!$A$73:$G$75,7,TRUE)), (IF(7-$B$19=2, (VLOOKUP(3,Tablas!$A$73:$G$75,7,TRUE)), (IF(7-$B$19=3, (VLOOKUP(3,Tablas!$A$73:$G$75,7,TRUE)), (IF(7-$B$19=4, (VLOOKUP(3,Tablas!$A$73:$G$75,7,TRUE)), (VLOOKUP(3,Tablas!$A$73:$G$75,7,TRUE)))))))))))), (IF($B$17=3,(IF(3-$B$19=0,0, (IF(3-$B$19=1,(VLOOKUP(1,Tablas!$A$73:$G$75,7,TRUE)), (IF(3-$B$19=2, (VLOOKUP(2,Tablas!$A$73:$G$75,7,TRUE)), (VLOOKUP(3,Tablas!$A$73:$G$75,7,TRUE)))))))), (IF($B$17=2,(IF(2-$B$19=0, 0, (IF(2-$B$19=1,(VLOOKUP(1,Tablas!$A$73:$G$75,7,TRUE)), (IF(2-$B$19=2, (VLOOKUP(2,Tablas!$A$73:$G$75,7,TRUE)), 0)))))), (IF($B$17=1,(IF(1-$B$19=0, 0, (IF(1-$B$19=1,(VLOOKUP(1,Tablas!$A$73:$G$75,7,TRUE)),0)))),0))))))))))))))))))) -> 2658.8 | H34: =IF($B$15=1, (IF($B$17=0, 0, (IF($B$19>$B$17, (VLOOKUP($B$17,Tablas!$A$73:$H$75,8,TRUE)), (IF($B$17>4,(IF($B$19=0, (VLOOKUP(3,Tablas!$A$73:$H$75,8,TRUE)), (IF($B$19=1, (VLOOKUP(3,Tablas!$A$73:$H$75,8,TRUE)), (IF($B$19=2, (VLOOKUP(3,Tablas!$A$73:$H$75,8,TRUE)), (VLOOKUP(3,Tablas!$A$73:$H$75,7,TRUE)))))))), (IF($B$17=4,(IF(4-$B$19=0,(VLOOKUP(2,Tablas!$A$73:$H$75,8,TRUE)), (IF(4-$B$19=1,(VLOOKUP(2,Tablas!$A$73:$H$75,8,TRUE)), (IF(4-$B$19=2, (VLOOKUP(2,Tablas!$A$73:$H$75,8,TRUE)), (VLOOKUP(3,Tablas!$A$73:$H$75,8,TRUE)))))))), (IF($B$17=3,(IF(3-$B$19=0,(VLOOKUP(1,Tablas!$A$73:$H$75,8,TRUE)), (IF(3-$B$19=1,(VLOOKUP(1,Tablas!$A$73:$H$75,8,TRUE)), (IF(3-$B$19=2, (VLOOKUP(2,Tablas!$A$73:$H$75,8,TRUE)), (VLOOKUP(3,Tablas!$A$73:$H$75,8,TRUE)))))))), (IF($B$17=2,(IF(2-$B$19=0, 0, (IF(2-$B$19=1,(VLOOKUP(1,Tablas!$A$73:$H$75,8,TRUE)), (IF(2-$B$19=2, (VLOOKUP(2,Tablas!$A$73:$H$75,8,TRUE)), 0)))))), (IF($B$17=1,(IF(1-$B$19=0, 0, (IF(1-$B$19=1,(VLOOKUP(1,Tablas!$A$73:$H$75,8,TRUE)),0)))),0)))))))))))))), (IF($B$17=0, 0, (IF($B$19>$B$17, (VLOOKUP($B$17,Tablas!$A$73:$H$75,8,TRUE)), (IF($B$17=4,(IF(4-$B$19=0, 0, (IF(4-$B$19=1, (VLOOKUP(1,Tablas!$A$73:$H$75,8,TRUE)), (IF(4-$B$19=2, (VLOOKUP(2,Tablas!$A$73:$H$75,8,TRUE)), (IF(4-$B$19=3, (VLOOKUP(3,Tablas!$A$73:$H$75,8,TRUE)), (IF(4-$B$19=4, (VLOOKUP(3,Tablas!$A$73:$H$75,8,TRUE)), 0)))))))))), (IF($B$17=5,(IF(5-$B$19=0, (VLOOKUP(1,Tablas!$A$73:$H$75,8,TRUE)), (IF(5-$B$19=1, (VLOOKUP(1,Tablas!$A$73:$H$75,8,TRUE)), (IF(5-$B$19=2, (VLOOKUP(2,Tablas!$A$73:$H$75,8,TRUE)), (IF(5-$B$19=3, (VLOOKUP(3,Tablas!$A$73:$H$75,8,TRUE)), (IF(5-$B$19=4, (VLOOKUP(3,Tablas!$A$73:$H$75,8,TRUE)), (VLOOKUP(3,Tablas!$A$73:$H$75,7,TRUE)))))))))))), (IF($B$17=6,(IF(6-$B$19=0, (VLOOKUP(2,Tablas!$A$73:$H$75,8,TRUE)), (IF(6-$B$19=1, (VLOOKUP(2,Tablas!$A$73:$H$75,8,TRUE)), (IF(6-$B$19=2, (VLOOKUP(2,Tablas!$A$73:$H$75,8,TRUE)), (IF(6-$B$19=3, (VLOOKUP(3,Tablas!$A$73:$H$75,8,TRUE)), (IF(6-$B$19=4, (VLOOKUP(3,Tablas!$A$73:$H$75,8,TRUE)), (VLOOKUP(3,Tablas!$A$73:$H$75,7,TRUE)))))))))))), (IF($B$17>6,(IF(7-$B$19=0, (VLOOKUP(3,Tablas!$A$73:$H$75,8,TRUE)), (IF(7-$B$19=1, (VLOOKUP(3,Tablas!$A$73:$H$75,8,TRUE)), (IF(7-$B$19=2, (VLOOKUP(3,Tablas!$A$73:$H$75,8,TRUE)), (IF(7-$B$19=3, (VLOOKUP(3,Tablas!$A$73:$H$75,8,TRUE)), (IF(7-$B$19=4, (VLOOKUP(3,Tablas!$A$73:$H$75,8,TRUE)), (VLOOKUP(3,Tablas!$A$73:$H$75,8,TRUE)))))))))))), (IF($B$17=3,(IF(3-$B$19=0,0, (IF(3-$B$19=1,(VLOOKUP(1,Tablas!$A$73:$H$75,8,TRUE)), (IF(3-$B$19=2, (VLOOKUP(2,Tablas!$A$73:$H$75,8,TRUE)), (VLOOKUP(3,Tablas!$A$73:$H$75,8,TRUE)))))))), (IF($B$17=2,(IF(2-$B$19=0, 0, (IF(2-$B$19=1,(VLOOKUP(1,Tablas!$A$73:$H$75,8,TRUE)), (IF(2-$B$19=2, (VLOOKUP(2,Tablas!$A$73:$H$75,8,TRUE)), 0)))))), (IF($B$17=1,(IF(1-$B$19=0, 0, (IF(1-$B$19=1,(VLOOKUP(1,Tablas!$A$73:$H$75,8,TRUE)),0)))),0))))))))))))))))))) -> 2101.2
A35: Total de Prima neta | C35: =SUM(C32:C34) -> 42885.9 | D35: =SUM(D32:D34) -> 37585.3 | E35: 30301.65 | F35: 26280.3 | G35: 19856.85 | H35: 15687.6
A36: Ajuste por la variante con coaseguro fuera del país de residencia | C36: =IF('INGRESO DE DATOS'!$P$3,C35*-15%,0) -> 0 | D36: =IF('INGRESO DE DATOS'!$P$3,D35*-15%,0) -> 0 | E36: =IF('INGRESO DE DATOS'!$P$3,E35*-15%,0) -> 0 | F36: =IF('INGRESO DE DATOS'!$P$3,F35*-15%,0) -> 0 | G36: =IF('INGRESO DE DATOS'!$P$3,G35*-15%,0) -> 0
A37: Tarifa administrativa annual | C37: 75 | D37: 75 | E37: 75 | F37: 75 | G37: 75 | H37: 75
A38: IVA (12%) | C38: =(C35+C37)*'INGRESO DE DATOS'!$S$30 -> 5155.308 | D38: =(D35+D37)*'INGRESO DE DATOS'!$S$30 -> 4519.236 | E38: =(E35+E37)*'INGRESO DE DATOS'!$S$30 -> 3645.198 | F38: =(F35+F37)*'INGRESO DE DATOS'!$S$30 -> 3162.636 | G38: =(G35+G37)*'INGRESO DE DATOS'!$S$30 -> 2391.822 | H38: =(H35+H37)*'INGRESO DE DATOS'!$S$30 -> 1891.512
A39: ITBMS (7%)
A40: TOTAL ANUAL | C40: =SUM(C35:C39) -> 48116.208 | D40: =SUM(D35:D39) -> 42179.536 | E40: 34021.848 | F40: =SUM(F35:F39) -> 29517.936 | G40: 22323.672 | H40: =SUM(H35:H39) -> 17654.112
A41: Ahorros en tarifas de prima para Dependientes | C41: =IF($B$15=1,IF($B$17=0,0,IF($B$19=0,0,IF($B$19=1,(VLOOKUP(1,Tablas!$A$73:$G$75,3,TRUE)),(VLOOKUP(2,Tablas!$A$73:$G$75,3,TRUE))))), IF($B$17=0,0,IF($B$19=0,0,IF($B$19=1,(VLOOKUP(1,Tablas!$A$73:$G$75,3,TRUE)),IF($B$19=2,(VLOOKUP(2,Tablas!$A$73:$G$75,3,TRUE)), (VLOOKUP(3,Tablas!$A$73:$G$75,3,TRUE))))))) -> 5604.05 | D41: =IF($B$15=1,IF($B$17=0,0,IF($B$19=0,0,IF($B$19=1,(VLOOKUP(1,Tablas!$A$73:$G$75,4,TRUE)),(VLOOKUP(2,Tablas!$A$73:$G$75,4,TRUE))))), IF($B$17=0,0,IF($B$19=0,0,IF($B$19=1,(VLOOKUP(1,Tablas!$A$73:$G$75,4,TRUE)),IF($B$19=2,(VLOOKUP(2,Tablas!$A$73:$G$75,4,TRUE)), (VLOOKUP(3,Tablas!$A$73:$G$75,4,TRUE))))))) -> 4908.75 | E41: =IF($B$15=1,IF($B$17=0,0,IF($B$19=0,0,IF($B$19=1,(VLOOKUP(1,Tablas!$A$73:$G$75,5,TRUE)),(VLOOKUP(2,Tablas!$A$73:$G$75,5,TRUE))))), IF($B$17=0,0,IF($B$19=0,0,IF($B$19=1,(VLOOKUP(1,Tablas!$A$73:$G$75,5,TRUE)),IF($B$19=2,(VLOOKUP(2,Tablas!$A$73:$G$75,5,TRUE)), (VLOOKUP(3,Tablas!$A$73:$G$75,5,TRUE))))))) -> 4055.35 | F41: =IF($B$15=1,IF($B$17=0,0,IF($B$19=0,0,IF($B$19=1,(VLOOKUP(1,Tablas!$A$73:$G$75,6,TRUE)),(VLOOKUP(2,Tablas!$A$73:$G$75,6,TRUE))))), IF($B$17=0,0,IF($B$19=0,0,IF($B$19=1,(VLOOKUP(1,Tablas!$A$73:$G$75,6,TRUE)),IF($B$19=2,(VLOOKUP(2,Tablas!$A$73:$G$75,6,TRUE)), (VLOOKUP(3,Tablas!$A$73:$G$75,6,TRUE))))))) -> 3519 | G41: =IF($B$15=1,IF($B$17=0,0,IF($B$19=0,0,IF($B$19=1,(VLOOKUP(1,Tablas!$A$73:$G$75,7,TRUE)),(VLOOKUP(2,Tablas!$A$73:$G$75,7,TRUE))))), IF($B$17=0,0,IF($B$19=0,0,IF($B$19=1,(VLOOKUP(1,Tablas!$A$73:$G$75,7,TRUE)),IF($B$19=2,(VLOOKUP(2,Tablas!$A$73:$G$75,7,TRUE)), (VLOOKUP(3,Tablas!$A$73:$G$75,7,TRUE))))))) -> 2658.8 | H41: =IF($B$15=1,IF($B$17=0,0,IF($B$19=0,0,IF($B$19=1,(VLOOKUP(1,Tablas!$A$73:$H$75,8,TRUE)),(VLOOKUP(2,Tablas!$A$73:$H$75,8,TRUE))))), IF($B$17=0,0,IF($B$19=0,0,IF($B$19=1,(VLOOKUP(1,Tablas!$A$73:$H$75,8,TRUE)),IF($B$19=2,(VLOOKUP(2,Tablas!$A$73:$H$75,8,TRUE)), (VLOOKUP(3,Tablas!$A$73:$H$75,8,TRUE))))))) -> 2101.2
A43: TARIFAS SEMIANUALES
A44: Prima para Asegurado Titular | C44: =C32*Tablas!$K$4 -> 8332.8985 | D44: =D32*Tablas!$K$4 -> 7303.506 | E44: =E32*Tablas!$K$4 -> 5911.461 | F44: =F32*Tablas!$K$4 -> 5126.69 | G44: =G32*Tablas!$K$4 -> 3872.9485 | H44: =H32*Tablas!$K$4 -> 3059.796
A45: Prima para conyuge | C45: =C33*Tablas!$K$4 -> 11426.482 | D45: =D33*Tablas!$K$4 -> 10015.0655 | E45: =E33*Tablas!$K$4 -> 7999.078 | F45: =F33*Tablas!$K$4 -> 6936.799 | G45: =G33*Tablas!$K$4 -> 5242.018 | H45: =H33*Tablas!$K$4 -> 4140.996
A46: Prima para hijo (s) | C46: =C34*Tablas!$K$4 -> 2970.1465 | D46: =D34*Tablas!$K$4 -> 2601.6375 | E46: =E34*Tablas!$K$4 -> 2149.3355 | F46: =F34*Tablas!$K$4 -> 1865.07 | G46: =G34*Tablas!$K$4 -> 1409.164 | H46: =H34*Tablas!$K$4 -> 1113.636
A47: Total de Prima neta | C47: =SUM(C44:C46) -> 22729.527 | D47: =SUM(D44:D46) -> 19920.209 | E47: 16059.8745 | F47: 13928.559 | G47: 10524.1305 | H47: 8314.428
A48: Ajuste por la variante con coaseguro fuera del país de residencia | C48: =IF('INGRESO DE DATOS'!$P$3,C47*-15%,0) -> 0 | D48: =IF('INGRESO DE DATOS'!$P$3,D47*-15%,0) -> 0 | E48: =IF('INGRESO DE DATOS'!$P$3,E47*-15%,0) -> 0 | F48: =IF('INGRESO DE DATOS'!$P$3,F47*-15%,0) -> 0 | G48: =IF('INGRESO DE DATOS'!$P$3,G47*-15%,0) -> 0
A49: Tarifa administrativa anual | C49: 75 | D49: 75 | E49: 75 | F49: 75 | G49: 75 | H49: 75
A50: IVA (12%) | C50: =(C47+C49)*'INGRESO DE DATOS'!$S$30 -> 2736.54324 | D50: =(D47+D49)*'INGRESO DE DATOS'!$S$30 -> 2399.42508 | E50: =(E47+E49)*'INGRESO DE DATOS'!$S$30 -> 1936.18494 | F50: =(F47+F49)*'INGRESO DE DATOS'!$S$30 -> 1680.42708 | G50: =(G47+G49)*'INGRESO DE DATOS'!$S$30 -> 1271.89566 | H50: =(H47+H49)*'INGRESO DE DATOS'!$S$30 -> 1006.73136
A51: ITBMS (7%)
A52: TOTAL de primera cuota | C52: =SUM(C47:C51) -> 25541.07024 | D52: =SUM(D47:D51) -> 22394.63408 | E52: 18071.05944 | F52: 15683.98608 | G52: 11871.02616 | H52: 9396.15936
A53: Costo de segunda cuota | C53: =C52-C49*'INGRESO DE DATOS'!$T$30 -> 25457.07024 | D53: =D52-D49*'INGRESO DE DATOS'!$T$30 -> 22310.63408 | E53: =E52-E49*'INGRESO DE DATOS'!$T$30 -> 17987.05944 | F53: =F52-F49*'INGRESO DE DATOS'!$T$30 -> 15599.98608 | G53: =G52-G49*'INGRESO DE DATOS'!$T$30 -> 11787.02616 | H53: =H52-H49*'INGRESO DE DATOS'!$T$30 -> 9312.15936
A54: TOTAL ANUAL | C54: =C52+C53 -> 50998.14048 | D54: =D52+D53 -> 44705.26816 | E54: 36058.11888 | F54: 31283.97216 | G54: 23658.05232 | H54: 18708.31872
A55: Ahorros en tarifas de prima para Dependientes | C55: =C41*Tablas!$K$4 -> 2970.1465 | D55: =D41*Tablas!$K$4 -> 2601.6375 | E55: =E41*Tablas!$K$4 -> 2149.3355 | F55: =F41*Tablas!$K$4 -> 1865.07 | G55: =G41*Tablas!$K$4 -> 1409.164 | H55: =H41*Tablas!$K$4 -> 1113.636
A57: TARIFAS TRIMESTRALES
A58: Prima para Asegurado Titular | C58: =C32*Tablas!$K$3 -> 4323.67375 | D58: =D32*Tablas!$K$3 -> 3789.555 | E58: =E32*Tablas!$K$3 -> 3067.2675 | F58: =F32*Tablas!$K$3 -> 2660.075 | G58: =G32*Tablas!$K$3 -> 2009.54875 | H58: =H32*Tablas!$K$3 -> 1587.63
A59: Prima para conyuge | C59: =C33*Tablas!$K$3 -> 5928.835 | D59: =D33*Tablas!$K$3 -> 5196.49625 | E59: =E33*Tablas!$K$3 -> 4150.465 | F59: =F33*Tablas!$K$3 -> 3599.2825 | G59: =G33*Tablas!$K$3 -> 2719.915 | H59: =H33*Tablas!$K$3 -> 2148.63
A60: Prima para hijo (s) | C60: =C34*Tablas!$K$3 -> 1541.11375 | D60: =D34*Tablas!$K$3 -> 1349.90625 | E60: =E34*Tablas!$K$3 -> 1115.22125 | F60: =F34*Tablas!$K$3 -> 967.725 | G60: =G34*Tablas!$K$3 -> 731.17 | H60: =H34*Tablas!$K$3 -> 577.83
A61: Total de Prima neta | C61: =SUM(C58:C60) -> 11793.6225 | D61: =SUM(D58:D60) -> 10335.9575 | E61: 8332.95375 | F61: 7227.0825 | G61: 5460.63375 | H61: 4314.09
A62: Ajuste por la variante con coaseguro fuera del país de residencia | C62: =IF('INGRESO DE DATOS'!$P$3,C61*-15%,0) -> 0 | D62: =IF('INGRESO DE DATOS'!$P$3,D61*-15%,0) -> 0 | E62: =IF('INGRESO DE DATOS'!$P$3,E61*-15%,0) -> 0 | F62: =IF('INGRESO DE DATOS'!$P$3,F61*-15%,0) -> 0 | G62: =IF('INGRESO DE DATOS'!$P$3,G61*-15%,0) -> 0
A63: Tarifa administrativa anual | C63: 75 | D63: 75 | E63: 75 | F63: 75 | G63: 75 | H63: 75
A64: IVA (12%) | C64: =(C61+C63)*'INGRESO DE DATOS'!$S$30 -> 1424.2347 | D64: =(D61+D63)*'INGRESO DE DATOS'!$S$30 -> 1249.3149 | E64: =(E61+E63)*'INGRESO DE DATOS'!$S$30 -> 1008.95445 | F64: =(F61+F63)*'INGRESO DE DATOS'!$S$30 -> 876.2499 | G64: =(G61+G63)*'INGRESO DE DATOS'!$S$30 -> 664.27605 | H64: =(H61+H63)*'INGRESO DE DATOS'!$S$30 -> 526.6908
A65: ITBMS (7%)
A66: TOTAL de primera cuota | C66: =SUM(C61:C65) -> 13292.8572 | D66: =SUM(D61:D65) -> 11660.2724 | E66: 9416.9082 | F66: 8178.3324 | G66: 6199.9098 | H66: 4915.7808
A67: Costo de tarifa trimestral 2 a 4 | C67: =C66-C63*'INGRESO DE DATOS'!$T$30 -> 13208.8572 | D67: =D66-D63*'INGRESO DE DATOS'!$T$30 -> 11576.2724 | E67: =E66-E63*'INGRESO DE DATOS'!$T$30 -> 9332.9082 | F67: =F66-F63*'INGRESO DE DATOS'!$T$30 -> 8094.3324 | G67: =G66-G63*'INGRESO DE DATOS'!$T$30 -> 6115.9098 | H67: =H66-H63*'INGRESO DE DATOS'!$T$30 -> 4831.7808
A68: TOTAL ANUAL | C68: =C66+(C67*3) -> 52919.4288 | D68: =D66+(D67*3) -> 46389.0896 | E68: 37415.6328 | F68: 32461.3296 | G68: 24547.6392 | H68: 19411.1232
A69: Ahorros en tarifas de prima para Dependientes | C69: =C41*Tablas!$K$3 -> 1541.11375 | D69: =D41*Tablas!$K$3 -> 1349.90625 | E69: =E41*Tablas!$K$3 -> 1115.22125 | F69: =F41*Tablas!$K$3 -> 967.725 | G69: =G41*Tablas!$K$3 -> 731.17 | H69: =H41*Tablas!$K$3 -> 577.83
A71: TARIFAS MENSUALES
A72: Prima para Asegurado Titular | C72: =C32*Tablas!$K$2 -> 1467.428667 | D72: =D32*Tablas!$K$2 -> 1286.152 | E72: =E32*Tablas!$K$2 -> 1041.012 | F72: =F32*Tablas!$K$2 -> 902.8133333 | G72: =G32*Tablas!$K$2 -> 682.0286667 | H72: =H32*Tablas!$K$2 -> 538.832
A73: Prima para conyuge | C73: =C33*Tablas!$K$2 -> 2012.210667 | D73: =D33*Tablas!$K$2 -> 1763.659333 | E73: =E33*Tablas!$K$2 -> 1408.642667 | F73: =F33*Tablas!$K$2 -> 1221.574667 | G73: =G33*Tablas!$K$2 -> 923.1226667 | H73: =H33*Tablas!$K$2 -> 729.232
A74: Prima para hijo (s) | C74: =C34*Tablas!$K$2 -> 523.0446667 | D74: =D34*Tablas!$K$2 -> 458.15 | E74: =E34*Tablas!$K$2 -> 378.4993333 | F74: =F34*Tablas!$K$2 -> 328.44 | G74: =G34*Tablas!$K$2 -> 248.1546667 | H74: =H34*Tablas!$K$2 -> 196.112
A75: Total de Prima neta | C75: =SUM(C72:C74) -> 4002.684 | D75: =SUM(D72:D74) -> 3507.961333 | E75: 2828.154 | F75: 2452.828 | G75: 1853.306 | H75: 1464.176
A76: Ajuste por la variante con coaseguro fuera del país de residencia | C76: =IF('INGRESO DE DATOS'!$P$3,C75*-15%,0) -> 0 | D76: =IF('INGRESO DE DATOS'!$P$3,D75*-15%,0) -> 0 | E76: =IF('INGRESO DE DATOS'!$P$3,E75*-15%,0) -> 0 | F76: =IF('INGRESO DE DATOS'!$P$3,F75*-15%,0) -> 0 | G76: =IF('INGRESO DE DATOS'!$P$3,G75*-15%,0) -> 0
A77: Tarifa administrativa anual | C77: 75 | D77: 75 | E77: 75 | F77: 75 | G77: 75 | H77: 75
A78: IVA (12%) | C78: =(C75+C77)*'INGRESO DE DATOS'!$S$30 -> 489.32208 | D78: =(D75+D77)*'INGRESO DE DATOS'!$S$30 -> 429.95536 | E78: =(E75+E77)*'INGRESO DE DATOS'!$S$30 -> 348.37848 | F78: =(F75+F77)*'INGRESO DE DATOS'!$S$30 -> 303.33936 | G78: =(G75+G77)*'INGRESO DE DATOS'!$S$30 -> 231.39672 | H78: =(H75+H77)*'INGRESO DE DATOS'!$S$30 -> 184.70112
A79: ITBMS (7%)
A80: TOTAL de primera cuota | C80: =SUM(C75:C79) -> 4567.00608 | D80: =SUM(D75:D79) -> 4012.916693 | E80: 3251.53248 | F80: 2831.16736 | G80: 2159.70272 | H80: 1723.87712
A81: Costo de Tarifa mensual de 2 a 12 | C81: =C80-C77*'INGRESO DE DATOS'!$T$30 -> 4483.00608 | D81: =D80-D77*'INGRESO DE DATOS'!$T$30 -> 3928.916693 | E81: =E80-E77*'INGRESO DE DATOS'!$T$30 -> 3167.53248 | F81: =F80-F77*'INGRESO DE DATOS'!$T$30 -> 2747.16736 | G81: =G80-G77*'INGRESO DE DATOS'!$T$30 -> 2075.70272 | H81: =H80-H77*'INGRESO DE DATOS'!$T$30 -> 1639.87712
A82: TOTAL ANUAL | C82: =C80+(C81*11) -> 53880.07296 | D82: =D80+(D81*11) -> 47231.00032 | E82: 38094.38976 | F82: 33050.00832 | G82: 24992.43264 | H82: 19762.52544
A83: Ahorros en tarifas de prima para Dependientes | C83: =C41*Tablas!$K$2 -> 523.0446667 | D83: =D41*Tablas!$K$2 -> 458.15 | E83: =E41*Tablas!$K$2 -> 378.4993333 | F83: =F41*Tablas!$K$2 -> 328.44 | G83: =G41*Tablas!$K$2 -> 248.1546667 | H83: =H41*Tablas!$K$2 -> 196.112
A85: Este presupuesto solamente tiene carácter informativo y en ningún momento expresa compromiso legal para suministrarle cobertura de seguro. La emisión de una póliza de seguro Bupa está sujeta a todas las evaluaciones de riesgo por parte de Bupa y a la recepción de todos los pagos de prima requeridos.

Sheet Global Premier
J1: RESUMEN DE BENEFICIOS | Q1: RESUMEN DE BENEFICIOS | X1: RESUMEN DE BENEFICIOS
A5: Cotización de Seguro Médico Internacional Global Premier Health Plan Tarifas en US$ | Validas: 1 de enero de 2026
A13: Nombre del Asegurado Titular | B13: =+'INGRESO DE DATOS'!$C$37 -> John Doe
A15: Número de adultos en la póliza | B15: =+'INGRESO DE DATOS'!$C$39 -> 2
A17: Número de Dependientes en la póliza | B17: =+'INGRESO DE DATOS'!$C$41 -> 2 | C17: =IF('INGRESO DE DATOS'!$P$2=TRUE, "Cotización para dependiente de 24 años","") -> 
A19: Edad del Asegurado Titular | B19: =+'INGRESO DE DATOS'!$C$43 -> 32 | D19: Edad del/la conyuge | F19: =+'INGRESO DE DATOS'!$C$45 -> 46
A21: Fecha de la cotización | B21: =NOW() -> 2026-01-12T09:32:49.510
A23: =IF('INGRESO DE DATOS'!P3=TRUE,"Variante con coaseguro fuera del país de residencia: SI","Variante con coaseguro fuera del país de residencia: NO") -> Variante con coaseguro fuera del país de residencia: NO
A25: Deducibles | C25: PLAN 1 | D25: PLAN 2 | E25: PLAN 3 | F25: PLAN 4 | G25: PLAN 5
A26: En el país de residencia | C26: 250 | D26: 2000 | E26: 5000 | F26: 10000 | G26: 20000
A27: Fuera del país de residencia | C27: 5000 | D27: 2000 | E27: 5000 | F27: 10000 | G27: 20000
A29: TARIFAS ANUALES
A30: Prima para Asegurado Titular | C30: =VLOOKUP($B$19,Tablas!$A$156:$G$222,3,TRUE) -> 6861.75 | D30: =VLOOKUP($B$19,Tablas!$A$156:$G$222,4,TRUE) -> 6228.75 | E30: =VLOOKUP($B$19,Tablas!$A$156:$G$222,5,TRUE) -> 4493.25 | F30: =VLOOKUP($B$19,Tablas!$A$156:$G$222,6,TRUE) -> 3254.25 | G30: =VLOOKUP($B$19,Tablas!$A$156:$G$222,7,TRUE) -> 2561.25
A31: Prima para conyuge | C31: =IF($B$15=1,0,(VLOOKUP($F$19,Tablas!$A$156:$G$222,3,TRUE))) -> 9410.25 | D31: =IF($B$15=1,0,(VLOOKUP($F$19,Tablas!$A$156:$G$222,4,TRUE))) -> 8539.5 | E31: =IF($B$15=1,0,(VLOOKUP($F$19,Tablas!$A$156:$G$222,5,TRUE))) -> 6027.75 | F31: =IF($B$15=1,0,(VLOOKUP($F$19,Tablas!$A$156:$G$222,6,TRUE))) -> 4362 | G31: =IF($B$15=1,0,(VLOOKUP($F$19,Tablas!$A$156:$G$222,7,TRUE))) -> 3433.5
A32: Prima para hijo (s) | C32: =IF($B$17=0,0,(VLOOKUP($B$17,Tablas!$A$223:$G$225,3,TRUE))) -> 4156.5 | D32: =IF($B$17=0,0,(VLOOKUP($B$17,Tablas!$A$223:$G$225,4,TRUE))) -> 3770.25 | E32: =IF($B$17=0,0,(VLOOKUP($B$17,Tablas!$A$223:$G$225,5,TRUE))) -> 2822.25 | F32: =IF($B$17=0,0,(VLOOKUP($B$17,Tablas!$A$223:$G$225,6,TRUE))) -> 2045.25 | G32: =IF($B$17=0,0,(VLOOKUP($B$17,Tablas!$A$223:$G$225,7,TRUE))) -> 1611
A33: Total de Prima neta | C33: =SUM(C30:C32) -> 20428.5 | D33: =SUM(D30:D32) -> 18538.5 | E33: 13343.25 | F33: 9661.5 | G33: =SUM(G30:G32) -> 7605.75
A34: Ajuste por la variante con coaseguro fuera del país de residencia | C34: =IF('INGRESO DE DATOS'!$P$3,C33*-15%,0) -> 0 | D34: =IF('INGRESO DE DATOS'!$P$3,D33*-15%,0) -> 0 | E34: =IF('INGRESO DE DATOS'!$P$3,E33*-15%,0) -> 0 | F34: =IF('INGRESO DE DATOS'!$P$3,F33*-15%,0) -> 0 | G34: =IF('INGRESO DE DATOS'!$P$3,G33*-15%,0) -> 0
A35: Tarifa administrativa anual | C35: 75 | D35: 75 | E35: 75 | F35: 75 | G35: 75
A36: IVA (12%) | C36: =(C33+C35)*'INGRESO DE DATOS'!$S$30 -> 2460.42 | D36: =(D33+D35)*'INGRESO DE DATOS'!$S$30 -> 2233.62 | E36: =(E33+E35)*'INGRESO DE DATOS'!$S$30 -> 1610.19 | F36: =(F33+F35)*'INGRESO DE DATOS'!$S$30 -> 1168.38 | G36: =(G33+G35)*'INGRESO DE DATOS'!$S$30 -> 921.69
A37: ITBMS (7%)
A38: TOTAL ANUAL | C38: =SUM(C33:C37) -> 22963.92 | D38: =SUM(D33:D37) -> 20847.12 | E38: 15028.44 | F38: =SUM(F33:F37) -> 10904.88 | G38: 8602.44
A40: TARIFAS SEMESTRALES
A41: Prima para Asegurado Titular | C41: =C30*Tablas!$K$4 -> 3636.7275 | D41: =D30*Tablas!$K$4 -> 3301.2375 | E41: =E30*Tablas!$K$4 -> 2381.4225 | F41: =F30*Tablas!$K$4 -> 1724.7525 | G41: =G30*Tablas!$K$4 -> 1357.4625
A42: Prima para conyuge | C42: =C31*Tablas!$K$4 -> 4987.4325 | D42: =D31*Tablas!$K$4 -> 4525.935 | E42: =E31*Tablas!$K$4 -> 3194.7075 | F42: =F31*Tablas!$K$4 -> 2311.86 | G42: =G31*Tablas!$K$4 -> 1819.755
A43: Prima para hijo (s) | C43: =C32*Tablas!$K$4 -> 2202.945 | D43: =D32*Tablas!$K$4 -> 1998.2325 | E43: =E32*Tablas!$K$4 -> 1495.7925 | F43: =F32*Tablas!$K$4 -> 1083.9825 | G43: =G32*Tablas!$K$4 -> 853.83
A44: Total de Prima neta | C44: =SUM(C41:C43) -> 10827.105 | D44: =SUM(D41:D43) -> 9825.405 | E44: 7071.9225 | F44: 5120.595 | G44: 4031.0475
A45: Ajuste por la variante con coaseguro fuera del país de residencia | C45: =IF('INGRESO DE DATOS'!$P$3,C44*-15%,0) -> 0 | D45: =IF('INGRESO DE DATOS'!$P$3,D44*-15%,0) -> 0 | E45: =IF('INGRESO DE DATOS'!$P$3,E44*-15%,0) -> 0 | F45: =IF('INGRESO DE DATOS'!$P$3,F44*-15%,0) -> 0
A46: Tarifa administrativa anual | C46: 75 | D46: 75 | E46: 75 | F46: 75 | G46: 75
A47: IVA (12%) | C47: =(C44+C46)*'INGRESO DE DATOS'!$S$30 -> 1308.2526 | D47: =(D44+D46)*'INGRESO DE DATOS'!$S$30 -> 1188.0486 | E47: =(E44+E46)*'INGRESO DE DATOS'!$S$30 -> 857.6307 | F47: =(F44+F46)*'INGRESO DE DATOS'!$S$30 -> 623.4714 | G47: =(G44+G46)*'INGRESO DE DATOS'!$S$30 -> 492.7257
A48: ITBMS (7%)
A49: TOTAL de primera cuota | C49: =SUM(C44:C48) -> 12210.3576 | D49: =SUM(D44:D48) -> 11088.4536 | E49: 8004.5532 | F49: 5819.0664 | G49: =SUM(G44:G48) -> 4598.7732
A50: Costo de segunda cuota | C50: =C49-C46*'INGRESO DE DATOS'!$T$30 -> 12126.3576 | D50: =D49-D46*'INGRESO DE DATOS'!$T$30 -> 11004.4536 | E50: =E49-E46*'INGRESO DE DATOS'!$T$30 -> 7920.5532 | F50: =F49-F46*'INGRESO DE DATOS'!$T$30 -> 5735.0664 | G50: =G49-G46*'INGRESO DE DATOS'!$T$30 -> 4514.7732
A51: TOTAL ANUAL | C51: =C49+C50 -> 24336.7152 | D51: =D49+D50 -> 22092.9072 | E51: 15925.1064 | F51: =F49+F50 -> 11554.1328 | G51: 9113.5464
A53: TARIFAS TRIMESTRALES
A54: Prima para Asegurado Titular | C54: =C30*Tablas!$K$3 -> 1886.98125 | D54: =D30*Tablas!$K$3 -> 1712.90625 | E54: =E30*Tablas!$K$3 -> 1235.64375 | F54: =F30*Tablas!$K$3 -> 894.91875 | G54: =G30*Tablas!$K$3 -> 704.34375
A55: Prima para conyuge | C55: =C31*Tablas!$K$3 -> 2587.81875 | D55: =D31*Tablas!$K$3 -> 2348.3625 | E55: =E31*Tablas!$K$3 -> 1657.63125 | F55: =F31*Tablas!$K$3 -> 1199.55 | G55: =G31*Tablas!$K$3 -> 944.2125
A56: Prima para hijo (s) | C56: =C32*Tablas!$K$3 -> 1143.0375 | D56: =D32*Tablas!$K$3 -> 1036.81875 | E56: =E32*Tablas!$K$3 -> 776.11875 | F56: =F32*Tablas!$K$3 -> 562.44375 | G56: =G32*Tablas!$K$3 -> 443.025
A57: Total de Prima neta | C57: =SUM(C54:C56) -> 5617.8375 | D57: =SUM(D54:D56) -> 5098.0875 | E57: 3669.39375 | F57: 2656.9125 | G57: 2091.58125
A58: Ajuste por la variante con coaseguro fuera del país de residencia | C58: =IF('INGRESO DE DATOS'!$P$3,C57*-15%,0) -> 0 | D58: =IF('INGRESO DE DATOS'!$P$3,D57*-15%,0) -> 0 | E58: =IF('INGRESO DE DATOS'!$P$3,E57*-15%,0) -> 0 | F58: =IF('INGRESO DE DATOS'!$P$3,F57*-15%,0) -> 0
A59: Tarifa administrativa anual | C59: 75 | D59: 75 | E59: 75 | F59: 75 | G59: 75
A60: IVA (12%) | C60: =(C57+C59)*'INGRESO DE DATOS'!$S$30 -> 683.1405 | D60: =(D57+D59)*'INGRESO DE DATOS'!$S$30 -> 620.7705 | E60: =(E57+E59)*'INGRESO DE DATOS'!$S$30 -> 449.32725 | F60: =(F57+F59)*'INGRESO DE DATOS'!$S$30 -> 327.8295 | G60: =(G57+G59)*'INGRESO DE DATOS'!$S$30 -> 259.98975
A61: ITBMS (7%)
A62: TOTAL de primera cuota | C62: =SUM(C57:C61) -> 6375.978 | D62: =SUM(D57:D61) -> 5793.858 | E62: 4193.721 | F62: 3059.742 | G62: =SUM(G57:G61) -> 2426.571
A63: Costo de tarifa trimestral 2 a 4 | C63: =C62-C59*'INGRESO DE DATOS'!$T$30 -> 6291.978 | D63: =D62-D59*'INGRESO DE DATOS'!$T$30 -> 5709.858 | E63: =E62-E59*'INGRESO DE DATOS'!$T$30 -> 4109.721 | F63: =F62-F59*'INGRESO DE DATOS'!$T$30 -> 2975.742 | G63: =G62-G59*'INGRESO DE DATOS'!$T$30 -> 2342.571
A64: TOTAL ANUAL | C64: =C62+(C63*3) -> 25251.912 | D64: =D62+(D63*3) -> 22923.432 | E64: 16522.884 | F64: =F62+(F63*3) -> 11986.968 | G64: =G62+(G63*3) -> 9454.284
A66: TARIFAS MENSUALES
A67: Prima para Asegurado Titular | C67: =C30*Tablas!$K$2 -> 640.43 | D67: =D30*Tablas!$K$2 -> 581.35 | E67: =E30*Tablas!$K$2 -> 419.37 | F67: =F30*Tablas!$K$2 -> 303.73 | G67: =G30*Tablas!$K$2 -> 239.05
A68: Prima para conyuge | C68: =C31*Tablas!$K$2 -> 878.29 | D68: =D31*Tablas!$K$2 -> 797.02 | E68: =E31*Tablas!$K$2 -> 562.59 | F68: =F31*Tablas!$K$2 -> 407.12 | G68: =G31*Tablas!$K$2 -> 320.46
A69: Prima para hijo (s) | C69: =C32*Tablas!$K$2 -> 387.94 | D69: =D32*Tablas!$K$2 -> 351.89 | E69: =E32*Tablas!$K$2 -> 263.41 | F69: =F32*Tablas!$K$2 -> 190.89 | G69: =G32*Tablas!$K$2 -> 150.36
A70: Total de Prima neta | C70: =SUM(C67:C69) -> 1906.66 | D70: =SUM(D67:D69) -> 1730.26 | E70: 1245.37 | F70: 901.74 | G70: 709.87
A71: Ajuste por la variante con coaseguro fuera del país de residencia | C71: =IF('INGRESO DE DATOS'!$P$3,C70*-15%,0) -> 0 | D71: =IF('INGRESO DE DATOS'!$P$3,D70*-15%,0) -> 0 | E71: =IF('INGRESO DE DATOS'!$P$3,E70*-15%,0) -> 0 | F71: =IF('INGRESO DE DATOS'!$P$3,F70*-15%,0) -> 0
A72: Tarifa administrativa anual | C72: 75 | D72: 75 | E72: 75 | F72: 75 | G72: 75
A73: IVA (12%) | C73: =(C70+C72)*'INGRESO DE DATOS'!$S$30 -> 237.7992 | D73: =(D70+D72)*'INGRESO DE DATOS'!$S$30 -> 216.6312 | E73: =(E70+E72)*'INGRESO DE DATOS'!$S$30 -> 158.4444 | F73: =(F70+F72)*'INGRESO DE DATOS'!$S$30 -> 117.2088 | G73: =(G70+G72)*'INGRESO DE DATOS'!$S$30 -> 94.1844
A74: ITBMS (7%)
A75: TOTAL de primera cuota | C75: =SUM(C70:C74) -> 2219.4592 | D75: =SUM(D70:D74) -> 2021.8912 | E75: 1478.8144 | F75: 1093.9488 | G75: =SUM(G70:G74) -> 879.0544
A76: Costo de Tarifa mensual de 2 a 12 | C76: =C75-C72*'INGRESO DE DATOS'!$T$30 -> 2135.4592 | D76: =D75-D72*'INGRESO DE DATOS'!$T$30 -> 1937.8912 | E76: =E75-E72*'INGRESO DE DATOS'!$T$30 -> 1394.8144 | F76: =F75-F72*'INGRESO DE DATOS'!$T$30 -> 1009.9488 | G76: =G75-G72*'INGRESO DE DATOS'!$T$30 -> 795.0544
A77: TOTAL ANUAL | C77: =C75+(C76*11) -> 25709.5104 | D77: =D75+(D76*11) -> 23338.6944 | E77: 16821.7728 | F77: =F75+(F76*11) -> 12203.3856 | G77: 9624.6528
A79: Este presupuesto solamente tiene carácter informativo y en ningún momento expresa compromiso legal para suministrarle cobertura de seguro. La emisión de una póliza de seguro Bupa está sujeta a todas las evaluaciones de riesgo por parte de Bupa y a la recepción de todos los pagos de prima requeridos.

Sheet Global Select
J1: RESUMEN DE BENEFICIOS | Q1: RESUMEN DE BENEFICIOS
A5: Cotización de Seguro Médico Internacional Global Select Health Plan Tarifas en US$ | Validas: 1 de enero de 2026
A13: Nombre del Asegurado Titular | B13: =+'INGRESO DE DATOS'!$C$37 -> John Doe
A15: Número de adultos en la póliza | B15: =+'INGRESO DE DATOS'!$C$39 -> 2
A17: Número de Dependientes en la póliza | B17: =+'INGRESO DE DATOS'!$C$41 -> 2 | C17: =IF('INGRESO DE DATOS'!$P$2=TRUE, "Cotización para dependiente de 24 años","") -> 
A19: Edad del Asegurado Titular | B19: =+'INGRESO DE DATOS'!$C$43 -> 32 | D19: Edad del/la conyuge | F19: =+'INGRESO DE DATOS'!$C$45 -> 46
A21: Fecha de la cotización | B21: =NOW() -> 2026-01-12T09:32:49.510
A23: =IF('INGRESO DE DATOS'!P3=TRUE,"Variante con coaseguro fuera del país de residencia: SI","Variante con coaseguro fuera del país de residencia: NO") -> Variante con coaseguro fuera del país de residencia: NO
A25: DEDUCIBLES | C25: PLAN 1 | D25: PLAN 2 | E25: PLAN 3 | F25: PLAN 4 | G25: PLAN 5
A26: En el país de residencia | C26: 250 | D26: 2000 | E26: 5000 | F26: 10000 | G26: 20000
A27: Fuera del país de residencia | C27: 5000 | D27: 2000 | E27: 5000 | F27: 10000 | G27: 20000
A29: TARIFAS ANUALES
A30: Prima para Asegurado Titular | C30: =VLOOKUP($B$19,Tablas!$A$307:$G$373,3,TRUE) -> 6718.4 | D30: =VLOOKUP($B$19,Tablas!$A$307:$G$373,4,TRUE) -> 6447.25 | E30: =VLOOKUP($B$19,Tablas!$A$307:$G$373,5,TRUE) -> 4671.6 | F30: =VLOOKUP($B$19,Tablas!$A$307:$G$373,6,TRUE) -> 3385.55 | G30: =VLOOKUP($B$19,Tablas!$A$307:$G$373,7,TRUE) -> 2708.95
A31: Prima para conyuge | C31: =IF($B$15=1,0,(VLOOKUP($F$19,Tablas!$A$307:$G$373,3,TRUE))) -> 9542.95 | D31: =IF($B$15=1,0,(VLOOKUP($F$19,Tablas!$A$307:$G$373,4,TRUE))) -> 9157.05 | E31: =IF($B$15=1,0,(VLOOKUP($F$19,Tablas!$A$307:$G$373,5,TRUE))) -> 6478.7 | F31: =IF($B$15=1,0,(VLOOKUP($F$19,Tablas!$A$307:$G$373,6,TRUE))) -> 4697.1 | G31: =IF($B$15=1,0,(VLOOKUP($F$19,Tablas!$A$307:$G$373,7,TRUE))) -> 3758.7
A32: Prima para hijo (s) | C32: =IF($B$17=0,0,(VLOOKUP($B$17,Tablas!$A$374:$G$376,3,TRUE))) -> 4393.65 | D32: =IF($B$17=0,0,(VLOOKUP($B$17,Tablas!$A$374:$G$376,4,TRUE))) -> 4211.75 | E32: =IF($B$17=0,0,(VLOOKUP($B$17,Tablas!$A$374:$G$376,5,TRUE))) -> 3178.15 | F32: =IF($B$17=0,0,(VLOOKUP($B$17,Tablas!$A$374:$G$376,6,TRUE))) -> 2303.5 | G32: =IF($B$17=0,0,(VLOOKUP($B$17,Tablas!$A$374:$G$376,7,TRUE))) -> 1842.8
A33: Total de Prima neta | C33: =SUM(C30:C32) -> 20655 | D33: =SUM(D30:D32) -> 19816.05 | E33: 14328.45 | F33: 10386.15 | G33: 8310.45
A34: Ajuste por la variante con coaseguro fuera del país de residencia | C34: =IF('INGRESO DE DATOS'!$P$3,C33*-15%,0) -> 0 | D34: =IF('INGRESO DE DATOS'!$P$3,D33*-15%,0) -> 0 | E34: =IF('INGRESO DE DATOS'!$P$3,E33*-15%,0) -> 0 | F34: =IF('INGRESO DE DATOS'!$P$3,F33*-15%,0) -> 0
A35: Tarifa administrativa anual | C35: 75 | D35: 75 | E35: 75 | F35: 75 | G35: 75
A36: IVA (12%) | C36: =(C33+C35)*'INGRESO DE DATOS'!$S$30 -> 2487.6 | D36: =(D33+D35)*'INGRESO DE DATOS'!$S$30 -> 2386.926 | E36: =(E33+E35)*'INGRESO DE DATOS'!$S$30 -> 1728.414 | F36: =(F33+F35)*'INGRESO DE DATOS'!$S$30 -> 1255.338 | G36: =(G33+G35)*'INGRESO DE DATOS'!$S$30 -> 1006.254
A37: ITBMS (7%)
A38: TOTAL ANUAL | C38: =SUM(C33:C37) -> 23217.6 | D38: =SUM(D33:D37) -> 22277.976 | E38: 16131.864 | F38: =SUM(F33:F37) -> 11716.488 | G38: 9391.704
A40: TARIFAS SEMESTRALES
A41: Prima para Asegurado Titular | C41: =C30*Tablas!$K$4 -> 3560.752 | D41: =D30*Tablas!$K$4 -> 3417.0425 | E41: =E30*Tablas!$K$4 -> 2475.948 | F41: =F30*Tablas!$K$4 -> 1794.3415 | G41: =G30*Tablas!$K$4 -> 1435.7435
A42: Prima para conyuge | C42: =C31*Tablas!$K$4 -> 5057.7635 | D42: =D31*Tablas!$K$4 -> 4853.2365 | E42: =E31*Tablas!$K$4 -> 3433.711 | F42: =F31*Tablas!$K$4 -> 2489.463 | G42: =G31*Tablas!$K$4 -> 1992.111
A43: Prima para hijo (s) | C43: =C32*Tablas!$K$4 -> 2328.6345 | D43: =D32*Tablas!$K$4 -> 2232.2275 | E43: =E32*Tablas!$K$4 -> 1684.4195 | F43: =F32*Tablas!$K$4 -> 1220.855 | G43: =G32*Tablas!$K$4 -> 976.684
A44: Total de Prima neta | C44: =SUM(C41:C43) -> 10947.15 | D44: =SUM(D41:D43) -> 10502.5065 | E44: 7594.0785 | F44: 5504.6595 | G44: 4404.5385
A45: Ajuste por la variante con coaseguro fuera del país de residencia | C45: =IF('INGRESO DE DATOS'!$P$3,C44*-15%,0) -> 0 | D45: =IF('INGRESO DE DATOS'!$P$3,D44*-15%,0) -> 0 | E45: =IF('INGRESO DE DATOS'!$P$3,E44*-15%,0) -> 0 | F45: =IF('INGRESO DE DATOS'!$P$3,F44*-15%,0) -> 0
A46: Tarifa administrativa anual | C46: 75 | D46: 75 | E46: 75 | F46: 75 | G46: 75
A47: IVA (12%) | C47: =(C44+C46)*'INGRESO DE DATOS'!$S$30 -> 1322.658 | D47: =(D44+D46)*'INGRESO DE DATOS'!$S$30 -> 1269.30078 | E47: =(E44+E46)*'INGRESO DE DATOS'!$S$30 -> 920.28942 | F47: =(F44+F46)*'INGRESO DE DATOS'!$S$30 -> 669.55914 | G47: =(G44+G46)*'INGRESO DE DATOS'!$S$30 -> 537.54462
A48: ITBMS (7%)
A49: TOTAL de primera cuota | C49: =SUM(C44:C48) -> 12344.808 | D49: =SUM(D44:D48) -> 11846.80728 | E49: 8589.36792 | F49: 6249.21864 | G49: =SUM(G44:G48) -> 5017.08312
A50: Costo de segunda cuota | C50: =C49-C46*'INGRESO DE DATOS'!$T$30 -> 12260.808 | D50: =D49-D46*'INGRESO DE DATOS'!$T$30 -> 11762.80728 | E50: =E49-E46*'INGRESO DE DATOS'!$T$30 -> 8505.36792 | F50: =F49-F46*'INGRESO DE DATOS'!$T$30 -> 6165.21864 | G50: =G49-G46*'INGRESO DE DATOS'!$T$30 -> 4933.08312
A51: TOTAL ANUAL | C51: =C49+C50 -> 24605.616 | D51: =D49+D50 -> 23609.61456 | E51: 17094.73584 | F51: =F49+F50 -> 12414.43728 | G51: 9950.16624
A53: TARIFAS TRIMESTRALES
A54: Prima para Asegurado Titular | C54: =C30*Tablas!$K$3 -> 1847.56 | D54: =D30*Tablas!$K$3 -> 1772.99375 | E54: =E30*Tablas!$K$3 -> 1284.69 | F54: =F30*Tablas!$K$3 -> 931.02625 | G54: =G30*Tablas!$K$3 -> 744.96125
A55: Prima para conyuge | C55: =C31*Tablas!$K$3 -> 2624.31125 | D55: =D31*Tablas!$K$3 -> 2518.18875 | E55: =E31*Tablas!$K$3 -> 1781.6425 | F55: =F31*Tablas!$K$3 -> 1291.7025 | G55: =G31*Tablas!$K$3 -> 1033.6425
A56: Prima para hijo (s) | C56: =C32*Tablas!$K$3 -> 1208.25375 | D56: =D32*Tablas!$K$3 -> 1158.23125 | E56: =E32*Tablas!$K$3 -> 873.99125 | F56: =F32*Tablas!$K$3 -> 633.4625 | G56: =G32*Tablas!$K$3 -> 506.77
A57: Total de Prima neta | C57: =SUM(C54:C56) -> 5680.125 | D57: =SUM(D54:D56) -> 5449.41375 | E57: 3940.32375 | F57: 2856.19125 | G57: 2285.37375
A58: Ajuste por la variante con coaseguro fuera del país de residencia | C58: =IF('INGRESO DE DATOS'!$P$3,C57*-15%,0) -> 0 | D58: =IF('INGRESO DE DATOS'!$P$3,D57*-15%,0) -> 0 | E58: =IF('INGRESO DE DATOS'!$P$3,E57*-15%,0) -> 0 | F58: =IF('INGRESO DE DATOS'!$P$3,F57*-15%,0) -> 0
A59: Tarifa administrativa anual | C59: 75 | D59: 75 | E59: 75 | F59: 75 | G59: 75
A60: IVA (12%) | C60: =(C57+C59)*'INGRESO DE DATOS'!$S$30 -> 690.615 | D60: =(D57+D59)*'INGRESO DE DATOS'!$S$30 -> 662.92965 | E60: =(E57+E59)*'INGRESO DE DATOS'!$S$30 -> 481.83885 | F60: =(F57+F59)*'INGRESO DE DATOS'!$S$30 -> 351.74295 | G60: =(G57+G59)*'INGRESO DE DATOS'!$S$30 -> 283.24485
A61: ITBMS (7%)
A62: TOTAL de primera cuota | C62: =SUM(C57:C61) -> 6445.74 | D62: =SUM(D57:D61) -> 6187.3434 | E62: 4497.1626 | F62: 3282.9342 | G62: =SUM(G57:G61) -> 2643.6186
A63: Costo de tarifa trimestral 2 a 4 | C63: =C62-C59*'INGRESO DE DATOS'!$T$30 -> 6361.74 | D63: =D62-D59*'INGRESO DE DATOS'!$T$30 -> 6103.3434 | E63: =E62-E59*'INGRESO DE DATOS'!$T$30 -> 4413.1626 | F63: =F62-F59*'INGRESO DE DATOS'!$T$30 -> 3198.9342 | G63: =G62-G59*'INGRESO DE DATOS'!$T$30 -> 2559.6186
A64: TOTAL ANUAL | C64: =C62+(C63*3) -> 25530.96 | D64: =D62+(D63*3) -> 24497.3736 | E64: 17736.6504 | F64: =F62+(F63*3) -> 12879.7368 | G64: 10322.4744
A66: TARIFAS MENSUALES
A67: Prima para Asegurado Titular | C67: =C30*Tablas!$K$2 -> 627.0506667 | D67: =D30*Tablas!$K$2 -> 601.7433333 | E67: =E30*Tablas!$K$2 -> 436.016 | F67: =F30*Tablas!$K$2 -> 315.9846667 | G67: =G30*Tablas!$K$2 -> 252.8353333
A68: Prima para conyuge | C68: =C31*Tablas!$K$2 -> 890.6753333 | D68: =D31*Tablas!$K$2 -> 854.658 | E68: =E31*Tablas!$K$2 -> 604.6786667 | F68: =F31*Tablas!$K$2 -> 438.396 | G68: =G31*Tablas!$K$2 -> 350.812
A69: Prima para hijo (s) | C69: =C32*Tablas!$K$2 -> 410.074 | D69: =D32*Tablas!$K$2 -> 393.0966667 | E69: =E32*Tablas!$K$2 -> 296.6273333 | F69: =F32*Tablas!$K$2 -> 214.9933333 | G69: =G32*Tablas!$K$2 -> 171.9946667
A70: Total de Prima neta | C70: =SUM(C67:C69) -> 1927.8 | D70: =SUM(D67:D69) -> 1849.498 | E70: 1337.322 | F70: 969.374 | G70: 775.642
A71: Ajuste por la variante con coaseguro fuera del país de residencia | C71: =IF('INGRESO DE DATOS'!$P$3,C70*-15%,0) -> 0 | D71: =IF('INGRESO DE DATOS'!$P$3,D70*-15%,0) -> 0 | E71: =IF('INGRESO DE DATOS'!$P$3,E70*-15%,0) -> 0 | F71: =IF('INGRESO DE DATOS'!$P$3,F70*-15%,0) -> 0
A72: Tarifa administrativa anual | C72: 75 | D72: 75 | E72: 75 | F72: 75 | G72: 75
A73: IVA (12%) | C73: =(C70+C72)*'INGRESO DE DATOS'!$S$30 -> 240.336 | D73: =(D70+D72)*'INGRESO DE DATOS'!$S$30 -> 230.93976 | E73: =(E70+E72)*'INGRESO DE DATOS'!$S$30 -> 169.47864 | F73: =(F70+F72)*'INGRESO DE DATOS'!$S$30 -> 125.32488 | G73: =(G70+G72)*'INGRESO DE DATOS'!$S$30 -> 102.07704
A74: ITBMS (7%)
A75: TOTAL de primera cuota | C75: =SUM(C70:C74) -> 2243.136 | D75: =SUM(D70:D74) -> 2155.43776 | E75: 1581.80064 | F75: 1169.69888 | G75: =SUM(G70:G74) -> 952.71904
A76: Costo de Tarifa mensual de 2 a 12 | C76: =C75-C72*'INGRESO DE DATOS'!$T$30 -> 2159.136 | D76: =D75-D72*'INGRESO DE DATOS'!$T$30 -> 2071.43776 | E76: =E75-E72*'INGRESO DE DATOS'!$T$30 -> 1497.80064 | F76: =F75-F72*'INGRESO DE DATOS'!$T$30 -> 1085.69888 | G76: =G75-G72*'INGRESO DE DATOS'!$T$30 -> 868.71904
A77: TOTAL ANUAL | C77: =C75+(C76*11) -> 25993.632 | D77: =D75+(D76*11) -> 24941.25312 | E77: 18057.60768 | F77: =F75+(F76*11) -> 13112.38656 | G77: 10508.62848
A79: Este presupuesto solamente tiene carácter informativo y en ningún momento expresa compromiso legal para suministrarle cobertura de seguro. La emisión de una póliza de seguro Bupa está sujeta a todas las evaluaciones de riesgo por parte de Bupa y a la recepción de todos los pagos de prima requeridos.

Sheet Global Major Medical
G1: RESUMEN DE BENEFICIOS | N1: RESUMEN DE BENEFICIOS
A5: Cotización de Seguro Médico Internacional Global Major Medical Health Plan Tarifas en US$ | Validas: 1 de enero de 2026
A13: Nombre del Asegurado Titular | B13: =+'INGRESO DE DATOS'!$C$37 -> John Doe
A15: Número de adultos en la póliza | B15: =+'INGRESO DE DATOS'!$C$39 -> 2
A17: Número de Dependientes en la póliza | B17: =+'INGRESO DE DATOS'!$C$41 -> 2 | C17: =IF('INGRESO DE DATOS'!$P$2=TRUE, "Cotización para dependiente de 24 años","") -> 
A19: Edad del Asegurado Titular | B19: =+'INGRESO DE DATOS'!$C$43 -> 32 | C19: Edad del/la conyuge | D19: =+'INGRESO DE DATOS'!$C$45 -> 46
A21: Fecha de la cotización | B21: =NOW() -> 2026-01-12T09:32:49.510
A23: DEDUCIBLeS | C23: PLAN 1 | D23: PLAN 2
A24: En el país de residencia | C24: 10000 | D24: 20000
A25: Fuera del país de residencia | C25: 10000 | D25: 20000
A27: TARIFAS ANUALES
A28: Prima para Asegurado Titular | C28: =VLOOKUP($B$19,Tablas!$A$1138:$G$1204,3,TRUE) -> 4346.05 | D28: =VLOOKUP($B$19,Tablas!$A$1138:$G$1204,4,TRUE) -> 3309.9
A29: Prima para conyuge | C29: =IF($B$15=1,0,(VLOOKUP($D$19,Tablas!$A$1138:$G$1204,3,TRUE))) -> 5974.65 | D29: =IF($B$15=1,0,(VLOOKUP($D$19,Tablas!$A$1138:$G$1204,4,TRUE))) -> 4530.5
A30: Prima para hijo (s) | C30: =IF($B$17=0,0,(VLOOKUP($B$17,Tablas!$A$1205:$G$1207,3,TRUE))) -> 2618 | D30: =IF($B$17=0,0,(VLOOKUP($B$17,Tablas!$A$1205:$G$1207,4,TRUE))) -> 2056.15
A31: Total de Prima neta | C31: =SUM(C28:C30) -> 12938.7 | D31: =SUM(D28:D30) -> 9896.55
A32: Tarifa administrativa anual | C32: 75 | D32: 75
A33: IVA (12%) | C33: =(C31+C32)*'INGRESO DE DATOS'!$S$30 -> 1561.644 | D33: =(D31+D32)*'INGRESO DE DATOS'!$S$30 -> 1196.586
A34: ITBMS (7%)
A35: TOTAL ANUAL | C35: =SUM(C31:C34) -> 14575.344 | D35: =SUM(D31:D34) -> 11168.136
A37: TARIFAS SEMESTRALES
A38: Prima para Asegurado Titular | C38: =VLOOKUP($B$19,Tablas!$A$1362:$G$1428,3,TRUE) -> 2303.4065 | D38: =VLOOKUP($B$19,Tablas!$A$1362:$G$1428,4,TRUE) -> 1754.247
A39: Prima para conyuge | C39: =IF($B$15=1,0,(VLOOKUP($D$19,Tablas!$A$1362:$G$1428,3,TRUE))) -> 3166.5645 | D39: =IF($B$15=1,0,(VLOOKUP($D$19,Tablas!$A$1362:$G$1428,4,TRUE))) -> 2401.165
A40: Prima para hijo (s) | C40: =IF($B$17=0,0,(VLOOKUP($B$17,Tablas!$A$1429:$G$1431,3,TRUE))) -> 1387.54 | D40: =IF($B$17=0,0,(VLOOKUP($B$17,Tablas!$A$1429:$G$1431,4,TRUE))) -> 1089.7595
A41: Total de Prima neta | C41: =SUM(C38:C40) -> 6857.511 | D41: =SUM(D38:D40) -> 5245.1715
A42: Tarifa administrativa anual | C42: 75 | D42: 75
A43: IVA (12%) | C43: =(C41+C42)*'INGRESO DE DATOS'!$S$30 -> 831.90132 | D43: =(D41+D42)*'INGRESO DE DATOS'!$S$30 -> 638.42058
A44: ITBMS (7%)
A45: TOTAL de primera cuota | C45: =SUM(C41:C44) -> 7764.41232 | D45: =SUM(D41:D44) -> 5958.59208
A46: Costo de segunda cuota | C46: =C45-C42*'INGRESO DE DATOS'!$T$30 -> 7680.41232 | D46: =D45-D42*'INGRESO DE DATOS'!$T$30 -> 5874.59208
A47: TOTAL ANUAL | C47: =C45+C46 -> 15444.82464 | D47: =D45+D46 -> 11833.18416
A49: TARIFAS TRIMESTRALES
A50: Prima para Asegurado Titular | C50: =VLOOKUP($B$19,Tablas!$A$1287:$G$1353,3,TRUE) -> 1195.16375 | D50: =VLOOKUP($B$19,Tablas!$A$1287:$G$1353,4,TRUE) -> 910.2225
A51: Prima para conyuge | C51: =IF($B$15=1,0,(VLOOKUP($D$19,Tablas!$A$1287:$G$1353,3,TRUE))) -> 1643.02875 | D51: =IF($B$15=1,0,(VLOOKUP($D$19,Tablas!$A$1287:$G$1353,4,TRUE))) -> 1245.8875
A52: Prima para hijo (s) | C52: =IF($B$17=0,0,(VLOOKUP($B$17,Tablas!$A$1354:$G$1356,3,TRUE))) -> 719.95 | D52: =IF($B$17=0,0,(VLOOKUP($B$17,Tablas!$A$1354:$G$1356,4,TRUE))) -> 565.44125
A53: Total de Prima neta | C53: =SUM(C50:C52) -> 3558.1425 | D53: =SUM(D50:D52) -> 2721.55125
A54: Tarifa administrativa anual | C54: 75 | D54: 75
A55: IVA (12%) | C55: =(C53+C54)*'INGRESO DE DATOS'!$S$30 -> 435.9771 | D55: =(D53+D54)*'INGRESO DE DATOS'!$S$30 -> 335.58615
A56: ITBMS (7%)
A57: TOTAL de primera cuota | C57: =SUM(C53:C56) -> 4069.1196 | D57: =SUM(D53:D56) -> 3132.1374
A58: Costo de tarifa trimestral 2 a 4 | C58: =C57-C54*'INGRESO DE DATOS'!$T$30 -> 3985.1196 | D58: =D57-D54*'INGRESO DE DATOS'!$T$30 -> 3048.1374
A59: TOTAL ANUAL | C59: =C57+(C58*3) -> 16024.4784 | D59: =D57+(D58*3) -> 12276.5496
A61: TARIFAS MENSUALES
A62: Prima para Asegurado Titular | C62: =VLOOKUP($B$19,Tablas!$A$1212:$G$1278,3,TRUE) -> 405.6313333 | D62: =VLOOKUP($B$19,Tablas!$A$1212:$G$1278,4,TRUE) -> 308.924
A63: Prima para conyuge | C63: =IF($B$15=1,0,(VLOOKUP($D$19,Tablas!$A$1212:$G$1278,3,TRUE))) -> 557.634 | D63: =IF($B$15=1,0,(VLOOKUP($D$19,Tablas!$A$1212:$G$1278,4,TRUE))) -> 422.8466667
A64: Prima para hijo (s) | C64: =IF($B$17=0,0,(VLOOKUP($B$17,Tablas!$A$1279:$G$1281,3,TRUE))) -> 244.3466667 | D64: =IF($B$17=0,0,(VLOOKUP($B$17,Tablas!$A$1279:$G$1281,4,TRUE))) -> 191.9073333
A65: Total de Prima neta | C65: =SUM(C62:C64) -> 1207.612 | D65: =SUM(D62:D64) -> 923.678
A66: Tarifa administrativa anual | C66: 75 | D66: 75
A67: IVA (12%) | C67: =(C65+C66)*'INGRESO DE DATOS'!$S$30 -> 153.91344 | D67: =(D65+D66)*'INGRESO DE DATOS'!$S$30 -> 119.84136
A68: ITBMS (7%)
A69: TOTAL de primera cuota | C69: =SUM(C65:C68) -> 1436.52544 | D69: =SUM(D65:D68) -> 1118.51936
A70: Costo de Tarifa mensual de 2 a 12 | C70: =C69-C66*'INGRESO DE DATOS'!$T$30 -> 1352.52544 | D70: =D69-D66*'INGRESO DE DATOS'!$T$30 -> 1034.51936
A71: TOTAL ANUAL | C71: =C69+(C70*11) -> 16314.30528 | D71: =D69+(D70*11) -> 12498.23232
A73: Este presupuesto solamente tiene carácter informativo y en ningún momento expresa compromiso legal para suministrarle cobertura de seguro. La emisión de una póliza de seguro Bupa está sujeta a todas las evaluaciones de riesgo por parte de Bupa y a la recepción de todos los pagos de prima requeridos.

Sheet Resumen Tarifas
A5: Cotización de Seguro Médico Internacional Bupa Global Major Health Plans Resumen de Tarifas Tarifas en US$ | Validas: 1 de enero de 2026
A13: Nombre del Asegurado Titular | B13: =+'INGRESO DE DATOS'!$C$37 -> John Doe
A15: Número de adultos en la póliza | B15: =+'INGRESO DE DATOS'!$C$39 -> 2
A17: Número de Dependientes en la póliza | B17: =+'INGRESO DE DATOS'!$C$41 -> 2 | C17: =IF('INGRESO DE DATOS'!$P$2=TRUE, "Cotización para dependiente de 24 años","") -> 
A19: Edad del Asegurado Titular | B19: =+'INGRESO DE DATOS'!$C$43 -> 32 | F19: Edad del/la conyuge | G19: =+'INGRESO DE DATOS'!$C$45 -> 46
A21: Fecha de la cotización | B21: =NOW() -> 2026-01-12T09:32:49.510
A23: GLOBAL ULTIMATE HEALTH PLAN
A24: DEDUCIBLES | B24: PLAN 1 | C24: PLAN 2
A25: En el país de residencia | B25: $0 | C25: 1000
A26: Fuera del país de residencia | B26: $0 | C26: 1000
B27: TARIFAS ANUALES
B28: ='Global Ultimate'!C38 -> 145466.72 | C28: ='Global Ultimate'!D38 -> 93884
B29: TARIFAS SEMESTRALES
B30: ='Global Ultimate'!C50 -> 77052.8416 | C30: ='Global Ultimate'!D50 -> 49714
B31: TARIFAS TRIMESTRALES
B32: ='Global Ultimate'!C63 -> 39980.248 | C32: ='Global Ultimate'!D63 -> 25946.8125
B33: TARIFAS MENSUALES
B34: ='Global Ultimate'!C76 -> 13569.05387 | C34: ='Global Ultimate'!D76 -> 8754.666667
A35: Ahorros en tarifas de prima para Dependientes* | B35: ='Global Ultimate'!C39 -> 16764 | C35: ='Global Ultimate'!D39 -> 10817
A37: BUPA GLOBAL ELITE HEALTH PLAN
A38: DEDUCIBLES | B38: PLAN 1 | C38: PLAN 2 | D38: PLAN 3 | E38: PLAN 4 | F38: PLAN 5 | G38: PLAN 6
A39: En el país de residencia | B39: 250 | C39: 2000 | D39: 3500 | E39: 5000 | F39: 10000 | G39: 20000
A40: Fuera del país de residencia | B40: 5000 | C40: 2000 | D40: 3500 | E40: 5000 | F40: 10000 | G40: 20000
B41: TARIFAS ANUALES
B42: =+'Global Elite'!C40 -> 48116.208 | C42: =+'Global Elite'!D40 -> 42179.536 | D42: =+'Global Elite'!E40 -> 34021.848 | E42: =+'Global Elite'!F40 -> 29517.936 | F42: =+'Global Elite'!G40 -> 22323.672 | G42: ='Global Elite'!H40 -> 17654.112
B43: TARIFAS SEMESTRALES
B44: =+'Global Elite'!C53 -> 25457.07024 | C44: =+'Global Elite'!D53 -> 22310.63408 | D44: =+'Global Elite'!E53 -> 17987.05944 | E44: =+'Global Elite'!F53 -> 15599.98608 | F44: =+'Global Elite'!G53 -> 11787.02616 | G44: ='Global Elite'!H54 -> 18708.31872
B45: TARIFAS TRIMESTRALES
B46: =+'Global Elite'!C67 -> 13208.8572 | C46: =+'Global Elite'!D67 -> 11576.2724 | D46: =+'Global Elite'!E67 -> 9332.9082 | E46: =+'Global Elite'!F67 -> 8094.3324 | F46: =+'Global Elite'!G67 -> 6115.9098 | G46: ='Global Elite'!H68 -> 19411.1232
B47: TARIFAS MENSUALES
B48: =+'Global Elite'!C81 -> 4483.00608 | C48: =+'Global Elite'!D81 -> 3928.916693 | D48: =+'Global Elite'!E81 -> 3167.53248 | E48: =+'Global Elite'!F81 -> 2747.16736 | F48: =+'Global Elite'!G81 -> 2075.70272 | G48: ='Global Elite'!H82 -> 19762.52544
A49: Ahorros en tarifas de prima para Dependientes* | B49: =+'Global Elite'!C41 -> 5604.05 | C49: =+'Global Elite'!D41 -> 4908.75 | D49: =+'Global Elite'!E41 -> 4055.35 | E49: =+'Global Elite'!F41 -> 3519 | F49: =+'Global Elite'!G41 -> 2658.8 | G49: ='Global Elite'!H41 -> 2101.2
A51: GLOBAL PREMIER HEALTH PLAN
A52: DEDUCIBLES | B52: PLAN 1 | C52: PLAN 2 | D52: PLAN 3 | E52: PLAN 4 | F52: PLAN 5
A53: En el país de residencia | B53: 250 | C53: 2000 | D53: 5000 | E53: 10000 | F53: 20000
A54: Fuera del país de residencia | B54: 5000 | C54: 2000 | D54: 5000 | E54: 10000 | F54: 20000
B55: TARIFAS ANUALES
B56: =+'Global Premier'!C38 -> 22963.92 | C56: =+'Global Premier'!D38 -> 20847.12 | D56: =+'Global Premier'!E38 -> 15028.44 | E56: =+'Global Premier'!F38 -> 10904.88 | F56: ='Global Premier'!G38 -> 8602.44
B57: TARIFAS SEMESTRALES
B58: =+'Global Premier'!C50 -> 12126.3576 | C58: =+'Global Premier'!D50 -> 11004.4536 | D58: =+'Global Premier'!E50 -> 7920.5532 | E58: =+'Global Premier'!F50 -> 5735.0664 | F58: ='Global Premier'!G51 -> 9113.5464
B59: TARIFAS TRIMESTRALES
B60: =+'Global Premier'!C63 -> 6291.978 | C60: =+'Global Premier'!D63 -> 5709.858 | D60: =+'Global Premier'!E63 -> 4109.721 | E60: =+'Global Premier'!F63 -> 2975.742 | F60: ='Global Premier'!G64 -> 9454.284
B61: TARIFAS MENSUALES
B62: =+'Global Premier'!C76 -> 2135.4592 | C62: =+'Global Premier'!D76 -> 1937.8912 | D62: =+'Global Premier'!E76 -> 1394.8144 | E62: =+'Global Premier'!F76 -> 1009.9488 | F62: ='Global Premier'!G77 -> 9624.6528
A64: GLOBAL SELECT HEALTH PLAN
A65: DEDUCIBLES | B65: PLAN 1 | C65: PLAN 2 | D65: PLAN 3 | E65: PLAN 4 | F65: PLAN 5
A66: En el país de residencia | B66: 250 | C66: 2000 | D66: 5000 | E66: 10000 | F66: 20000
A67: Fuera del país de residencia | B67: 5000 | C67: 2000 | D67: 5000 | E67: 10000 | F67: 20000
B68: TARIFAS ANUALES
B69: =+'Global Select'!C38 -> 23217.6 | C69: =+'Global Select'!D38 -> 22277.976 | D69: =+'Global Select'!E38 -> 16131.864 | E69: =+'Global Select'!F38 -> 11716.488 | F69: ='Global Select'!G38 -> 9391.704
B70: TARIFAS SEMESTRALES
B71: =+'Global Select'!C50 -> 12260.808 | C71: =+'Global Select'!D50 -> 11762.80728 | D71: =+'Global Select'!E50 -> 8505.36792 | E71: =+'Global Select'!F50 -> 6165.21864 | F71: ='Global Select'!G51 -> 9950.16624
B72: TARIFAS TRIMESTRALES
B73: =+'Global Select'!C63 -> 6361.74 | C73: =+'Global Select'!D63 -> 6103.3434 | D73: =+'Global Select'!E63 -> 4413.1626 | E73: =+'Global Select'!F63 -> 3198.9342 | F73: ='Global Select'!G64 -> 10322.4744
B74: TARIFAS MENSUALES
B75: =+'Global Select'!C76 -> 2159.136 | C75: =+'Global Select'!D76 -> 2071.43776 | D75: =+'Global Select'!E76 -> 1497.80064 | E75: =+'Global Select'!F76 -> 1085.69888 | F75: ='Global Select'!G77 -> 10508.62848
A77: GLOBAL MAJOR MEDICAL HEALTH PLAN
A78: DEDUCIBLES | B78: PLAN 1 | C78: PLAN 2
A79: En el país de residencia | B79: 10000 | C79: 20000
A80: Fuera del país de residencia | B80: 10000 | C80: 20000
B81: TARIFAS ANUALES
B82: ='Global Major Medical'!C35 -> 14575.344 | C82: ='Global Major Medical'!D35 -> 11168.136
B83: TARIFAS SEMESTRALES
B84: ='Global Major Medical'!C46 -> 7680.41232 | C84: ='Global Major Medical'!D46 -> 5874.59208
B85: TARIFAS TRIMESTRALES
B86: ='Global Major Medical'!C58 -> 3985.1196 | C86: ='Global Major Medical'!D58 -> 3048.1374
B87: TARIFAS MENSUALES
B88: ='Global Major Medical'!C70 -> 1352.52544 | C88: ='Global Major Medical'!D70 -> 1034.51936
A90: Este presupuesto solamente tiene carácter informativo y en ningún momento expresa compromiso legal para suministrarle cobertura de seguro. La emisión de una póliza de seguro Bupa está sujeta a todas las evaluaciones de riesgo por parte de Bupa y a la recepción de todos los pagos de prima requeridos. Una tarifa administrativa de US$75 se cargará automáticamente al primer pago. *Basado en un modo de pago anual

Sheet Tablas (hidden)
A2: BUPA GLOBAL ELITE | I2: FACTOR MENSUAL: | K2: 0.09333333333 | M2: Descuento de 24 años | N2: ='INGRESO DE DATOS'!P30 -> 1 | O2: Ultimate | P2: Elite | Q2: Premier | R2: Select | S2: Major Medical
A3: TARIFAS ANUALES | I3: FACTOR TRIMESTRAL: | K3: 0.275 | M3: Descuento de producto (%) | O3: ='INGRESO DE DATOS'!O39 -> 0 | P3: ='INGRESO DE DATOS'!P39 -> 0.15 | Q3: ='INGRESO DE DATOS'!Q39 -> 0.25 | R3: ='INGRESO DE DATOS'!R39 -> 0.15 | S3: ='INGRESO DE DATOS'!S39 -> 0.15
I4: FACTOR SEMIANUAL: | K4: 0.53 | M4: Factor para el descuento combinado | O4: ='INGRESO DE DATOS'!O47 -> 1 | P4: ='INGRESO DE DATOS'!P47 -> 0.85 | Q4: ='INGRESO DE DATOS'!Q47 -> 0.75 | R4: ='INGRESO DE DATOS'!R47 -> 0.85 | S4: ='INGRESO DE DATOS'!S47 -> 0.85
A5: EDAD | C5: 1000 | D5: 2000 | E5: 3500 | F5: 5000 | G5: 10000 | H5: 20000 | I5: TARIFAS BASE | O5: TARIFAS BASE CON DESCUENTO
A6: 18 | C6: =O6 -> 12444 | D6: =P6 -> 10904.65 | E6: 9010.85 | F6: 7810.65 | G6: 5904.95 | H6: 4664.8 | I6: 14640 | J6: 12829 | K6: 10601 | L6: 9189 | M6: 6947 | N6: 5488 | O6: =I6*$P$4 -> 12444 | P6: =J6*$P$4 -> 10904.65 | Q6: 9010.85 | R6: 7810.65 | S6: 5904.95 | T6: 4664.8
A7: 19 | C7: =O7 -> 12593.6 | D7: =P7 -> 11038.95 | E7: =Q7 -> 9105.2 | F7: =R7 -> 7897.35 | G7: =S7 -> 5969.55 | H7: 4715.8 | I7: 14816 | J7: 12987 | K7: 10712 | L7: 9291 | M7: 7023 | N7: 5548 | O7: =I7*$P$4 -> 12593.6 | P7: =J7*$P$4 -> 11038.95 | Q7: =K7*$P$4 -> 9105.2 | R7: =L7*$P$4 -> 7897.35 | S7: =M7*$P$4 -> 5969.55 | T7: 4715.8
A8: 20 | C8: 12755.1 | D8: 11175.8 | E8: 9205.5 | F8: 7982.35 | G8: 6031.6 | H8: 4765.1 | I8: 15006 | J8: 13148 | K8: 10830 | L8: 9391 | M8: 7096 | N8: 5606 | O8: 12755.1 | P8: 11175.8 | Q8: 9205.5 | R8: 7982.35 | S8: 6031.6 | T8: 4765.1
A9: 21 | C9: 12913.2 | D9: 11320.3 | E9: 9308.35 | F9: 8072.45 | G9: 6102.15 | H9: 4819.5 | I9: 15192 | J9: 13318 | K9: 10951 | L9: 9497 | M9: 7179 | N9: 5670 | O9: 12913.2 | P9: 11320.3 | Q9: 9308.35 | R9: 8072.45 | S9: 6102.15 | T9: 4819.5
A10: 22 | C10: 13080.65 | D10: 11465.65 | E10: 9418 | F10: 8166.8 | G10: 6171.85 | H10: 4875.6 | I10: 15389 | J10: 13489 | K10: 11080 | L10: 9608 | M10: 7261 | N10: 5736 | O10: 13080.65 | P10: 11465.65 | Q10: 9418 | R10: 8166.8 | S10: 6171.85 | T10: 4875.6
A11: 23 | C11: 13253.2 | D11: 11620.35 | E11: 9531.05 | F11: 8263.7 | G11: 6244.95 | H11: 4933.4 | I11: 15592 | J11: 13671 | K11: 11213 | L11: 9722 | M11: 7347 | N11: 5804 | O11: 13253.2 | P11: 11620.35 | Q11: 9531.05 | R11: 8263.7 | S11: 6244.95 | T11: 4933.4
A12: 24 | C12: 13430.85 | D12: 11777.6 | E12: 9644.1 | F12: 8364 | G12: 6320.6 | H12: 4993.75 | I12: 15801 | J12: 13856 | K12: 11346 | L12: 9840 | M12: 7436 | N12: 5875 | O12: 13430.85 | P12: 11777.6 | Q12: 9644.1 | R12: 8364 | S12: 6320.6 | T12: 4993.75
A13: 25 | C13: 13619.55 | D13: 11936.55 | E13: 9761.4 | F13: 8463.45 | G13: 6399.65 | H13: 5055.8 | I13: 16023 | J13: 14043 | K13: 11484 | L13: 9957 | M13: 7529 | N13: 5948 | O13: 13619.55 | P13: 11936.55 | Q13: 9761.4 | R13: 8463.45 | S13: 6399.65 | T13: 5055.8
A14: 26 | C14: 13886.45 | D14: 12170.3 | E14: 9939.05 | F14: 8618.15 | G14: 6513.55 | H14: 5145.9 | I14: 16337 | J14: 14318 | K14: 11693 | L14: 10139 | M14: 7663 | N14: 6054 | O14: 13886.45 | P14: 12170.3 | Q14: 9939.05 | R14: 8618.15 | S14: 6513.55 | T14: 5145.9
A15: 27 | C15: 14161.85 | D15: 12416.8 | E15: 10119.25 | F15: 8776.25 | G15: 6630.85 | H15: 5239.4 | I15: 16661 | J15: 14608 | K15: 11905 | L15: 10325 | M15: 7801 | N15: 6164 | O15: 14161.85 | P15: 12416.8 | Q15: 10119.25 | R15: 8776.25 | S15: 6630.85 | T15: 5239.4
A16: 28 | C16: 14453.4 | D16: 12670.95 | E16: 10308.8 | F16: 8938.6 | G16: 6757.5 | H16: 5338 | I16: 17004 | J16: 14907 | K16: 12128 | L16: 10516 | M16: 7950 | N16: 6280 | O16: 14453.4 | P16: 12670.95 | Q16: 10308.8 | R16: 8938.6 | S16: 6757.5 | T16: 5338
A17: 29 | C17: 14755.15 | D17: 12933.6 | E17: 10509.4 | F17: 9112.85 | G17: 6885.85 | H17: 5439.15 | I17: 17359 | J17: 15216 | K17: 12364 | L17: 10721 | M17: 8101 | N17: 6399 | O17: 14755.15 | P17: 12933.6 | Q17: 10509.4 | R17: 9112.85 | S17: 6885.85 | T17: 5439.15
A18: 30 | C18: 15065.4 | D18: 13208.15 | E18: 10718.5 | F18: 9294.75 | G18: 7022.7 | H18: 5547.95 | I18: 17724 | J18: 15539 | K18: 12610 | L18: 10935 | M18: 8262 | N18: 6527 | O18: 15065.4 | P18: 13208.15 | Q18: 10718.5 | R18: 9294.75 | S18: 7022.7 | T18: 5547.95
A19: 31 | C19: 15390.95 | D19: 13494.6 | E19: 10925.05 | F19: 9476.65 | G19: 7159.55 | H19: 5655.9 | I19: 18107 | J19: 15876 | K19: 12853 | L19: 11149 | M19: 8423 | N19: 6654 | O19: 15390.95 | P19: 13494.6 | Q19: 10925.05 | R19: 9476.65 | S19: 7159.55 | T19: 5655.9
A20: 32 | C20: 15722.45 | D20: 13780.2 | E20: 11153.7 | F20: 9673 | G20: 7307.45 | H20: 5773.2 | I20: 18497 | J20: 16212 | K20: 13122 | L20: 11380 | M20: 8597 | N20: 6792 | O20: 15722.45 | P20: 13780.2 | Q20: 11153.7 | R20: 9673 | S20: 7307.45 | T20: 5773.2
A21: 33 | C21: 16071.8 | D21: 14087.9 | E21: 11378.95 | F21: 9871.05 | G21: 7458.75 | H21: 5892.2 | I21: 18908 | J21: 16574 | K21: 13387 | L21: 11613 | M21: 8775 | N21: 6932 | O21: 16071.8 | P21: 14087.9 | Q21: 11378.95 | R21: 9871.05 | S21: 7458.75 | T21: 5892.2
A22: 34 | C22: 16427.95 | D22: 14395.6 | E22: 11617.8 | F22: 10078.45 | G22: 7611.75 | H22: 6013.75 | I22: 19327 | J22: 16936 | K22: 13668 | L22: 11857 | M22: 8955 | N22: 7075 | O22: 16427.95 | P22: 14395.6 | Q22: 11617.8 | R22: 10078.45 | S22: 7611.75 | T22: 6013.75
A23: 35 | C23: 16793.45 | D23: 14719.45 | E23: 11865.15 | F23: 10289.25 | G23: 7775.8 | H23: 6142.1 | I23: 19757 | J23: 17317 | K23: 13959 | L23: 12105 | M23: 9148 | N23: 7226 | O23: 16793.45 | P23: 14719.45 | Q23: 11865.15 | R23: 10289.25 | S23: 7775.8 | T23: 6142.1
A24: 36 | C24: 17170.85 | D24: 15049.25 | E24: 12114.2 | F24: 10506.85 | G24: 7937.3 | H24: 6269.6 | I24: 20201 | J24: 17705 | K24: 14252 | L24: 12361 | M24: 9338 | N24: 7376 | O24: 17170.85 | P24: 15049.25 | Q24: 12114.2 | R24: 10506.85 | S24: 7937.3 | T24: 6269.6
A25: 37 | C25: 17559.3 | D25: 15392.65 | E25: 12381.95 | F25: 10737.2 | G25: 8113.25 | H25: 6409.85 | I25: 20658 | J25: 18109 | K25: 14567 | L25: 12632 | M25: 9545 | N25: 7541 | O25: 17559.3 | P25: 15392.65 | Q25: 12381.95 | R25: 10737.2 | S25: 8113.25 | T25: 6409.85
A26: 38 | C26: 17962.2 | D26: 15744.55 | E26: 12650.55 | F26: 10970.1 | G26: 8287.5 | H26: 6546.7 | I26: 21132 | J26: 18523 | K26: 14883 | L26: 12906 | M26: 9750 | N26: 7702 | O26: 17962.2 | P26: 15744.55 | Q26: 12650.55 | R26: 10970.1 | S26: 8287.5 | T26: 6546.7
A27: 39 | C27: 18371.05 | D27: 16102.4 | E27: 12928.5 | F27: 11208.95 | G27: 8471.95 | H27: 6692.9 | I27: 21613 | J27: 18944 | K27: 15210 | L27: 13187 | M27: 9967 | N27: 7874 | O27: 18371.05 | P27: 16102.4 | Q27: 12928.5 | R27: 11208.95 | S27: 8471.95 | T27: 6692.9
A28: 40 | C28: 18790.1 | D28: 16473 | E28: 13209.85 | F28: 11456.3 | G28: 8658.1 | H28: 6839.1 | I28: 22106 | J28: 19380 | K28: 15541 | L28: 13478 | M28: 10186 | N28: 8046 | O28: 18790.1 | P28: 16473 | Q28: 13209.85 | R28: 11456.3 | S28: 8658.1 | T28: 6839.1
A29: 41 | C29: 19226.15 | D29: 16853.8 | E29: 13506.5 | F29: 11709.6 | G29: 8851.05 | H29: 6991.25 | I29: 22619 | J29: 19828 | K29: 15890 | L29: 13776 | M29: 10413 | N29: 8225 | O29: 19226.15 | P29: 16853.8 | Q29: 13506.5 | R29: 11709.6 | S29: 8851.05 | T29: 6991.25
A30: 42 | C30: 19672.4 | D30: 17239.7 | E30: 13809.95 | F30: 11975.65 | G30: 9048.25 | H30: 7147.65 | I30: 23144 | J30: 20282 | K30: 16247 | L30: 14089 | M30: 10645 | N30: 8409 | O30: 19672.4 | P30: 17239.7 | Q30: 13809.95 | R30: 11975.65 | S30: 9048.25 | T30: 7147.65
A31: 43 | C31: 20127.15 | D31: 17640.9 | E31: 14115.95 | F31: 12240 | G31: 9251.4 | H31: 7308.3 | I31: 23679 | J31: 20754 | K31: 16607 | L31: 14400 | M31: 10884 | N31: 8598 | O31: 20127.15 | P31: 17640.9 | Q31: 14115.95 | R31: 12240 | S31: 9251.4 | T31: 7308.3
A32: 44 | C32: 20592.95 | D32: 18053.15 | E32: 14433.85 | F32: 12517.95 | G32: 9458.8 | H32: 7472.35 | I32: 24227 | J32: 21239 | K32: 16981 | L32: 14727 | M32: 11128 | N32: 8791 | O32: 20592.95 | P32: 18053.15 | Q32: 14433.85 | R32: 12517.95 | S32: 9458.8 | T32: 7472.35
A33: 45 | C33: 21070.65 | D33: 18471.35 | E33: 14760.25 | F33: 12800.15 | G33: 9673.85 | H33: 7642.35 | I33: 24789 | J33: 21731 | K33: 17365 | L33: 15059 | M33: 11381 | N33: 8991 | O33: 21070.65 | P33: 18471.35 | Q33: 14760.25 | R33: 12800.15 | S33: 9673.85 | T33: 7642.35
A34: 46 | C34: 21559.4 | D34: 18896.35 | E34: 15092.6 | F34: 13088.3 | G34: 9890.6 | H34: 7813.2 | I34: 25364 | J34: 22231 | K34: 17756 | L34: 15398 | M34: 11636 | N34: 9192 | O34: 21559.4 | P34: 18896.35 | Q34: 15092.6 | R34: 13088.3 | S34: 9890.6 | T34: 7813.2
A35: 47 | C35: 22058.35 | D35: 19338.35 | E35: 15434.3 | F35: 13382.4 | G35: 10115 | H35: 7990.85 | I35: 25951 | J35: 22751 | K35: 18158 | L35: 15744 | M35: 11900 | N35: 9401 | O35: 22058.35 | P35: 19338.35 | Q35: 15434.3 | R35: 13382.4 | S35: 10115 | T35: 7990.85
A36: 48 | C36: 22571.75 | D36: 19778.65 | E36: 15782.8 | F36: 13686.7 | G36: 10341.1 | H36: 8169.35 | I36: 26555 | J36: 23269 | K36: 18568 | L36: 16102 | M36: 12166 | N36: 9611 | O36: 22571.75 | P36: 19778.65 | Q36: 15782.8 | R36: 13686.7 | S36: 10341.1 | T36: 8169.35
A37: 49 | C37: 23090.25 | D37: 20240.2 | E37: 16138.1 | F37: 13994.4 | G37: 10576.55 | H37: 8355.5 | I37: 27165 | J37: 23812 | K37: 18986 | L37: 16464 | M37: 12443 | N37: 9830 | O37: 23090.25 | P37: 20240.2 | Q37: 16138.1 | R37: 13994.4 | S37: 10576.55 | T37: 8355.5
A38: 50 | C38: 23624.05 | D38: 20703.45 | E38: 16505.3 | F38: 14312.3 | G38: 10815.4 | H38: 8543.35 | I38: 27793 | J38: 24357 | K38: 19418 | L38: 16838 | M38: 12724 | N38: 10051 | O38: 23624.05 | P38: 20703.45 | Q38: 16505.3 | R38: 14312.3 | S38: 10815.4 | T38: 8543.35
A39: 51 | C39: 24168.05 | D39: 21183.7 | E39: 16881.85 | F39: 14636.15 | G39: 11060.2 | H39: 8737.15 | I39: 28433 | J39: 24922 | K39: 19861 | L39: 17219 | M39: 13012 | N39: 10279 | O39: 24168.05 | P39: 21183.7 | Q39: 16881.85 | R39: 14636.15 | S39: 11060.2 | T39: 8737.15
A40: 52 | C40: 24719.7 | D40: 21671.6 | E40: 17256.7 | F40: 14965.1 | G40: 11308.4 | H40: 8933.5 | I40: 29082 | J40: 25496 | K40: 20302 | L40: 17606 | M40: 13304 | N40: 10510 | O40: 24719.7 | P40: 21671.6 | Q40: 17256.7 | R40: 14965.1 | S40: 11308.4 | T40: 8933.5
A41: 53 | C41: 25286.65 | D41: 22165.45 | E41: 17646 | F41: 15302.55 | G41: 11563.4 | H41: 9134.95 | I41: 29749 | J41: 26077 | K41: 20760 | L41: 18003 | M41: 13604 | N41: 10747 | O41: 25286.65 | P41: 22165.45 | Q41: 17646 | R41: 15302.55 | S41: 11563.4 | T41: 9134.95
A42: 54 | C42: 25865.5 | D42: 22670.35 | E42: 18046.35 | F42: 15648.5 | G42: 11823.5 | H42: 9340.65 | I42: 30430 | J42: 26671 | K42: 21231 | L42: 18410 | M42: 13910 | N42: 10989 | O42: 25865.5 | P42: 22670.35 | Q42: 18046.35 | R42: 15648.5 | S42: 11823.5 | T42: 9340.65
A43: 55 | C43: 26455.4 | D43: 23186.3 | E43: 18449.25 | F43: 15997 | G43: 12090.4 | H43: 9550.6 | I43: 31124 | J43: 27278 | K43: 21705 | L43: 18820 | M43: 14224 | N43: 11236 | O43: 26455.4 | P43: 23186.3 | Q43: 18449.25 | R43: 15997 | S43: 12090.4 | T43: 9550.6
A44: 56 | C44: 27050.4 | D44: 23710.75 | E44: 18863.2 | F44: 16356.55 | G44: 12359 | H44: 9763.1 | I44: 31824 | J44: 27895 | K44: 22192 | L44: 19243 | M44: 14540 | N44: 11486 | O44: 27050.4 | P44: 23710.75 | Q44: 18863.2 | R44: 16356.55 | S44: 12359 | T44: 9763.1
A45: 57 | C45: 27662.4 | D45: 24247.1 | E45: 19279.7 | F45: 16716.1 | G45: 12633.55 | H45: 9979.85 | I45: 32544 | J45: 28526 | K45: 22682 | L45: 19666 | M45: 14863 | N45: 11741 | O45: 27662.4 | P45: 24247.1 | Q45: 19279.7 | R45: 16716.1 | S45: 12633.55 | T45: 9979.85
A46: 58 | C46: 28284.6 | D46: 24795.35 | E46: 19706.4 | F46: 17088.4 | G46: 12914.05 | H46: 10201.7 | I46: 33276 | J46: 29171 | K46: 23184 | L46: 20104 | M46: 15193 | N46: 12002 | O46: 28284.6 | P46: 24795.35 | Q46: 19706.4 | R46: 17088.4 | S46: 12914.05 | T46: 10201.7
A47: 59 | C47: 28916.15 | D47: 25343.6 | E47: 20145.85 | F47: 17468.35 | G47: 13199.65 | H47: 10427.8 | I47: 34019 | J47: 29816 | K47: 23701 | L47: 20551 | M47: 15529 | N47: 12268 | O47: 28916.15 | P47: 25343.6 | Q47: 20145.85 | R47: 17468.35 | S47: 13199.65 | T47: 10427.8
A48: 60 | C48: 29558.75 | D48: 25909.7 | E48: 20587.85 | F48: 17851.7 | G48: 13490.35 | H48: 10657.3 | I48: 34775 | J48: 30482 | K48: 24221 | L48: 21002 | M48: 15871 | N48: 12538 | O48: 29558.75 | P48: 25909.7 | Q48: 20587.85 | R48: 17851.7 | S48: 13490.35 | T48: 10657.3
A49: 61 | C49: 32940.05 | D49: 28874.5 | E49: 22933 | F49: 19884.9 | G49: 15027.15 | H49: 11871.1 | I49: 38753 | J49: 33970 | K49: 26980 | L49: 23394 | M49: 17679 | N49: 13966 | O49: 32940.05 | P49: 28874.5 | Q49: 22933 | R49: 19884.9 | S49: 15027.15 | T49: 11871.1
A50: 62 | C50: 36598.45 | D50: 32079 | E50: 25470.25 | F50: 22083.85 | G50: 16688.05 | H50: 13183.5 | I50: 43057 | J50: 37740 | K50: 29965 | L50: 25981 | M50: 19633 | N50: 15510 | O50: 36598.45 | P50: 32079 | Q50: 25470.25 | R50: 22083.85 | S50: 16688.05 | T50: 13183.5
A51: 63 | C51: 40535.65 | D51: 35529.15 | E51: 28208.1 | F51: 24459.6 | G51: 18484.1 | H51: 14601.3 | I51: 47689 | J51: 41799 | K51: 33186 | L51: 28776 | M51: 21746 | N51: 17178 | O51: 40535.65 | P51: 35529.15 | Q51: 28208.1 | R51: 24459.6 | S51: 18484.1 | T51: 14601.3
A52: 64 | C52: 44739.75 | D52: 39214.75 | E52: 31139.75 | F52: 27001.1 | G52: 20406.8 | H52: 16121.1 | I52: 52635 | J52: 46135 | K52: 36635 | L52: 31766 | M52: 24008 | N52: 18966 | O52: 44739.75 | P52: 39214.75 | Q52: 31139.75 | R52: 27001.1 | S52: 20406.8 | T52: 16121.1
A53: 65 | C53: 49228.6 | D53: 43149.4 | E53: 34274.55 | F53: 29720.25 | G53: 22457.85 | H53: 17740.35 | I53: 57916 | J53: 50764 | K53: 40323 | L53: 34965 | M53: 26421 | N53: 20871 | O53: 49228.6 | P53: 43149.4 | Q53: 34274.55 | R53: 29720.25 | S53: 22457.85 | T53: 17740.35
A54: 66 | C54: 53991.15 | D54: 47325.45 | E54: 37608.25 | F54: 32609.4 | G54: 24644.9 | H54: 19469.25 | I54: 63519 | J54: 55677 | K54: 44245 | L54: 38364 | M54: 28994 | N54: 22905 | O54: 53991.15 | P54: 47325.45 | Q54: 37608.25 | R54: 32609.4 | S54: 24644.9 | T54: 19469.25
A55: 67 | C55: 59026.55 | D55: 51739.5 | E55: 41137.45 | F55: 35669.4 | G55: 26956.05 | H55: 21294.2 | I55: 69443 | J55: 60870 | K55: 48397 | L55: 41964 | M55: 31713 | N55: 25052 | O55: 59026.55 | P55: 51739.5 | Q55: 41137.45 | R55: 35669.4 | S55: 26956.05 | T55: 21294.2
A56: 68 | C56: 64336.5 | D56: 56389.85 | E56: 44867.25 | F56: 38906.2 | G56: 29401.5 | H56: 23225.4 | I56: 75690 | J56: 66341 | K56: 52785 | L56: 45772 | M56: 34590 | N56: 27324 | O56: 64336.5 | P56: 56389.85 | Q56: 44867.25 | R56: 38906.2 | S56: 29401.5 | T56: 23225.4
A57: 69 | C57: 69929.5 | D57: 61292.65 | E57: 48794.25 | F57: 42309.6 | G57: 31971.05 | H57: 25256.05 | I57: 82270 | J57: 72109 | K57: 57405 | L57: 49776 | M57: 37613 | N57: 29713 | O57: 69929.5 | P57: 61292.65 | Q57: 48794.25 | R57: 42309.6 | S57: 31971.05 | T57: 25256.05
A58: 70 | C58: 75791.1 | D58: 66433.45 | E58: 52923.55 | F58: 45890.65 | G58: 34679.15 | H58: 27395.5 | I58: 89166 | J58: 78157 | K58: 62263 | L58: 53989 | M58: 40799 | N58: 32230 | O58: 75791.1 | P58: 66433.45 | Q58: 52923.55 | R58: 45890.65 | S58: 34679.15 | T58: 27395.5
A59: 71 | C59: 81936.6 | D59: 71818.2 | E59: 57246.65 | F59: 49637.45 | G59: 37507.95 | H59: 29629.3 | I59: 96396 | J59: 84492 | K59: 67349 | L59: 58397 | M59: 44127 | N59: 34858 | O59: 81936.6 | P59: 71818.2 | Q59: 57246.65 | R59: 49637.45 | S59: 37507.95 | T59: 29629.3
A60: 72 | C60: 88352.4 | D60: 77440.95 | E60: 61770.35 | F60: 53561.05 | G60: 40475.3 | H60: 31974.45 | I60: 103944 | J60: 91107 | K60: 72671 | L60: 63013 | M60: 47618 | N60: 37617 | O60: 88352.4 | P60: 77440.95 | Q60: 61770.35 | R60: 53561.05 | S60: 40475.3 | T60: 31974.45
A61: 73 | C61: 95047.85 | D61: 83311.9 | E61: 66484.45 | F61: 57653.8 | G61: 43564.2 | H61: 34414.8 | I61: 111821 | J61: 98014 | K61: 78217 | L61: 67828 | M61: 51252 | N61: 40488 | O61: 95047.85 | P61: 83311.9 | Q61: 66484.45 | R61: 57653.8 | S61: 43564.2 | T61: 34414.8
A62: 74 | C62: 102016.15 | D62: 89420 | E62: 71406.8 | F62: 61918.25 | G62: 46787.4 | H62: 36960.55 | I62: 120019 | J62: 105200 | K62: 84008 | L62: 72845 | M62: 55044 | N62: 43483 | O62: 102016.15 | P62: 89420 | Q62: 71406.8 | R62: 61918.25 | S62: 46787.4 | T62: 36960.55
A63: 75 | C63: 109262.4 | D63: 95769.5 | E63: 76523.8 | F63: 66355.25 | G63: 50141.5 | H63: 39610 | I63: 128544 | J63: 112670 | K63: 90028 | L63: 78065 | M63: 58990 | N63: 46600 | O63: 109262.4 | P63: 95769.5 | Q63: 76523.8 | R63: 66355.25 | S63: 50141.5 | T63: 39610
A64: 76 | C64: 109262.4 | D64: 95769.5 | E64: 76523.8 | F64: 66355.25 | G64: 50141.5 | H64: 34294.1 | I64: 128544 | J64: 112670 | K64: 90028 | L64: 78065 | M64: 58990 | N64: 40346 | O64: 109262.4 | P64: 95769.5 | Q64: 76523.8 | R64: 66355.25 | S64: 50141.5 | T64: 34294.1
A65: 77 | C65: 109262.4 | D65: 95769.5 | E65: 76523.8 | F65: 66355.25 | G65: 50141.5 | H65: 34294.1 | I65: 128544 | J65: 112670 | K65: 90028 | L65: 78065 | M65: 58990 | N65: 40346 | O65: 109262.4 | P65: 95769.5 | Q65: 76523.8 | R65: 66355.25 | S65: 50141.5 | T65: 34294.1
A66: 78 | C66: 109262.4 | D66: 95769.5 | E66: 76523.8 | F66: 66355.25 | G66: 50141.5 | H66: 34294.1 | I66: 128544 | J66: 112670 | K66: 90028 | L66: 78065 | M66: 58990 | N66: 40346 | O66: 109262.4 | P66: 95769.5 | Q66: 76523.8 | R66: 66355.25 | S66: 50141.5 | T66: 34294.1
A67: 79 | C67: 109262.4 | D67: 95769.5 | E67: 76523.8 | F67: 66355.25 | G67: 50141.5 | H67: 34294.1 | I67: 128544 | J67: 112670 | K67: 90028 | L67: 78065 | M67: 58990 | N67: 40346 | O67: 109262.4 | P67: 95769.5 | Q67: 76523.8 | R67: 66355.25 | S67: 50141.5 | T67: 34294.1
A68: 80 | C68: 109262.4 | D68: 95769.5 | E68: 76523.8 | F68: 66355.25 | G68: 50141.5 | H68: 34294.1 | I68: 128544 | J68: 112670 | K68: 90028 | L68: 78065 | M68: 58990 | N68: 40346 | O68: 109262.4 | P68: 95769.5 | Q68: 76523.8 | R68: 66355.25 | S68: 50141.5 | T68: 34294.1
A69: 81 | C69: 109262.4 | D69: 95769.5 | E69: 76523.8 | F69: 66355.25 | G69: 50141.5 | H69: 34294.1 | I69: 128544 | J69: 112670 | K69: 90028 | L69: 78065 | M69: 58990 | N69: 40346 | O69: 109262.4 | P69: 95769.5 | Q69: 76523.8 | R69: 66355.25 | S69: 50141.5 | T69: 34294.1
A70: 82 | C70: 109262.4 | D70: 95769.5 | E70: 76523.8 | F70: 66355.25 | G70: 50141.5 | H70: 34294.1 | I70: 128544 | J70: 112670 | K70: 90028 | L70: 78065 | M70: 58990 | N70: 40346 | O70: 109262.4 | P70: 95769.5 | Q70: 76523.8 | R70: 66355.25 | S70: 50141.5 | T70: 34294.1
A71: 83 | C71: =O71 -> 109262.4 | D71: =P71 -> 95769.5 | E71: =Q71 -> 76523.8 | F71: =R71 -> 66355.25 | G71: =S71 -> 50141.5 | H71: 34294.1 | I71: 128544 | J71: 112670 | K71: 90028 | L71: 78065 | M71: 58990 | N71: 40346 | O71: =I71*$P$4 -> 109262.4 | P71: =J71*$P$4 -> 95769.5 | Q71: =K71*$P$4 -> 76523.8 | R71: =L71*$P$4 -> 66355.25 | S71: =M71*$P$4 -> 50141.5 | T71: 34294.1
A72: 84 | B72: o más | C72: 109262.4 | D72: 95769.5 | E72: 76523.8 | F72: 66355.25 | G72: 50141.5 | H72: 34294.1 | I72: 128544 | J72: 112670 | K72: 90028 | L72: 78065 | M72: 58990 | N72: 40346 | O72: 109262.4 | P72: 95769.5 | Q72: 76523.8 | R72: 66355.25 | S72: 50141.5 | T72: 34294.1
A73: 1 | B73: Hijo | C73: 5604.05 | D73: 4908.75 | E73: 4055.35 | F73: 3519 | G73: 2658.8 | H73: 2101.2 | I73: 6593 | J73: 5775 | K73: 4771 | L73: 4140 | M73: 3128 | N73: 2472 | O73: 5604.05 | P73: 4908.75 | Q73: 4055.35 | R73: 3519 | S73: 2658.8 | T73: 2101.2
A74: 2 | B74: Hijos | C74: 9523.4 | D74: 8347.85 | E74: 6890.1 | F74: 5978.05 | G74: 4517.75 | H74: 3568.3 | I74: 11204 | J74: 9821 | K74: 8106 | L74: 7033 | M74: 5315 | N74: 4198 | O74: 9523.4 | P74: 8347.85 | Q74: 6890.1 | R74: 5978.05 | S74: 4517.75 | T74: 3568.3
A75: 3 | B75: Hijos o más | C75: 13439.35 | D75: 11784.4 | E75: 9729.95 | F75: 8438.8 | G75: 6376.7 | H75: 5037.95 | I75: 15811 | J75: 13864 | K75: 11447 | L75: 9928 | M75: 7502 | N75: 5927 | O75: 13439.35 | P75: 11784.4 | Q75: 9729.95 | R75: 8438.8 | S75: 6376.7 | T75: 5037.95
A77: BUPA GLOBAL ELITE - MENSUALES
A79: EDAD | C79: 1000 | D79: 2000 | E79: 3500
A80: 18
A81: 19
A82: 20
A83: 21
A84: 22
A85: 23
A86: 24
A87: 25
A88: 26
A89: 27
A90: 28
A91: 29
A92: 30
A93: 31
A94: 32
A95: 33
A96: 34
A97: 35
A98: 36
A99: 37
A100: 38
A101: 39
A102: 40
A103: 41
A104: 42
A105: 43
A106: 44
A107: 45
A108: 46
A109: 47
A110: 48
A111: 49
A112: 50
A113: 51
A114: 52
A115: 53
A116: 54
A117: 55
A118: 56
A119: 57
A120: 58
A121: 59
A122: 60
A123: 61
A124: 62
A125: 63
A126: 64
A127: 65
A128: 66
A129: 67
A130: 68
A131: 69
A132: 70
A133: 71
A134: 72
A135: 73
A136: 74
A137: 75
A138: 76
A139: 77
A140: 78
A141: 79
A142: 80
A143: 81
A144: 82
A145: 83
A146: 84 | B146: o más
A147: 1 | B147: Hijo
A148: 2 | B148: Hijos
A149: 3 | B149: Hijos o más
A152: BUPA GLOBAL PREMIER
A153: TARIFAS ANUALES
A155: EDAD | C155: 2000 | D155: 3500 | E155: 5000 | F155: 10000 | G155: 20000 | I155: TARIFAS BASE | N155: TARIFAS BASE COND ESCUENTO
A156: 18 | C156: =N156 -> 5430 | D156: =O156 -> 4930.5 | E156: 3688.5 | F156: 2669.25 | G156: 2100.75 | I156: 7240 | J156: 6574 | K156: 4918 | L156: 3559 | M156: 2801 | N156: =I156*$Q$4 -> 5430 | O156: =J156*$Q$4 -> 4930.5 | P156: 3688.5 | Q156: 2669.25 | R156: 2100.75
A157: 19 | C157: =N157 -> 5499 | D157: =O157 -> 4990.5 | E157: =P157 -> 3723 | F157: =Q157 -> 2694.75 | G157: 2121 | I157: 7332 | J157: 6654 | K157: 4964 | L157: 3593 | M157: 2828 | N157: =I157*$Q$4 -> 5499 | O157: =J157*$Q$4 -> 4990.5 | P157: =K157*$Q$4 -> 3723 | Q157: =L157*$Q$4 -> 2694.75 | R157: 2121
A158: 20 | C158: 5565.75 | D158: 5050.5 | E158: 3760.5 | F158: 2722.5 | G158: 2142.75 | I158: 7421 | J158: 6734 | K158: 5014 | L158: 3630 | M158: 2857 | N158: 5565.75 | O158: 5050.5 | P158: 3760.5 | Q158: 2722.5 | R158: 2142.75
A159: 21 | C159: 5637 | D159: 5113.5 | E159: 3798.75 | F159: 2751 | G159: 2165.25 | I159: 7516 | J159: 6818 | K159: 5065 | L159: 3668 | M159: 2887 | N159: 5637 | O159: 5113.5 | P159: 3798.75 | Q159: 2751 | R159: 2165.25
A160: 22 | C160: 5707.5 | D160: 5184 | E160: 3838.5 | F160: 2780.25 | G160: 2188.5 | I160: 7610 | J160: 6912 | K160: 5118 | L160: 3707 | M160: 2918 | N160: 5707.5 | O160: 5184 | P160: 3838.5 | Q160: 2780.25 | R160: 2188.5
A161: 23 | C161: 5784 | D161: 5250.75 | E161: 3879.75 | F161: 2809.5 | G161: 2211 | I161: 7712 | J161: 7001 | K161: 5173 | L161: 3746 | M161: 2948 | N161: 5784 | O161: 5250.75 | P161: 3879.75 | Q161: 2809.5 | R161: 2211
A162: 24 | C162: 5864.25 | D162: 5322.75 | E162: 3922.5 | F162: 2840.25 | G162: 2235 | I162: 7819 | J162: 7097 | K162: 5230 | L162: 3787 | M162: 2980 | N162: 5864.25 | O162: 5322.75 | P162: 3922.5 | Q162: 2840.25 | R162: 2235
A163: 25 | C163: 5944.5 | D163: 5394 | E163: 3966.75 | F163: 2871 | G163: 2259.75 | I163: 7926 | J163: 7192 | K163: 5289 | L163: 3828 | M163: 3013 | N163: 5944.5 | O163: 5394 | P163: 3966.75 | Q163: 2871 | R163: 2259.75
A164: 26 | C164: 6060.75 | D164: 5502 | E164: 4033.5 | F164: 2919.75 | G164: 2298 | I164: 8081 | J164: 7336 | K164: 5378 | L164: 3893 | M164: 3064 | N164: 6060.75 | O164: 5502 | P164: 4033.5 | Q164: 2919.75 | R164: 2298
A165: 27 | C165: 6180 | D165: 5612.25 | E165: 4101.75 | F165: 2969.25 | G165: 2337.75 | I165: 8240 | J165: 7483 | K165: 5469 | L165: 3959 | M165: 3117 | N165: 6180 | O165: 5612.25 | P165: 4101.75 | Q165: 2969.25 | R165: 2337.75
A166: 28 | C166: 6307.5 | D166: 5724.75 | E166: 4172.25 | F166: 3021 | G166: 2377.5 | I166: 8410 | J166: 7633 | K166: 5563 | L166: 4028 | M166: 3170 | N166: 6307.5 | O166: 5724.75 | P166: 4172.25 | Q166: 3021 | R166: 2377.5
A167: 29 | C167: 6440.25 | D167: 5844 | E167: 4248.75 | F167: 3077.25 | G167: 2421.75 | I167: 8587 | J167: 7792 | K167: 5665 | L167: 4103 | M167: 3229 | N167: 6440.25 | O167: 5844 | P167: 4248.75 | Q167: 3077.25 | R167: 2421.75
A168: 30 | C168: 6576 | D168: 5970.75 | E168: 4327.5 | F168: 3133.5 | G168: 2466.75 | I168: 8768 | J168: 7961 | K168: 5770 | L168: 4178 | M168: 3289 | N168: 6576 | O168: 5970.75 | P168: 4327.5 | Q168: 3133.5 | R168: 2466.75
A169: 31 | C169: 6715.5 | D169: 6096.75 | E169: 4410.75 | F169: 3192.75 | G169: 2513.25 | I169: 8954 | J169: 8129 | K169: 5881 | L169: 4257 | M169: 3351 | N169: 6715.5 | O169: 6096.75 | P169: 4410.75 | Q169: 3192.75 | R169: 2513.25
A170: 32 | C170: 6861.75 | D170: 6228.75 | E170: 4493.25 | F170: 3254.25 | G170: 2561.25 | I170: 9149 | J170: 8305 | K170: 5991 | L170: 4339 | M170: 3415 | N170: 6861.75 | O170: 6228.75 | P170: 4493.25 | Q170: 3254.25 | R170: 2561.25
A171: 33 | C171: 7011.75 | D171: 6365.25 | E171: 4584 | F171: 3317.25 | G171: 2611.5 | I171: 9349 | J171: 8487 | K171: 6112 | L171: 4423 | M171: 3482 | N171: 7011.75 | O171: 6365.25 | P171: 4584 | Q171: 3317.25 | R171: 2611.5
A172: 34 | C172: 7167.75 | D172: 6504.75 | E172: 4674 | F172: 3384 | G172: 2663.25 | I172: 9557 | J172: 8673 | K172: 6232 | L172: 4512 | M172: 3551 | N172: 7167.75 | O172: 6504.75 | P172: 4674 | Q172: 3384 | R172: 2663.25
A173: 35 | C173: 7328.25 | D173: 6652.5 | E173: 4770.75 | F173: 3455.25 | G173: 2719.5 | I173: 9771 | J173: 8870 | K173: 6361 | L173: 4607 | M173: 3626 | N173: 7328.25 | O173: 6652.5 | P173: 4770.75 | Q173: 3455.25 | R173: 2719.5
A174: 36 | C174: 7494 | D174: 6801 | E174: 4870.5 | F174: 3525 | G174: 2774.25 | I174: 9992 | J174: 9068 | K174: 6494 | L174: 4700 | M174: 3699 | N174: 7494 | O174: 6801 | P174: 4870.5 | Q174: 3525 | R174: 2774.25
A175: 37 | C175: 7664.25 | D175: 6954.75 | E175: 4971.75 | F175: 3597.75 | G175: 2832 | I175: 10219 | J175: 9273 | K175: 6629 | L175: 4797 | M175: 3776 | N175: 7664.25 | O175: 6954.75 | P175: 4971.75 | Q175: 3597.75 | R175: 2832
A176: 38 | C176: 7838.25 | D176: 7116 | E176: 5076 | F176: 3674.25 | G176: 2892 | I176: 10451 | J176: 9488 | K176: 6768 | L176: 4899 | M176: 3856 | N176: 7838.25 | O176: 7116 | P176: 5076 | Q176: 3674.25 | R176: 2892
A177: 39 | C177: 8019 | D177: 7279.5 | E177: 5183.25 | F177: 3752.25 | G177: 2953.5 | I177: 10692 | J177: 9706 | K177: 6911 | L177: 5003 | M177: 3938 | N177: 8019 | O177: 7279.5 | P177: 5183.25 | Q177: 3752.25 | R177: 2953.5
A178: 40 | C178: 8202.75 | D178: 7446 | E178: 5291.25 | F178: 3830.25 | G178: 3015 | I178: 10937 | J178: 9928 | K178: 7055 | L178: 5107 | M178: 4020 | N178: 8202.75 | O178: 7446 | P178: 5291.25 | Q178: 3830.25 | R178: 3015
A179: 41 | C179: 8393.25 | D179: 7617 | E179: 5405.25 | F179: 3912 | G179: 3078.75 | I179: 11191 | J179: 10156 | K179: 7207 | L179: 5216 | M179: 4105 | N179: 8393.25 | O179: 7617 | P179: 5405.25 | Q179: 3912 | R179: 3078.75
A180: 42 | C180: 8583 | D180: 7791.75 | E180: 5524.5 | F180: 3997.5 | G180: 3146.25 | I180: 11444 | J180: 10389 | K180: 7366 | L180: 5330 | M180: 4195 | N180: 8583 | O180: 7791.75 | P180: 5524.5 | Q180: 3997.5 | R180: 3146.25
A181: 43 | C181: 8787 | D181: 7971.75 | E181: 5644.5 | F181: 4089 | G181: 3218.25 | I181: 11716 | J181: 10629 | K181: 7526 | L181: 5452 | M181: 4291 | N181: 8787 | O181: 7971.75 | P181: 5644.5 | Q181: 4089 | R181: 3218.25
A182: 44 | C182: 8985 | D182: 8156.25 | E182: 5769.75 | F182: 4178.25 | G182: 3288.75 | I182: 11980 | J182: 10875 | K182: 7693 | L182: 5571 | M182: 4385 | N182: 8985 | O182: 8156.25 | P182: 5769.75 | Q182: 4178.25 | R182: 3288.75
A183: 45 | C183: 9195.75 | D183: 8347.5 | E183: 5898 | F183: 4269.75 | G183: 3360.75 | I183: 12261 | J183: 11130 | K183: 7864 | L183: 5693 | M183: 4481 | N183: 9195.75 | O183: 8347.5 | P183: 5898 | Q183: 4269.75 | R183: 3360.75
A184: 46 | C184: 9410.25 | D184: 8539.5 | E184: 6027.75 | F184: 4362 | G184: 3433.5 | I184: 12547 | J184: 11386 | K184: 8037 | L184: 5816 | M184: 4578 | N184: 9410.25 | O184: 8539.5 | P184: 6027.75 | Q184: 4362 | R184: 3433.5
A185: 47 | C185: 9628.5 | D185: 8737.5 | E185: 6162 | F185: 4461.75 | G185: 3511.5 | I185: 12838 | J185: 11650 | K185: 8216 | L185: 5949 | M185: 4682 | N185: 9628.5 | O185: 8737.5 | P185: 6162 | Q185: 4461.75 | R185: 3511.5
A186: 48 | C186: 9850.5 | D186: 8939.25 | E186: 6299.25 | F186: 4558.5 | G186: 3588.75 | I186: 13134 | J186: 11919 | K186: 8399 | L186: 6078 | M186: 4785 | N186: 9850.5 | O186: 8939.25 | P186: 6299.25 | Q186: 4558.5 | R186: 3588.75
A187: 49 | C187: 10079.25 | D187: 9145.5 | E187: 6438 | F187: 4659.75 | G187: 3667.5 | I187: 13439 | J187: 12194 | K187: 8584 | L187: 6213 | M187: 4890 | N187: 10079.25 | O187: 9145.5 | P187: 6438 | Q187: 4659.75 | R187: 3667.5
A188: 50 | C188: 10308.75 | D188: 9357.75 | E188: 6581.25 | F188: 4764 | G188: 3749.25 | I188: 13745 | J188: 12477 | K188: 8775 | L188: 6352 | M188: 4999 | N188: 10308.75 | O188: 9357.75 | P188: 6581.25 | Q188: 4764 | R188: 3749.25
A189: 51 | C189: 10545.75 | D189: 9572.25 | E189: 6726 | F189: 4869.75 | G189: 3832.5 | I189: 14061 | J189: 12763 | K189: 8968 | L189: 6493 | M189: 5110 | N189: 10545.75 | O189: 9572.25 | P189: 6726 | Q189: 4869.75 | R189: 3832.5
A190: 52 | C190: 10790.25 | D190: 9791.25 | E190: 6876 | F190: 4977.75 | G190: 3917.25 | I190: 14387 | J190: 13055 | K190: 9168 | L190: 6637 | M190: 5223 | N190: 10790.25 | O190: 9791.25 | P190: 6876 | Q190: 4977.75 | R190: 3917.25
A191: 53 | C191: 11035.5 | D191: 10016.25 | E191: 7029.75 | F191: 5089.5 | G191: 4005.75 | I191: 14714 | J191: 13355 | K191: 9373 | L191: 6786 | M191: 5341 | N191: 11035.5 | O191: 10016.25 | P191: 7029.75 | Q191: 5089.5 | R191: 4005.75
A192: 54 | C192: 11287.5 | D192: 10241.25 | E192: 7185 | F192: 5200.5 | G192: 4093.5 | I192: 15050 | J192: 13655 | K192: 9580 | L192: 6934 | M192: 5458 | N192: 11287.5 | O192: 10241.25 | P192: 7185 | Q192: 5200.5 | R192: 4093.5
A193: 55 | C193: 11547.75 | D193: 10477.5 | E193: 7342.5 | F193: 5316.75 | G193: 4184.25 | I193: 15397 | J193: 13970 | K193: 9790 | L193: 7089 | M193: 5579 | N193: 11547.75 | O193: 10477.5 | P193: 7342.5 | Q193: 5316.75 | R193: 4184.25
A194: 56 | C194: 11805 | D194: 10715.25 | E194: 7506.75 | F194: 5434.5 | G194: 4277.25 | I194: 15740 | J194: 14287 | K194: 10009 | L194: 7246 | M194: 5703 | N194: 11805 | O194: 10715.25 | P194: 7506.75 | Q194: 5434.5 | R194: 4277.25
A195: 57 | C195: 12073.5 | D195: 10956 | E195: 7673.25 | F195: 5556.75 | G195: 4373.25 | I195: 16098 | J195: 14608 | K195: 10231 | L195: 7409 | M195: 5831 | N195: 12073.5 | O195: 10956 | P195: 7673.25 | Q195: 5556.75 | R195: 4373.25
A196: 58 | C196: 12344.25 | D196: 11201.25 | E196: 7842 | F196: 5679 | G196: 4469.25 | I196: 16459 | J196: 14935 | K196: 10456 | L196: 7572 | M196: 5959 | N196: 12344.25 | O196: 11201.25 | P196: 7842 | Q196: 5679 | R196: 4469.25
A197: 59 | C197: 12620.25 | D197: 11453.25 | E197: 8015.25 | F197: 5799.75 | G197: 4565.25 | I197: 16827 | J197: 15271 | K197: 10687 | L197: 7733 | M197: 6087 | N197: 12620.25 | O197: 11453.25 | P197: 8015.25 | Q197: 5799.75 | R197: 4565.25
A198: 60 | C198: 12902.25 | D198: 11708.25 | E198: 8190.75 | F198: 5928.75 | G198: 4666.5 | I198: 17203 | J198: 15611 | K198: 10921 | L198: 7905 | M198: 6222 | N198: 12902.25 | O198: 11708.25 | P198: 8190.75 | Q198: 5928.75 | R198: 4666.5
A199: 61 | C199: 14376 | D199: 13046.25 | E199: 9114.75 | F199: 6598.5 | G199: 5193.75 | I199: 19168 | J199: 17395 | K199: 12153 | L199: 8798 | M199: 6925 | N199: 14376 | O199: 13046.25 | P199: 9114.75 | Q199: 6598.5 | R199: 5193.75
A200: 62 | C200: 15969.75 | D200: 14493 | E200: 10123.5 | F200: 7328.25 | G200: 5767.5 | I200: 21293 | J200: 19324 | K200: 13498 | L200: 9771 | M200: 7690 | N200: 15969.75 | O200: 14493 | P200: 10123.5 | Q200: 7328.25 | R200: 5767.5
A201: 63 | C201: 17687.25 | D201: 16050.75 | E201: 11209.5 | F201: 8115.75 | G201: 6387 | I201: 23583 | J201: 21401 | K201: 14946 | L201: 10821 | M201: 8516 | N201: 17687.25 | O201: 16050.75 | P201: 11209.5 | Q201: 8115.75 | R201: 6387
A202: 64 | C202: 19523.25 | D202: 17720.25 | E202: 12378.75 | F202: 8958 | G202: 7050.75 | I202: 26031 | J202: 23627 | K202: 16505 | L202: 11944 | M202: 9401 | N202: 19523.25 | O202: 17720.25 | P202: 12378.75 | Q202: 8958 | R202: 7050.75
A203: 65 | C203: 21480.75 | D203: 19492.5 | E203: 13626.75 | F203: 9861.75 | G203: 7761 | I203: 28641 | J203: 25990 | K203: 18169 | L203: 13149 | M203: 10348 | N203: 21480.75 | O203: 19492.5 | P203: 13626.75 | Q203: 9861.75 | R203: 7761
A204: 66 | C204: 23560.5 | D204: 21379.5 | E204: 14956.5 | F204: 10824.75 | G204: 8520 | I204: 31414 | J204: 28506 | K204: 19942 | L204: 14433 | M204: 11360 | N204: 23560.5 | O204: 21379.5 | P204: 14956.5 | Q204: 10824.75 | R204: 8520
A205: 67 | C205: 25758 | D205: 23374.5 | E205: 16368.75 | F205: 11849.25 | G205: 9325.5 | I205: 34344 | J205: 31166 | K205: 21825 | L205: 15799 | M205: 12434 | N205: 25758 | O205: 23374.5 | P205: 16368.75 | Q205: 11849.25 | R205: 9325.5
A206: 68 | C206: 28076.25 | D206: 25478.25 | E206: 17860.5 | F206: 12925.5 | G206: 10173 | I206: 37435 | J206: 33971 | K206: 23814 | L206: 17234 | M206: 13564 | N206: 28076.25 | O206: 25478.25 | P206: 17860.5 | Q206: 12925.5 | R206: 10173
... 1257 more rows
